Workbook

Sheet Instructions
B1: RFP# 202102021 - eProcurement Solution and Services
B2: Cost Proposal Workbook - WORKSTREAM IMPLEMENTATION
B4: INSTRUCTIONS FOR COMPLETING THE COST TABS:
B5: 1. The State of Maine intends to complete a separate cost evaluation which will be used to score proposals. Bidders must provide pricing as specified on the subsequent Tabs to meet the relevant specifications and requirements of the RFP.
B6: 2. This Cost Workbook contains twelve (12) additional Tabs for the bidder to use to indicate all proposed costs. Tab 1: Supplier Portal Fixed Pricing Tab 2: Buyer Portal Fixed Pricing Tab 3: Identification of Need Fixed Pricing Tab 4: Request through Pay & Catalog Capability Fixed Pricing Tab 5: Supplier Enablement Fixed Pricing Tab 6: Sourcing/Bid Management Fixed Pricing Tab 7: Contract Management Fixed Pricing Tab 8: Supplier Performance Fixed Pricing Tab 9: Purchasing/Data Analytics Fixed Pricing Tab 10: Workstream Solution/Services Price Discount Tab 11: Hourly Rate Card Pricing Tab 12: Innov, Value-Adds, Addl Svc
B7: 3. Tab 12 is optional therefore may or not award as part of the contract.
B8: 4. Part V of the RFP explains how cost/pricing will be evaluated.
B9: 5. On each Tab the bidder may add (insert) rows for additional data as needed to provide the necessary costs details of the proposal.
B10: 6. Except where otherwise noted, the bidder must not reformat any part of this Workbook as any reformatting may be cause for rejection of the proposal.
B11: 7. The bidder must note that the "Total" cells of Tab contains pre-populated formulas and may need to be edited as a result of adding/inserting rows.
B12: 8. The bidder is responsible for the accuracy of all the information provided in the Workbook.
B13: 9. The bidder must not propose any per transaction fees or administrative fees to be paid by the State or the Vendors selling goods or services to the State.

Sheet 1. Supplier Portal
B1: RFP# 202102021 - eProcurement Solution and Services
B2: Cost Proposal Workbook - WORKSTREAM IMPLEMENTATION
B3: Bidder's Name:
B6: Instructions: The Fixed Pricing is to reflect contracting for the IMPLEMENTATION and SOFTWARE of an eProcurement Solution for the specific Workstream as required in Section A thru F of the RFP for the specifically identified Scenarios on this Tab.
B7: 1. In the tables below Bidders must provide the firm, fixed prices in each yellow shaded cell that corresponds to the detail listed in each table. Bidders are to provide prices for the three identified scenarios which reflect the concepts of small, medium and large States. There are separate sets of tables for each scenario and bidders must provide complete responses for each scenario. NOTE: Scenario scope that is not relevant to the specific Workstream being proposed does not have to be addressed however Bidders must list the specific Scope areas not addressed by the proposed solution in Table E "Assumptions".
B8: 2. In Table A, Bidders must provide the overall pricing breakdown of what is included to deliver the identified eProcurement Solution/Service that meets the associated requirements detailed in the RFP and RTM. The prices must include the licensing and maintenance costs, implemetation costs for deployment, and the costs for on-going operations and support of the implemented Solution. TThe costs in this table reflect the total Final Cost values in Tables B-D which have had the proposed discount (Tab 2) applied.
B9: 3. In Table B, Bidders must provide the total hours, costs, and discounted Final Costs as per relevant proposaed discount identifed on "Tab 2. Complete Solution Discount" for the approach to implement the identified workstream functionality, integations, conversion from existing State systems, staffing and support services, etc. as described in each Scenario.
B10: 4. In Table C, Bidders must provide pricing details for the Licensing and Maintenance proposed for the identified workstream/module, integration, and applications that meet the relevant requirements of this RFP. The discounted Final Costs represents applying the relevant proposed discount from "Tab 2. Complete Solution Discount" to the Total.
B11: 5. In Table D, Bidders must provide pricing details for the proposed Managed Services for the identified workstream to meet the requirements described in Section F of the RFP. The discounted Final Costs represents applying the relevant discount from "Tab 2. Complete Solution Discount" to the Total.
B12: 6. In Table E, Bidders must document all assumptions that are reflected in the proposed Pricing. Bidders proposing services only must identify the specific eProcurement solution(s) that the proposed services costs reflect.
B14: SCENARIOs
B15: Scope Common to all Scenarios | C15: • 24 month implementation period • Suppliers managed through eProcurement Solution • State provides dedicated Project Team including Project Sponsor, Project Manager, Functional Lead, Technical Lead, SMEs, Testers, Trainers and technical staff for the state side of integration programming. • Implementation Services provided include o Integration/Interface to on-premise Finance system > PeopleSoft 9.2 > Real-time integration points to Finance - Supplier accounts, create/update (eProcurement solution is system of record) - Requisitions - Purchase Orders/Change Orders - Invoice ‘Ok to Pay’ > Batch interface points - Chart of Accounts values from Finance - Receiving to Finance o Organizational Change Management Services o Training Services > Contractor delivered End User training for 25% of scenario user count > 'Train the Trainer' training for 10 State staff > Supplier training through 20 live webinars o Help Desk Services: Full end user support, State and Supplier • Managed Services provided include o Solution Support o Additional Help Desk Services; as described above for 6 months after go-live of final solution component o On-site System Stabilization Support for 3 months after go-live of final solution component
B16: Scenario I - Large State | C16: GDP: $700 Billion Spend: $8 Billion/year Population: 11 Million State Employees: 125,000 User Count: 1,250 Buyers, 11,250 End Users Suppliers: 100,000 with 60,000 to be converted from the Finance System during implementation. Contracts: 1,000 Central Procurement Office issued, 2500 Agency issued. Data conversion of basic data from the Finance System during implementation for all Contracts. Solicitations: 2,400/year Catalogs: 1000 Hosted, 100 Punchouts with no catalogs to be converted from the Finance System during implementation. Purchase Orders: 400,000 issued/year Invoices: 600,000/year
B17: Scenario II - Medium State | C17: GDP: $300 Billion Spend: $4 Billion/year Population: 6 Million State Employees: 70,000 User Count: 700 Buyers, 6,300 End Users Suppliers: 75,000 with 50,000 to be converted from the Finance System during implementation. Contracts: 800 Central Procurement Office issued, 2000 Agency issued. Data conversion of basic data from the Finance System during implementation for all Contracts. Solicitations: 1,600/year Catalogs: 1000 Hosted, 80 Punchouts with no catalogs to be converted from the Finance System during implementation. Purchase Orders: 150,000 issued/year Invoices: 225,000/year
B18: Scenario III - Small State | C18: GDP: $100 Billion Spend: $2 Billion/year Population: 3 Million State Employees: 50,000 User Count: 500 Buyers, 4,500 End Users Suppliers: 50,000 with 35,000 to be converted from the Finance System during implementation. Contracts: 500 Central Procurement Office issued, 1500 Agency issued. Data conversion of basic data from the Finance System during implementation for all Contracts. Solicitations: 1,000/year Catalogs: 500 Hosted, 60 Punchouts with no catalogs to be converted from the Finance System during implementation. Purchase Orders: 80,000 issued/year Invoices: 105,000/year
B20: SCENARIO I - LARGE STATE PRICING | Q20: SCENARIO II - MEDIUM STATE PRICING | AF20: SCENARIO III - SMALL STATE PRICING
B22: A. Overall Cost Proposal (The all-in-costs necessary to provide an eProcurement Solution that meet the mandatory requirements of the RFP and is a total of the values in Tables B-D) | Q22: A. Overall Cost Proposal (The all-in-costs necessary to provide an eProcurement Solution that meet the mandatory requirements of the RFP and is a total of the values in Tables B-D) | AF22: A. Overall Cost Proposal (The all-in-costs necessary to provide an eProcurement Solution that meet the mandatory requirements of the RFP and is a total of the values in Tables B-D)
C23: Year 1 | D23: Year 2 | E23: Year 3 | F23: Year 4 | G23: Year 5 | H23: Year 6 | I23: Year 7 | J23: Year 8 | K23: Year 9 | L23: Year 10 | M23: Total | R23: Year 1 | S23: Year 2 | T23: Year 3 | U23: Year 4 | V23: Year 5 | W23: Year 6 | X23: Year 7 | Y23: Year 8 | Z23: Year 9 | AA23: Year 10 | AB23: Total | AG23: Year 1 | AH23: Year 2 | AI23: Year 3 | AJ23: Year 4 | AK23: Year 5 | AL23: Year 6 | AM23: Year 7 | AN23: Year 8 | AO23: Year 9 | AP23: Year 10 | AQ23: Total
B24: Solution Implementation Costs | C24: =D54*(1-'10. Workstream Implem. Discount'!$C$15) -> 0 | D24: =F54*(1-'10. Workstream Implem. Discount'!$C$15) -> 0 | M24: =SUM(C24:L24) -> 0 | Q24: Solution Implementation Costs | R24: =S54*(1-'10. Workstream Implem. Discount'!$C$15) -> 0 | S24: =U54*(1-'10. Workstream Implem. Discount'!$C$15) -> 0 | AB24: =SUM(R24:AA24) -> 0 | AF24: Solution Implementation Costs | AG24: =AH54*(1-'10. Workstream Implem. Discount'!$C$15) -> 0 | AH24: =AJ54*(1-'10. Workstream Implem. Discount'!$C$15) -> 0 | AQ24: =SUM(AG24:AP24) -> 0
B25: Annual Licensing/Maintenance Costs | C25: =C65*(1-'10. Workstream Implem. Discount'!$C$16) -> 0 | D25: =D65*(1-'10. Workstream Implem. Discount'!$C$16) -> 0 | E25: =E65*(1-'10. Workstream Implem. Discount'!$C$16) -> 0 | F25: =F65*(1-'10. Workstream Implem. Discount'!$C$16) -> 0 | G25: =G65*(1-'10. Workstream Implem. Discount'!$C$16) -> 0 | H25: =H65*(1-'10. Workstream Implem. Discount'!$C$16) -> 0 | I25: =I65*(1-'10. Workstream Implem. Discount'!$C$16) -> 0 | J25: =J65*(1-'10. Workstream Implem. Discount'!$C$16) -> 0 | K25: =K65*(1-'10. Workstream Implem. Discount'!$C$16) -> 0 | L25: =L65*(1-'10. Workstream Implem. Discount'!$C$16) -> 0 | M25: 0 | Q25: Annual Licensing/Maintenance Costs | R25: =R65*(1-'10. Workstream Implem. Discount'!$C$16) -> 0 | S25: =S65*(1-'10. Workstream Implem. Discount'!$C$16) -> 0 | T25: =T65*(1-'10. Workstream Implem. Discount'!$C$16) -> 0 | U25: =U65*(1-'10. Workstream Implem. Discount'!$C$16) -> 0 | V25: =V65*(1-'10. Workstream Implem. Discount'!$C$16) -> 0 | W25: =W65*(1-'10. Workstream Implem. Discount'!$C$16) -> 0 | X25: =X65*(1-'10. Workstream Implem. Discount'!$C$16) -> 0 | Y25: =Y65*(1-'10. Workstream Implem. Discount'!$C$16) -> 0 | Z25: =Z65*(1-'10. Workstream Implem. Discount'!$C$16) -> 0 | AA25: =AA65*(1-'10. Workstream Implem. Discount'!$C$16) -> 0 | AB25: 0 | AF25: Annual Licensing/Maintenance Costs | AG25: =AG65*(1-'10. Workstream Implem. Discount'!$C$16) -> 0 | AH25: =AH65*(1-'10. Workstream Implem. Discount'!$C$16) -> 0 | AI25: =AI65*(1-'10. Workstream Implem. Discount'!$C$16) -> 0 | AJ25: =AJ65*(1-'10. Workstream Implem. Discount'!$C$16) -> 0 | AK25: =AK65*(1-'10. Workstream Implem. Discount'!$C$16) -> 0 | AL25: =AL65*(1-'10. Workstream Implem. Discount'!$C$16) -> 0 | AM25: =AM65*(1-'10. Workstream Implem. Discount'!$C$16) -> 0 | AN25: =AN65*(1-'10. Workstream Implem. Discount'!$C$16) -> 0 | AO25: =AO65*(1-'10. Workstream Implem. Discount'!$C$16) -> 0 | AP25: =AP65*(1-'10. Workstream Implem. Discount'!$C$16) -> 0 | AQ25: 0
B26: Managed Services Support Costs | C26: =C78*(1-'10. Workstream Implem. Discount'!$C$17) -> 0 | D26: =D78*(1-'10. Workstream Implem. Discount'!$C$17) -> 0 | E26: =E78*(1-'10. Workstream Implem. Discount'!$C$17) -> 0 | F26: =F78*(1-'10. Workstream Implem. Discount'!$C$17) -> 0 | G26: =G78*(1-'10. Workstream Implem. Discount'!$C$17) -> 0 | H26: =H78*(1-'10. Workstream Implem. Discount'!$C$17) -> 0 | I26: =I78*(1-'10. Workstream Implem. Discount'!$C$17) -> 0 | J26: =J78*(1-'10. Workstream Implem. Discount'!$C$17) -> 0 | K26: =K78*(1-'10. Workstream Implem. Discount'!$C$17) -> 0 | L26: =L78*(1-'10. Workstream Implem. Discount'!$C$17) -> 0 | M26: 0 | Q26: Managed Services Support Costs | R26: =R78*(1-'10. Workstream Implem. Discount'!$C$17) -> 0 | S26: =S78*(1-'10. Workstream Implem. Discount'!$C$17) -> 0 | T26: =T78*(1-'10. Workstream Implem. Discount'!$C$17) -> 0 | U26: =U78*(1-'10. Workstream Implem. Discount'!$C$17) -> 0 | V26: =V78*(1-'10. Workstream Implem. Discount'!$C$17) -> 0 | W26: =W78*(1-'10. Workstream Implem. Discount'!$C$17) -> 0 | X26: =X78*(1-'10. Workstream Implem. Discount'!$C$17) -> 0 | Y26: =Y78*(1-'10. Workstream Implem. Discount'!$C$17) -> 0 | Z26: =Z78*(1-'10. Workstream Implem. Discount'!$C$17) -> 0 | AA26: =AA78*(1-'10. Workstream Implem. Discount'!$C$17) -> 0 | AB26: 0 | AF26: Managed Services Support Costs | AG26: =AG78*(1-'10. Workstream Implem. Discount'!$C$17) -> 0 | AH26: =AH78*(1-'10. Workstream Implem. Discount'!$C$17) -> 0 | AI26: =AI78*(1-'10. Workstream Implem. Discount'!$C$17) -> 0 | AJ26: =AJ78*(1-'10. Workstream Implem. Discount'!$C$17) -> 0 | AK26: =AK78*(1-'10. Workstream Implem. Discount'!$C$17) -> 0 | AL26: =AL78*(1-'10. Workstream Implem. Discount'!$C$17) -> 0 | AM26: =AM78*(1-'10. Workstream Implem. Discount'!$C$17) -> 0 | AN26: =AN78*(1-'10. Workstream Implem. Discount'!$C$17) -> 0 | AO26: =AO78*(1-'10. Workstream Implem. Discount'!$C$17) -> 0 | AP26: =AP78*(1-'10. Workstream Implem. Discount'!$C$17) -> 0 | AQ26: 0
B27: <other item for vendor input (optional)> | M27: 0 | Q27: <other item for vendor input (optional)> | AB27: 0 | AF27: <other item for vendor input (optional)> | AQ27: 0
B28: <other item for vendor input (optional)> | M28: 0 | Q28: <other item for vendor input (optional)> | AB28: 0 | AF28: <other item for vendor input (optional)> | AQ28: 0
B29: <other item for vendor input (optional)> | M29: 0 | Q29: <other item for vendor input (optional)> | AB29: 0 | AF29: <other item for vendor input (optional)> | AQ29: 0
B30: <other item for vendor input (optional)> | M30: 0 | Q30: <other item for vendor input (optional)> | AB30: 0 | AF30: <other item for vendor input (optional)> | AQ30: 0
B31: <other item for vendor input (optional)> | M31: 0 | Q31: <other item for vendor input (optional)> | AB31: 0 | AF31: <other item for vendor input (optional)> | AQ31: 0
B32: <other item for vendor input (optional)> | M32: 0 | Q32: <other item for vendor input (optional)> | AB32: 0 | AF32: <other item for vendor input (optional)> | AQ32: 0
B33: TOTAL | C33: =SUM(C24:C32) -> 0 | D33: 0 | E33: 0 | F33: 0 | G33: 0 | H33: 0 | I33: 0 | J33: 0 | K33: 0 | L33: 0 | M33: 0 | Q33: TOTAL | R33: =SUM(R24:R32) -> 0 | S33: 0 | T33: 0 | U33: 0 | V33: 0 | W33: 0 | X33: 0 | Y33: 0 | Z33: 0 | AA33: 0 | AB33: 0 | AF33: TOTAL | AG33: =SUM(AG24:AG32) -> 0 | AH33: 0 | AI33: 0 | AJ33: 0 | AK33: 0 | AL33: 0 | AM33: 0 | AN33: 0 | AO33: 0 | AP33: 0 | AQ33: 0
B35: B. Solution Implementation Costs - Distribute over Years 1 & 2 Note: "Final Costs" values should equal the "Total" values for Solution Implementation in Table A. | Q35: B. Solution Implementation Costs - Distribute over Years 1 & 2 Note: "Final Costs" values should equal the "Total" values for Solution Implementation in Table A. | AF35: B. Solution Implementation Costs - Distribute over Years 1 & 2 Note: "Final Costs" values should equal the "Total" values for Solution Implementation in Table A.
C36: Year 1 | E36: Year 2 | G36: Totals | R36: Year 1 | T36: Year 2 | V36: Totals | AG36: Year 1 | AI36: Year 2 | AK36: Totals
B37: Workstream Costs: | C37: Hours | D37: Costs | E37: Hours | F37: Costs | G37: Hours | H37: Costs | I37: Discount (%) | J37: Final Costs | Q37: Workstream Costs: | R37: Hours | S37: Costs | T37: Hours | U37: Costs | V37: Hours | W37: Costs | X37: Discount (%) | Y37: Final Costs | AF37: Workstream Costs: | AG37: Hours | AH37: Costs | AI37: Hours | AJ37: Costs | AK37: Hours | AL37: Costs | AM37: Discount (%) | AN37: Final Costs
B38: Purchasing/Data Analytics | G38: =C38+E38 -> 0 | H38: =SUM(D38+F38) -> 0 | I38: ='10. Workstream Implem. Discount'!$C$15 -> 60.00% | J38: =(1-I38)*H38 -> 0 | Q38: Purchasing/Data Analytics | V38: =R38+T38 -> 0 | W38: =SUM(S38+U38) -> 0 | X38: ='10. Workstream Implem. Discount'!$C$15 -> 60.00% | Y38: =(1-X38)*W38 -> 0 | AF38: Purchasing/Data Analytics | AK38: =AG38+AI38 -> 0 | AL38: =SUM(AH38+AJ38) -> 0 | AM38: ='10. Workstream Implem. Discount'!$C$15 -> 60.00% | AN38: =(1-AM38)*AL38 -> 0
B39: Integration to Finance System | G39: 0 | H39: 0 | I39: ='10. Workstream Implem. Discount'!$C$15 -> 60.00% | J39: 0 | Q39: Integration to Finance System | V39: 0 | W39: 0 | X39: ='10. Workstream Implem. Discount'!$C$15 -> 60.00% | Y39: 0 | AF39: Integration to Finance System | AK39: 0 | AL39: 0 | AM39: ='10. Workstream Implem. Discount'!$C$15 -> 60.00% | AN39: 0
B40: <other item for vendor input (optional)> | G40: 0 | H40: 0 | I40: ='10. Workstream Implem. Discount'!$C$15 -> 60.00% | J40: 0 | Q40: <other item for vendor input (optional)> | V40: 0 | W40: 0 | X40: ='10. Workstream Implem. Discount'!$C$15 -> 60.00% | Y40: 0 | AF40: <other item for vendor input (optional)> | AK40: 0 | AL40: 0 | AM40: ='10. Workstream Implem. Discount'!$C$15 -> 60.00% | AN40: 0
B41: <other item for vendor input (optional)> | G41: 0 | H41: 0 | I41: ='10. Workstream Implem. Discount'!$C$15 -> 60.00% | J41: 0 | Q41: <other item for vendor input (optional)> | V41: 0 | W41: 0 | X41: ='10. Workstream Implem. Discount'!$C$15 -> 60.00% | Y41: 0 | AF41: <other item for vendor input (optional)> | AK41: 0 | AL41: 0 | AM41: ='10. Workstream Implem. Discount'!$C$15 -> 60.00% | AN41: 0
B42: <other item for vendor input (optional)> | G42: 0 | H42: 0 | I42: ='10. Workstream Implem. Discount'!$C$15 -> 60.00% | J42: 0 | Q42: <other item for vendor input (optional)> | V42: 0 | W42: 0 | X42: ='10. Workstream Implem. Discount'!$C$15 -> 60.00% | Y42: 0 | AF42: <other item for vendor input (optional)> | AK42: 0 | AL42: 0 | AM42: ='10. Workstream Implem. Discount'!$C$15 -> 60.00% | AN42: 0
B43: Supporting Services: | Q43: Supporting Services: | AF43: Supporting Services:
B44: Project Initiation | G44: =C44+E44 -> 0 | H44: =SUM(D44+F44) -> 0 | I44: ='10. Workstream Implem. Discount'!$C$15 -> 60.00% | J44: =(1-I44)*H44 -> 0 | Q44: Project Initiation | V44: =R44+T44 -> 0 | W44: =SUM(S44+U44) -> 0 | X44: ='10. Workstream Implem. Discount'!$C$15 -> 60.00% | Y44: =(1-X44)*W44 -> 0 | AF44: Project Initiation | AK44: =AG44+AI44 -> 0 | AL44: =SUM(AH44+AJ44) -> 0 | AM44: ='10. Workstream Implem. Discount'!$C$15 -> 60.00% | AN44: =(1-AM44)*AL44 -> 0
B45: Project Management | G45: 0 | H45: 0 | I45: ='10. Workstream Implem. Discount'!$C$15 -> 60.00% | J45: 0 | Q45: Project Management | V45: 0 | W45: 0 | X45: ='10. Workstream Implem. Discount'!$C$15 -> 60.00% | Y45: 0 | AF45: Project Management | AK45: 0 | AL45: 0 | AM45: ='10. Workstream Implem. Discount'!$C$15 -> 60.00% | AN45: 0
B46: Change Management | G46: 0 | H46: 0 | I46: ='10. Workstream Implem. Discount'!$C$15 -> 60.00% | J46: 0 | Q46: Change Management | V46: 0 | W46: 0 | X46: ='10. Workstream Implem. Discount'!$C$15 -> 60.00% | Y46: 0 | AF46: Change Management | AK46: 0 | AL46: 0 | AM46: ='10. Workstream Implem. Discount'!$C$15 -> 60.00% | AN46: 0
B47: Training Services | G47: 0 | H47: 0 | I47: ='10. Workstream Implem. Discount'!$C$15 -> 60.00% | J47: 0 | Q47: Training Services | V47: 0 | W47: 0 | X47: ='10. Workstream Implem. Discount'!$C$15 -> 60.00% | Y47: 0 | AF47: Training Services | AK47: 0 | AL47: 0 | AM47: ='10. Workstream Implem. Discount'!$C$15 -> 60.00% | AN47: 0
B48: Help Desk Services (Costs for period from contract award through 6 months following t'Go Live' | G48: 0 | H48: 0 | I48: ='10. Workstream Implem. Discount'!$C$15 -> 60.00% | J48: 0 | Q48: Help Desk Services (Costs for period from contract award through 6 months following t'Go Live' | V48: 0 | W48: 0 | X48: ='10. Workstream Implem. Discount'!$C$15 -> 60.00% | Y48: 0 | AF48: Help Desk Services (Costs for period from contract award through 6 months following t'Go Live' | AK48: 0 | AL48: 0 | AM48: ='10. Workstream Implem. Discount'!$C$15 -> 60.00% | AN48: 0
B49: <other item for vendor input (optional)> | G49: 0 | H49: 0 | I49: ='10. Workstream Implem. Discount'!$C$15 -> 60.00% | J49: 0 | Q49: <other item for vendor input (optional)> | V49: 0 | W49: 0 | X49: ='10. Workstream Implem. Discount'!$C$15 -> 60.00% | Y49: 0 | AF49: <other item for vendor input (optional)> | AK49: 0 | AL49: 0 | AM49: ='10. Workstream Implem. Discount'!$C$15 -> 60.00% | AN49: 0
B50: <other item for vendor input (optional)> | G50: 0 | H50: 0 | I50: ='10. Workstream Implem. Discount'!$C$15 -> 60.00% | J50: 0 | Q50: <other item for vendor input (optional)> | V50: 0 | W50: 0 | X50: ='10. Workstream Implem. Discount'!$C$15 -> 60.00% | Y50: 0 | AF50: <other item for vendor input (optional)> | AK50: 0 | AL50: 0 | AM50: ='10. Workstream Implem. Discount'!$C$15 -> 60.00% | AN50: 0
B51: <other item for vendor input (optional)> | G51: 0 | H51: 0 | I51: ='10. Workstream Implem. Discount'!$C$15 -> 60.00% | J51: 0 | Q51: <other item for vendor input (optional)> | V51: 0 | W51: 0 | X51: ='10. Workstream Implem. Discount'!$C$15 -> 60.00% | Y51: 0 | AF51: <other item for vendor input (optional)> | AK51: 0 | AL51: 0 | AM51: ='10. Workstream Implem. Discount'!$C$15 -> 60.00% | AN51: 0
B52: <other item for vendor input (optional)> | G52: 0 | H52: 0 | I52: ='10. Workstream Implem. Discount'!$C$15 -> 60.00% | J52: 0 | Q52: <other item for vendor input (optional)> | V52: 0 | W52: 0 | X52: ='10. Workstream Implem. Discount'!$C$15 -> 60.00% | Y52: 0 | AF52: <other item for vendor input (optional)> | AK52: 0 | AL52: 0 | AM52: ='10. Workstream Implem. Discount'!$C$15 -> 60.00% | AN52: 0
B53: <other item for vendor input (optional)> | G53: 0 | H53: 0 | I53: ='10. Workstream Implem. Discount'!$C$15 -> 60.00% | J53: 0 | Q53: <other item for vendor input (optional)> | V53: 0 | W53: 0 | X53: ='10. Workstream Implem. Discount'!$C$15 -> 60.00% | Y53: 0 | AF53: <other item for vendor input (optional)> | AK53: 0 | AL53: 0 | AM53: ='10. Workstream Implem. Discount'!$C$15 -> 60.00% | AN53: 0
B54: Total | D54: =SUM(D38:D42,D44:D53) -> 0 | F54: =SUM(F38:F42,F44:F53) -> 0 | H54: =SUM(H38:H42,H44:H53) -> 0 | I54: ='10. Workstream Implem. Discount'!$C$15 -> 60.00% | J54: =SUM(J38:J42,J44:J53) -> 0 | Q54: Total | S54: =SUM(S38:S42,S44:S53) -> 0 | U54: =SUM(U38:U42,U44:U53) -> 0 | W54: =SUM(W38:W42,W44:W53) -> 0 | X54: ='10. Workstream Implem. Discount'!$C$15 -> 60.00% | Y54: =SUM(Y38:Y42,Y44:Y53) -> 0 | AF54: Total | AH54: =SUM(AH38:AH42,AH44:AH53) -> 0 | AJ54: =SUM(AJ38:AJ42,AJ44:AJ53) -> 0 | AL54: =SUM(AL38:AL42,AL44:AL53) -> 0 | AM54: ='10. Workstream Implem. Discount'!$C$15 -> 60.00% | AN54: =SUM(AN38:AN42,AN44:AN53) -> 0
B57: C. Annual Licensing Costs including Maintenance (Note: Unlimited users and "Final Costs" values should equal the "Total" values for Annual Licensing & Maintenance in Table A.) | Q57: C. Annual Licensing Costs including Maintenance (Note: Unlimited users and "Final Costs" values should equal the "Total" values for Annual Licensing & Maintenance in Table A.) | AF57: C. Annual Licensing Costs including Maintenance (Note: Unlimited users and "Final Costs" values should equal the "Total" values for Annual Licensing & Maintenance in Table A.)
C58: Year 1 | D58: Year 2 | E58: Year 3 | F58: Year 4 | G58: Year 5 | H58: Year 6 | I58: Year 7 | J58: Year 8 | K58: Year 9 | L58: Year 10 | M58: Total | N58: Discount (%) | O58: Final Costs | R58: Year 1 | S58: Year 2 | T58: Year 3 | U58: Year 4 | V58: Year 5 | W58: Year 6 | X58: Year 7 | Y58: Year 8 | Z58: Year 9 | AA58: Year 10 | AB58: Total | AC58: Discount (%) | AD58: Final Costs | AG58: Year 1 | AH58: Year 2 | AI58: Year 3 | AJ58: Year 4 | AK58: Year 5 | AL58: Year 6 | AM58: Year 7 | AN58: Year 8 | AO58: Year 9 | AP58: Year 10 | AQ58: Total | AR58: Discount (%) | AS58: Final Costs
B59: Purchasing/Data Analytics | M59: =SUM(C59:L59) -> 0 | N59: ='10. Workstream Implem. Discount'!$C$16 -> 40.00% | O59: =(1-N59)*M59 -> 0 | Q59: Purchasing/Data Analytics | AB59: =SUM(R59:AA59) -> 0 | AC59: ='10. Workstream Implem. Discount'!$C$16 -> 40.00% | AD59: =(1-AC59)*AB59 -> 0 | AF59: Purchasing/Data Analytics | AQ59: =SUM(AG59:AP59) -> 0 | AR59: ='10. Workstream Implem. Discount'!$C$16 -> 40.00% | AS59: =(1-AR59)*AQ59 -> 0
B60: Integration | M60: 0 | N60: ='10. Workstream Implem. Discount'!$C$16 -> 40.00% | O60: 0 | Q60: Integration | AB60: 0 | AC60: ='10. Workstream Implem. Discount'!$C$16 -> 40.00% | AD60: 0 | AF60: Integration | AQ60: 0 | AR60: ='10. Workstream Implem. Discount'!$C$16 -> 40.00% | AS60: 0
B61: <other item for vendor input (optional)> | M61: 0 | N61: ='10. Workstream Implem. Discount'!$C$16 -> 40.00% | O61: 0 | Q61: <other item for vendor input (optional)> | AB61: 0 | AC61: ='10. Workstream Implem. Discount'!$C$16 -> 40.00% | AD61: 0 | AF61: <other item for vendor input (optional)> | AQ61: 0 | AR61: ='10. Workstream Implem. Discount'!$C$16 -> 40.00% | AS61: 0
B62: <other item for vendor input (optional)> | M62: 0 | N62: ='10. Workstream Implem. Discount'!$C$16 -> 40.00% | O62: 0 | Q62: <other item for vendor input (optional)> | AB62: 0 | AC62: ='10. Workstream Implem. Discount'!$C$16 -> 40.00% | AD62: 0 | AF62: <other item for vendor input (optional)> | AQ62: 0 | AR62: ='10. Workstream Implem. Discount'!$C$16 -> 40.00% | AS62: 0
B63: <other item for vendor input (optional)> | M63: 0 | N63: ='10. Workstream Implem. Discount'!$C$16 -> 40.00% | O63: 0 | Q63: <other item for vendor input (optional)> | AB63: 0 | AC63: ='10. Workstream Implem. Discount'!$C$16 -> 40.00% | AD63: 0 | AF63: <other item for vendor input (optional)> | AQ63: 0 | AR63: ='10. Workstream Implem. Discount'!$C$16 -> 40.00% | AS63: 0
B64: <other item for vendor input (optional)> | M64: 0 | N64: ='10. Workstream Implem. Discount'!$C$16 -> 40.00% | O64: 0 | Q64: <other item for vendor input (optional)> | AB64: 0 | AC64: ='10. Workstream Implem. Discount'!$C$16 -> 40.00% | AD64: 0 | AF64: <other item for vendor input (optional)> | AQ64: 0 | AR64: ='10. Workstream Implem. Discount'!$C$16 -> 40.00% | AS64: 0
B65: TOTAL | C65: =SUM(C59:C64) -> 0 | D65: 0 | E65: 0 | F65: 0 | G65: 0 | H65: 0 | I65: 0 | J65: 0 | K65: 0 | L65: 0 | M65: 0 | N65: ='10. Workstream Implem. Discount'!$C$16 -> 40.00% | O65: =SUM(O59:O64) -> 0 | Q65: TOTAL | R65: =SUM(R59:R64) -> 0 | S65: 0 | T65: 0 | U65: 0 | V65: 0 | W65: 0 | X65: 0 | Y65: 0 | Z65: 0 | AA65: 0 | AB65: 0 | AC65: ='10. Workstream Implem. Discount'!$C$16 -> 40.00% | AD65: =SUM(AD59:AD64) -> 0 | AF65: TOTAL | AG65: =SUM(AG59:AG64) -> 0 | AH65: 0 | AI65: 0 | AJ65: 0 | AK65: 0 | AL65: 0 | AM65: 0 | AN65: 0 | AO65: 0 | AP65: 0 | AQ65: 0 | AR65: ='10. Workstream Implem. Discount'!$C$16 -> 40.00% | AS65: =SUM(AS59:AS64) -> 0
B68: D. Managed Services Support Costs (Note: "Total" values should equal the "Final Costs" values for Managed ServicesSupport in Table A.) | Q68: D. Managed Services Support Costs (Note: "Total" values should equal the "Final Costs" values for Managed ServicesSupport in Table A.) | AF68: D. Managed Services Support Costs (Note: "Total" values should equal the "Final Costs" values for Managed ServicesSupport in Table A.)
C69: Year 1 | D69: Year 2 | E69: Year 3 | F69: Year 4 | G69: Year 5 | H69: Year 6 | I69: Year 7 | J69: Year 8 | K69: Year 9 | L69: Year 10 | M69: Total | N69: Discount (%) | O69: Final Costs | R69: Year 1 | S69: Year 2 | T69: Year 3 | U69: Year 4 | V69: Year 5 | W69: Year 6 | X69: Year 7 | Y69: Year 8 | Z69: Year 9 | AA69: Year 10 | AB69: Total | AC69: Discount (%) | AD69: Final Costs | AG69: Year 1 | AH69: Year 2 | AI69: Year 3 | AJ69: Year 4 | AK69: Year 5 | AL69: Year 6 | AM69: Year 7 | AN69: Year 8 | AO69: Year 9 | AP69: Year 10 | AQ69: Total | AR69: Discount (%) | AS69: Final Costs
B70: On-site System Stabilization Support | M70: =SUM(C70:L70) -> 0 | N70: ='10. Workstream Implem. Discount'!$C$17 -> 50.00% | O70: =(1-N70)*M70 -> 0 | Q70: On-site System Stabilization Support | AB70: =SUM(R70:AA70) -> 0 | AC70: ='10. Workstream Implem. Discount'!$C$17 -> 50.00% | AD70: =(1-AC70)*AB70 -> 0 | AF70: On-site System Stabilization Support | AQ70: =SUM(AG70:AP70) -> 0 | AR70: ='10. Workstream Implem. Discount'!$C$17 -> 50.00% | AS70: =(1-AR70)*AQ70 -> 0
B71: Third Party Licensing (e.g. NIGP Codes) | M71: 0 | N71: ='10. Workstream Implem. Discount'!$C$17 -> 50.00% | O71: 0 | Q71: Third Party Licensing (e.g. NIGP Codes) | AB71: 0 | AC71: ='10. Workstream Implem. Discount'!$C$17 -> 50.00% | AD71: 0 | AF71: Third Party Licensing (e.g. NIGP Codes) | AQ71: 0 | AR71: ='10. Workstream Implem. Discount'!$C$17 -> 50.00% | AS71: 0
B72: Transition Out Assistance Services | M72: 0 | N72: ='10. Workstream Implem. Discount'!$C$17 -> 50.00% | O72: 0 | Q72: Transition Out Assistance Services | AB72: 0 | AC72: ='10. Workstream Implem. Discount'!$C$17 -> 50.00% | AD72: 0 | AF72: Transition Out Assistance Services | AQ72: 0 | AR72: ='10. Workstream Implem. Discount'!$C$17 -> 50.00% | AS72: 0
B73: <other item for vendor input (optional)> | M73: 0 | N73: ='10. Workstream Implem. Discount'!$C$17 -> 50.00% | O73: 0 | Q73: <other item for vendor input (optional)> | AB73: 0 | AC73: ='10. Workstream Implem. Discount'!$C$17 -> 50.00% | AD73: 0 | AF73: <other item for vendor input (optional)> | AQ73: 0 | AR73: ='10. Workstream Implem. Discount'!$C$17 -> 50.00% | AS73: 0
B74: <other item for vendor input (optional)> | M74: 0 | N74: ='10. Workstream Implem. Discount'!$C$17 -> 50.00% | O74: 0 | Q74: <other item for vendor input (optional)> | AB74: 0 | AC74: ='10. Workstream Implem. Discount'!$C$17 -> 50.00% | AD74: 0 | AF74: <other item for vendor input (optional)> | AQ74: 0 | AR74: ='10. Workstream Implem. Discount'!$C$17 -> 50.00% | AS74: 0
B75: <other item for vendor input (optional)> | M75: 0 | N75: ='10. Workstream Implem. Discount'!$C$17 -> 50.00% | O75: 0 | Q75: <other item for vendor input (optional)> | AB75: 0 | AC75: ='10. Workstream Implem. Discount'!$C$17 -> 50.00% | AD75: 0 | AF75: <other item for vendor input (optional)> | AQ75: 0 | AR75: ='10. Workstream Implem. Discount'!$C$17 -> 50.00% | AS75: 0
B76: <other item for vendor input (optional)> | M76: 0 | N76: ='10. Workstream Implem. Discount'!$C$17 -> 50.00% | O76: 0 | Q76: <other item for vendor input (optional)> | AB76: 0 | AC76: ='10. Workstream Implem. Discount'!$C$17 -> 50.00% | AD76: 0 | AF76: <other item for vendor input (optional)> | AQ76: 0 | AR76: ='10. Workstream Implem. Discount'!$C$17 -> 50.00% | AS76: 0
B77: <other item for vendor input (optional)> | M77: 0 | N77: ='10. Workstream Implem. Discount'!$C$17 -> 50.00% | O77: 0 | Q77: <other item for vendor input (optional)> | AB77: 0 | AC77: ='10. Workstream Implem. Discount'!$C$17 -> 50.00% | AD77: 0 | AF77: <other item for vendor input (optional)> | AQ77: 0 | AR77: ='10. Workstream Implem. Discount'!$C$17 -> 50.00% | AS77: 0
B78: TOTAL | C78: =SUM(C70:C77) -> 0 | D78: 0 | E78: 0 | F78: 0 | G78: 0 | H78: 0 | I78: 0 | J78: 0 | K78: 0 | L78: 0 | M78: 0 | N78: ='10. Workstream Implem. Discount'!$C$17 -> 50.00% | O78: =SUM(O70:O77) -> 0 | Q78: TOTAL | R78: =SUM(R70:R77) -> 0 | S78: 0 | T78: 0 | U78: 0 | V78: 0 | W78: 0 | X78: 0 | Y78: 0 | Z78: 0 | AA78: 0 | AB78: 0 | AC78: ='10. Workstream Implem. Discount'!$C$17 -> 50.00% | AD78: =SUM(AD70:AD77) -> 0 | AF78: TOTAL | AG78: =SUM(AG70:AG77) -> 0 | AH78: 0 | AI78: 0 | AJ78: 0 | AK78: 0 | AL78: 0 | AM78: 0 | AN78: 0 | AO78: 0 | AP78: 0 | AQ78: 0 | AR78: ='10. Workstream Implem. Discount'!$C$17 -> 50.00% | AS78: =SUM(AS70:AS77) -> 0
B81: *E. Assumptions | Q81: *E. Assumptions | AF81: *E. Assumptions
B88: <insert rows for additional Assumptions> | Q88: <insert rows for additional Assumptions> | AF88: <insert rows for additional Assumptions>

Sheet 2. Buyer Portal
B1: RFP# 202102021 - eProcurement Solution and Services
B2: Cost Proposal Workbook - WORKSTREAM IMPLEMENTATION
B3: Bidder's Name:
B6: Instructions: The Fixed Pricing is to reflect contracting for the IMPLEMENTATION and SOFTWARE of an eProcurement Solution for the specific Workstream as required in Sections A thru F of the RFP for the specifically identified Scenarios on this Tab.
B7: 1. In the tables below Bidders must provide the firm, fixed prices in each yellow shaded cell that corresponds to the detail listed in each table. Bidders are to provide prices for the three identified scenarios which reflect the concepts of small, medium and large States. There are separate sets of tables for each scenario and bidders must provide complete responses for each scenario. NOTE: Scenario scope that is not relevant to the specific Workstream being proposed does not have to be addressed however Bidders must list the specific Scope areas not addressed by the proposed solution in Table E "Assumptions".
B8: 2. In Table A, Bidders must provide the overall pricing breakdown of what is included to deliver the identified eProcurement Solution/Service that meets the associated requirements detailed in the RFP and RTM. The prices must include the licensing and maintenance costs, implemetation costs for deployment, and the costs for on-going operations and support of the implemented Solution. TThe costs in this table reflect the total Final Cost values in Tables B-D which have had the proposed discount (Tab 2) applied.
B9: 3. In Table B, Bidders must provide the total hours, costs, and discounted Final Costs as per relevant proposaed discount identifed on "Tab 2. Complete Solution Discount" for the approach to implement the identified workstream functionality, integations, conversion from existing State systems, staffing and support services, etc. as described in each Scenario.
B10: 4. In Table C, Bidders must provide pricing details for the Licensing and Maintenance proposed for the identified workstream/module, integration, and applications that meet the relevant requirements of this RFP. The discounted Final Costs represents applying the relevant proposed discount from "Tab 2. Complete Solution Discount" to the Total.
B11: 5. In Table D, Bidders must provide pricing details for the proposed Managed Services for the identified workstream to meet the requirements described in Section F of the RFP. The discounted Final Costs represents applying the relevant discount from "Tab 2. Complete Solution Discount" to the Total.
B12: 6. In Table E, Bidders must document all assumptions that are reflected in the proposed Pricing. Bidders proposing services only must identify the specific eProcurement solution(s) that the proposed services costs reflect.
B14: SCENARIOs
B15: Scope Common to all Scenarios | C15: • 24 month implementation period • Suppliers managed through eProcurement Solution • State provides dedicated Project Team including Project Sponsor, Project Manager, Functional Lead, Technical Lead, SMEs, Testers, Trainers and technical staff for the state side of integration programming. • Implementation Services provided include o Integration/Interface to on-premise Finance system > PeopleSoft 9.2 > Real-time integration points to Finance - Supplier accounts, create/update (eProcurement solution is system of record) - Requisitions - Purchase Orders/Change Orders - Invoice ‘Ok to Pay’ > Batch interface points - Chart of Accounts values from Finance - Receiving to Finance o Organizational Change Management Services o Training Services > Contractor delivered End User training for 25% of scenario user count > 'Train the Trainer' training for 10 State staff > Supplier training through 20 live webinars o Help Desk Services: Full end user support, State and Supplier • Managed Services provided include o Solution Support o Additional Help Desk Services; as described above for 6 months after go-live of final solution component o On-site System Stabilization Support for 3 months after go-live of final solution component
B16: Scenario I - Large State | C16: GDP: $700 Billion Spend: $8 Billion/year Population: 11 Million State Employees: 125,000 User Count: 1,250 Buyers, 11,250 End Users Suppliers: 100,000 with 60,000 to be converted from the Finance System during implementation. Contracts: 1,000 Central Procurement Office issued, 2500 Agency issued. Data conversion of basic data from the Finance System during implementation for all Contracts. Solicitations: 2,400/year Catalogs: 1000 Hosted, 100 Punchouts with no catalogs to be converted from the Finance System during implementation. Purchase Orders: 400,000 issued/year Invoices: 600,000/year
B17: Scenario II - Medium State | C17: GDP: $300 Billion Spend: $4 Billion/year Population: 6 Million State Employees: 70,000 User Count: 700 Buyers, 6,300 End Users Suppliers: 75,000 with 50,000 to be converted from the Finance System during implementation. Contracts: 800 Central Procurement Office issued, 2000 Agency issued. Data conversion of basic data from the Finance System during implementation for all Contracts. Solicitations: 1,600/year Catalogs: 1000 Hosted, 80 Punchouts with no catalogs to be converted from the Finance System during implementation. Purchase Orders: 150,000 issued/year Invoices: 225,000/year
B18: Scenario III - Small State | C18: GDP: $100 Billion Spend: $2 Billion/year Population: 3 Million State Employees: 50,000 User Count: 500 Buyers, 4,500 End Users Suppliers: 50,000 with 35,000 to be converted from the Finance System during implementation. Contracts: 500 Central Procurement Office issued, 1500 Agency issued. Data conversion of basic data from the Finance System during implementation for all Contracts. Solicitations: 1,000/year Catalogs: 500 Hosted, 60 Punchouts with no catalogs to be converted from the Finance System during implementation. Purchase Orders: 80,000 issued/year Invoices: 105,000/year
B20: SCENARIO I - LARGE STATE PRICING | Q20: SCENARIO II - MEDIUM STATE PRICING | AF20: SCENARIO III - SMALL STATE PRICING
B22: A. Overall Cost Proposal (The all-in-costs necessary to provide an eProcurement Solution that meet the mandatory requirements of the RFP and is a total of the values in Tables B-D) | Q22: A. Overall Cost Proposal (The all-in-costs necessary to provide an eProcurement Solution that meet the mandatory requirements of the RFP and is a total of the values in Tables B-D) | AF22: A. Overall Cost Proposal (The all-in-costs necessary to provide an eProcurement Solution that meet the mandatory requirements of the RFP and is a total of the values in Tables B-D)
C23: Year 1 | D23: Year 2 | E23: Year 3 | F23: Year 4 | G23: Year 5 | H23: Year 6 | I23: Year 7 | J23: Year 8 | K23: Year 9 | L23: Year 10 | M23: Total | R23: Year 1 | S23: Year 2 | T23: Year 3 | U23: Year 4 | V23: Year 5 | W23: Year 6 | X23: Year 7 | Y23: Year 8 | Z23: Year 9 | AA23: Year 10 | AB23: Total | AG23: Year 1 | AH23: Year 2 | AI23: Year 3 | AJ23: Year 4 | AK23: Year 5 | AL23: Year 6 | AM23: Year 7 | AN23: Year 8 | AO23: Year 9 | AP23: Year 10 | AQ23: Total
B24: Solution Implementation Costs | C24: =D54*(1-'10. Workstream Implem. Discount'!$C$15) -> 0 | D24: =F54*(1-'10. Workstream Implem. Discount'!$C$15) -> 0 | M24: =SUM(C24:L24) -> 0 | Q24: Solution Implementation Costs | R24: =S54*(1-'10. Workstream Implem. Discount'!$C$15) -> 0 | S24: =U54*(1-'10. Workstream Implem. Discount'!$C$15) -> 0 | AB24: =SUM(R24:AA24) -> 0 | AF24: Solution Implementation Costs | AG24: =AH54*(1-'10. Workstream Implem. Discount'!$C$15) -> 0 | AH24: =AJ54*(1-'10. Workstream Implem. Discount'!$C$15) -> 0 | AQ24: =SUM(AG24:AP24) -> 0
B25: Annual Licensing/Maintenance Costs | C25: =C65*(1-'10. Workstream Implem. Discount'!$C$16) -> 0 | D25: =D65*(1-'10. Workstream Implem. Discount'!$C$16) -> 0 | E25: =E65*(1-'10. Workstream Implem. Discount'!$C$16) -> 0 | F25: =F65*(1-'10. Workstream Implem. Discount'!$C$16) -> 0 | G25: =G65*(1-'10. Workstream Implem. Discount'!$C$16) -> 0 | H25: =H65*(1-'10. Workstream Implem. Discount'!$C$16) -> 0 | I25: =I65*(1-'10. Workstream Implem. Discount'!$C$16) -> 0 | J25: =J65*(1-'10. Workstream Implem. Discount'!$C$16) -> 0 | K25: =K65*(1-'10. Workstream Implem. Discount'!$C$16) -> 0 | L25: =L65*(1-'10. Workstream Implem. Discount'!$C$16) -> 0 | M25: 0 | Q25: Annual Licensing/Maintenance Costs | R25: =R65*(1-'10. Workstream Implem. Discount'!$C$16) -> 0 | S25: =S65*(1-'10. Workstream Implem. Discount'!$C$16) -> 0 | T25: =T65*(1-'10. Workstream Implem. Discount'!$C$16) -> 0 | U25: =U65*(1-'10. Workstream Implem. Discount'!$C$16) -> 0 | V25: =V65*(1-'10. Workstream Implem. Discount'!$C$16) -> 0 | W25: =W65*(1-'10. Workstream Implem. Discount'!$C$16) -> 0 | X25: =X65*(1-'10. Workstream Implem. Discount'!$C$16) -> 0 | Y25: =Y65*(1-'10. Workstream Implem. Discount'!$C$16) -> 0 | Z25: =Z65*(1-'10. Workstream Implem. Discount'!$C$16) -> 0 | AA25: =AA65*(1-'10. Workstream Implem. Discount'!$C$16) -> 0 | AB25: 0 | AF25: Annual Licensing/Maintenance Costs | AG25: =AG65*(1-'10. Workstream Implem. Discount'!$C$16) -> 0 | AH25: =AH65*(1-'10. Workstream Implem. Discount'!$C$16) -> 0 | AI25: =AI65*(1-'10. Workstream Implem. Discount'!$C$16) -> 0 | AJ25: =AJ65*(1-'10. Workstream Implem. Discount'!$C$16) -> 0 | AK25: =AK65*(1-'10. Workstream Implem. Discount'!$C$16) -> 0 | AL25: =AL65*(1-'10. Workstream Implem. Discount'!$C$16) -> 0 | AM25: =AM65*(1-'10. Workstream Implem. Discount'!$C$16) -> 0 | AN25: =AN65*(1-'10. Workstream Implem. Discount'!$C$16) -> 0 | AO25: =AO65*(1-'10. Workstream Implem. Discount'!$C$16) -> 0 | AP25: =AP65*(1-'10. Workstream Implem. Discount'!$C$16) -> 0 | AQ25: 0
B26: Managed Services Support Costs | C26: =C78*(1-'10. Workstream Implem. Discount'!$C$17) -> 0 | D26: =D78*(1-'10. Workstream Implem. Discount'!$C$17) -> 0 | E26: =E78*(1-'10. Workstream Implem. Discount'!$C$17) -> 0 | F26: =F78*(1-'10. Workstream Implem. Discount'!$C$17) -> 0 | G26: =G78*(1-'10. Workstream Implem. Discount'!$C$17) -> 0 | H26: =H78*(1-'10. Workstream Implem. Discount'!$C$17) -> 0 | I26: =I78*(1-'10. Workstream Implem. Discount'!$C$17) -> 0 | J26: =J78*(1-'10. Workstream Implem. Discount'!$C$17) -> 0 | K26: =K78*(1-'10. Workstream Implem. Discount'!$C$17) -> 0 | L26: =L78*(1-'10. Workstream Implem. Discount'!$C$17) -> 0 | M26: 0 | Q26: Managed Services Support Costs | R26: =R78*(1-'10. Workstream Implem. Discount'!$C$17) -> 0 | S26: =S78*(1-'10. Workstream Implem. Discount'!$C$17) -> 0 | T26: =T78*(1-'10. Workstream Implem. Discount'!$C$17) -> 0 | U26: =U78*(1-'10. Workstream Implem. Discount'!$C$17) -> 0 | V26: =V78*(1-'10. Workstream Implem. Discount'!$C$17) -> 0 | W26: =W78*(1-'10. Workstream Implem. Discount'!$C$17) -> 0 | X26: =X78*(1-'10. Workstream Implem. Discount'!$C$17) -> 0 | Y26: =Y78*(1-'10. Workstream Implem. Discount'!$C$17) -> 0 | Z26: =Z78*(1-'10. Workstream Implem. Discount'!$C$17) -> 0 | AA26: =AA78*(1-'10. Workstream Implem. Discount'!$C$17) -> 0 | AB26: 0 | AF26: Managed Services Support Costs | AG26: =AG78*(1-'10. Workstream Implem. Discount'!$C$17) -> 0 | AH26: =AH78*(1-'10. Workstream Implem. Discount'!$C$17) -> 0 | AI26: =AI78*(1-'10. Workstream Implem. Discount'!$C$17) -> 0 | AJ26: =AJ78*(1-'10. Workstream Implem. Discount'!$C$17) -> 0 | AK26: =AK78*(1-'10. Workstream Implem. Discount'!$C$17) -> 0 | AL26: =AL78*(1-'10. Workstream Implem. Discount'!$C$17) -> 0 | AM26: =AM78*(1-'10. Workstream Implem. Discount'!$C$17) -> 0 | AN26: =AN78*(1-'10. Workstream Implem. Discount'!$C$17) -> 0 | AO26: =AO78*(1-'10. Workstream Implem. Discount'!$C$17) -> 0 | AP26: =AP78*(1-'10. Workstream Implem. Discount'!$C$17) -> 0 | AQ26: 0
B27: <other item for vendor input (optional)> | M27: 0 | Q27: <other item for vendor input (optional)> | AB27: 0 | AF27: <other item for vendor input (optional)> | AQ27: 0
B28: <other item for vendor input (optional)> | M28: 0 | Q28: <other item for vendor input (optional)> | AB28: 0 | AF28: <other item for vendor input (optional)> | AQ28: 0
B29: <other item for vendor input (optional)> | M29: 0 | Q29: <other item for vendor input (optional)> | AB29: 0 | AF29: <other item for vendor input (optional)> | AQ29: 0
B30: <other item for vendor input (optional)> | M30: 0 | Q30: <other item for vendor input (optional)> | AB30: 0 | AF30: <other item for vendor input (optional)> | AQ30: 0
B31: <other item for vendor input (optional)> | M31: 0 | Q31: <other item for vendor input (optional)> | AB31: 0 | AF31: <other item for vendor input (optional)> | AQ31: 0
B32: <other item for vendor input (optional)> | M32: 0 | Q32: <other item for vendor input (optional)> | AB32: 0 | AF32: <other item for vendor input (optional)> | AQ32: 0
B33: TOTAL | C33: =SUM(C24:C32) -> 0 | D33: 0 | E33: 0 | F33: 0 | G33: 0 | H33: 0 | I33: 0 | J33: 0 | K33: 0 | L33: 0 | M33: 0 | Q33: TOTAL | R33: =SUM(R24:R32) -> 0 | S33: 0 | T33: 0 | U33: 0 | V33: 0 | W33: 0 | X33: 0 | Y33: 0 | Z33: 0 | AA33: 0 | AB33: 0 | AF33: TOTAL | AG33: =SUM(AG24:AG32) -> 0 | AH33: 0 | AI33: 0 | AJ33: 0 | AK33: 0 | AL33: 0 | AM33: 0 | AN33: 0 | AO33: 0 | AP33: 0 | AQ33: 0
B35: B. Solution Implementation Costs - Distribute over Years 1 & 2 Note: "Final Costs" values should equal the "Total" values for Solution Implementation in Table A. | Q35: B. Solution Implementation Costs - Distribute over Years 1 & 2 Note: "Final Costs" values should equal the "Total" values for Solution Implementation in Table A. | AF35: B. Solution Implementation Costs - Distribute over Years 1 & 2 Note: "Final Costs" values should equal the "Total" values for Solution Implementation in Table A.
C36: Year 1 | E36: Year 2 | G36: Totals | R36: Year 1 | T36: Year 2 | V36: Totals | AG36: Year 1 | AI36: Year 2 | AK36: Totals
B37: Workstream Costs: | C37: Hours | D37: Costs | E37: Hours | F37: Costs | G37: Hours | H37: Costs | I37: Discount (%) | J37: Final Costs | Q37: Workstream Costs: | R37: Hours | S37: Costs | T37: Hours | U37: Costs | V37: Hours | W37: Costs | X37: Discount (%) | Y37: Final Costs | AF37: Workstream Costs: | AG37: Hours | AH37: Costs | AI37: Hours | AJ37: Costs | AK37: Hours | AL37: Costs | AM37: Discount (%) | AN37: Final Costs
B38: Purchasing/Data Analytics | G38: =C38+E38 -> 0 | H38: =SUM(D38+F38) -> 0 | I38: ='10. Workstream Implem. Discount'!$C$15 -> 60.00% | J38: =(1-I38)*H38 -> 0 | Q38: Purchasing/Data Analytics | V38: =R38+T38 -> 0 | W38: =SUM(S38+U38) -> 0 | X38: ='10. Workstream Implem. Discount'!$C$15 -> 60.00% | Y38: =(1-X38)*W38 -> 0 | AF38: Purchasing/Data Analytics | AK38: =AG38+AI38 -> 0 | AL38: =SUM(AH38+AJ38) -> 0 | AM38: ='10. Workstream Implem. Discount'!$C$15 -> 60.00% | AN38: =(1-AM38)*AL38 -> 0
B39: Integration to Finance System | G39: 0 | H39: 0 | I39: ='10. Workstream Implem. Discount'!$C$15 -> 60.00% | J39: 0 | Q39: Integration to Finance System | V39: 0 | W39: 0 | X39: ='10. Workstream Implem. Discount'!$C$15 -> 60.00% | Y39: 0 | AF39: Integration to Finance System | AK39: 0 | AL39: 0 | AM39: ='10. Workstream Implem. Discount'!$C$15 -> 60.00% | AN39: 0
B40: <other item for vendor input (optional)> | G40: 0 | H40: 0 | I40: ='10. Workstream Implem. Discount'!$C$15 -> 60.00% | J40: 0 | Q40: <other item for vendor input (optional)> | V40: 0 | W40: 0 | X40: ='10. Workstream Implem. Discount'!$C$15 -> 60.00% | Y40: 0 | AF40: <other item for vendor input (optional)> | AK40: 0 | AL40: 0 | AM40: ='10. Workstream Implem. Discount'!$C$15 -> 60.00% | AN40: 0
B41: <other item for vendor input (optional)> | G41: 0 | H41: 0 | I41: ='10. Workstream Implem. Discount'!$C$15 -> 60.00% | J41: 0 | Q41: <other item for vendor input (optional)> | V41: 0 | W41: 0 | X41: ='10. Workstream Implem. Discount'!$C$15 -> 60.00% | Y41: 0 | AF41: <other item for vendor input (optional)> | AK41: 0 | AL41: 0 | AM41: ='10. Workstream Implem. Discount'!$C$15 -> 60.00% | AN41: 0
B42: <other item for vendor input (optional)> | G42: 0 | H42: 0 | I42: ='10. Workstream Implem. Discount'!$C$15 -> 60.00% | J42: 0 | Q42: <other item for vendor input (optional)> | V42: 0 | W42: 0 | X42: ='10. Workstream Implem. Discount'!$C$15 -> 60.00% | Y42: 0 | AF42: <other item for vendor input (optional)> | AK42: 0 | AL42: 0 | AM42: ='10. Workstream Implem. Discount'!$C$15 -> 60.00% | AN42: 0
B43: Supporting Services: | Q43: Supporting Services: | AF43: Supporting Services:
B44: Project Initiation | G44: =C44+E44 -> 0 | H44: =SUM(D44+F44) -> 0 | I44: ='10. Workstream Implem. Discount'!$C$15 -> 60.00% | J44: =(1-I44)*H44 -> 0 | Q44: Project Initiation | V44: =R44+T44 -> 0 | W44: =SUM(S44+U44) -> 0 | X44: ='10. Workstream Implem. Discount'!$C$15 -> 60.00% | Y44: =(1-X44)*W44 -> 0 | AF44: Project Initiation | AK44: =AG44+AI44 -> 0 | AL44: =SUM(AH44+AJ44) -> 0 | AM44: ='10. Workstream Implem. Discount'!$C$15 -> 60.00% | AN44: =(1-AM44)*AL44 -> 0
B45: Project Management | G45: 0 | H45: 0 | I45: ='10. Workstream Implem. Discount'!$C$15 -> 60.00% | J45: 0 | Q45: Project Management | V45: 0 | W45: 0 | X45: ='10. Workstream Implem. Discount'!$C$15 -> 60.00% | Y45: 0 | AF45: Project Management | AK45: 0 | AL45: 0 | AM45: ='10. Workstream Implem. Discount'!$C$15 -> 60.00% | AN45: 0
B46: Change Management | G46: 0 | H46: 0 | I46: ='10. Workstream Implem. Discount'!$C$15 -> 60.00% | J46: 0 | Q46: Change Management | V46: 0 | W46: 0 | X46: ='10. Workstream Implem. Discount'!$C$15 -> 60.00% | Y46: 0 | AF46: Change Management | AK46: 0 | AL46: 0 | AM46: ='10. Workstream Implem. Discount'!$C$15 -> 60.00% | AN46: 0
B47: Training Services | G47: 0 | H47: 0 | I47: ='10. Workstream Implem. Discount'!$C$15 -> 60.00% | J47: 0 | Q47: Training Services | V47: 0 | W47: 0 | X47: ='10. Workstream Implem. Discount'!$C$15 -> 60.00% | Y47: 0 | AF47: Training Services | AK47: 0 | AL47: 0 | AM47: ='10. Workstream Implem. Discount'!$C$15 -> 60.00% | AN47: 0
B48: Help Desk Services (Costs for period from contract award through 6 months following t'Go Live' | G48: 0 | H48: 0 | I48: ='10. Workstream Implem. Discount'!$C$15 -> 60.00% | J48: 0 | Q48: Help Desk Services (Costs for period from contract award through 6 months following t'Go Live' | V48: 0 | W48: 0 | X48: ='10. Workstream Implem. Discount'!$C$15 -> 60.00% | Y48: 0 | AF48: Help Desk Services (Costs for period from contract award through 6 months following t'Go Live' | AK48: 0 | AL48: 0 | AM48: ='10. Workstream Implem. Discount'!$C$15 -> 60.00% | AN48: 0
B49: <other item for vendor input (optional)> | G49: 0 | H49: 0 | I49: ='10. Workstream Implem. Discount'!$C$15 -> 60.00% | J49: 0 | Q49: <other item for vendor input (optional)> | V49: 0 | W49: 0 | X49: ='10. Workstream Implem. Discount'!$C$15 -> 60.00% | Y49: 0 | AF49: <other item for vendor input (optional)> | AK49: 0 | AL49: 0 | AM49: ='10. Workstream Implem. Discount'!$C$15 -> 60.00% | AN49: 0
B50: <other item for vendor input (optional)> | G50: 0 | H50: 0 | I50: ='10. Workstream Implem. Discount'!$C$15 -> 60.00% | J50: 0 | Q50: <other item for vendor input (optional)> | V50: 0 | W50: 0 | X50: ='10. Workstream Implem. Discount'!$C$15 -> 60.00% | Y50: 0 | AF50: <other item for vendor input (optional)> | AK50: 0 | AL50: 0 | AM50: ='10. Workstream Implem. Discount'!$C$15 -> 60.00% | AN50: 0
B51: <other item for vendor input (optional)> | G51: 0 | H51: 0 | I51: ='10. Workstream Implem. Discount'!$C$15 -> 60.00% | J51: 0 | Q51: <other item for vendor input (optional)> | V51: 0 | W51: 0 | X51: ='10. Workstream Implem. Discount'!$C$15 -> 60.00% | Y51: 0 | AF51: <other item for vendor input (optional)> | AK51: 0 | AL51: 0 | AM51: ='10. Workstream Implem. Discount'!$C$15 -> 60.00% | AN51: 0
B52: <other item for vendor input (optional)> | G52: 0 | H52: 0 | I52: ='10. Workstream Implem. Discount'!$C$15 -> 60.00% | J52: 0 | Q52: <other item for vendor input (optional)> | V52: 0 | W52: 0 | X52: ='10. Workstream Implem. Discount'!$C$15 -> 60.00% | Y52: 0 | AF52: <other item for vendor input (optional)> | AK52: 0 | AL52: 0 | AM52: ='10. Workstream Implem. Discount'!$C$15 -> 60.00% | AN52: 0
B53: <other item for vendor input (optional)> | G53: 0 | H53: 0 | I53: ='10. Workstream Implem. Discount'!$C$15 -> 60.00% | J53: 0 | Q53: <other item for vendor input (optional)> | V53: 0 | W53: 0 | X53: ='10. Workstream Implem. Discount'!$C$15 -> 60.00% | Y53: 0 | AF53: <other item for vendor input (optional)> | AK53: 0 | AL53: 0 | AM53: ='10. Workstream Implem. Discount'!$C$15 -> 60.00% | AN53: 0
B54: Total | D54: =SUM(D38:D42,D44:D53) -> 0 | F54: =SUM(F38:F42,F44:F53) -> 0 | H54: =SUM(H38:H42,H44:H53) -> 0 | I54: ='10. Workstream Implem. Discount'!$C$15 -> 60.00% | J54: =SUM(J38:J42,J44:J53) -> 0 | Q54: Total | S54: =SUM(S38:S42,S44:S53) -> 0 | U54: =SUM(U38:U42,U44:U53) -> 0 | W54: =SUM(W38:W42,W44:W53) -> 0 | X54: ='10. Workstream Implem. Discount'!$C$15 -> 60.00% | Y54: =SUM(Y38:Y42,Y44:Y53) -> 0 | AF54: Total | AH54: =SUM(AH38:AH42,AH44:AH53) -> 0 | AJ54: =SUM(AJ38:AJ42,AJ44:AJ53) -> 0 | AL54: =SUM(AL38:AL42,AL44:AL53) -> 0 | AM54: ='10. Workstream Implem. Discount'!$C$15 -> 60.00% | AN54: =SUM(AN38:AN42,AN44:AN53) -> 0
B57: C. Annual Licensing Costs including Maintenance (Note: Unlimited users and "Final Costs" values should equal the "Total" values for Annual Licensing & Maintenance in Table A.) | Q57: C. Annual Licensing Costs including Maintenance (Note: Unlimited users and "Final Costs" values should equal the "Total" values for Annual Licensing & Maintenance in Table A.) | AF57: C. Annual Licensing Costs including Maintenance (Note: Unlimited users and "Final Costs" values should equal the "Total" values for Annual Licensing & Maintenance in Table A.)
C58: Year 1 | D58: Year 2 | E58: Year 3 | F58: Year 4 | G58: Year 5 | H58: Year 6 | I58: Year 7 | J58: Year 8 | K58: Year 9 | L58: Year 10 | M58: Total | N58: Discount (%) | O58: Final Costs | R58: Year 1 | S58: Year 2 | T58: Year 3 | U58: Year 4 | V58: Year 5 | W58: Year 6 | X58: Year 7 | Y58: Year 8 | Z58: Year 9 | AA58: Year 10 | AB58: Total | AC58: Discount (%) | AD58: Final Costs | AG58: Year 1 | AH58: Year 2 | AI58: Year 3 | AJ58: Year 4 | AK58: Year 5 | AL58: Year 6 | AM58: Year 7 | AN58: Year 8 | AO58: Year 9 | AP58: Year 10 | AQ58: Total | AR58: Discount (%) | AS58: Final Costs
B59: Purchasing/Data Analytics | M59: =SUM(C59:L59) -> 0 | N59: ='10. Workstream Implem. Discount'!$C$16 -> 40.00% | O59: =(1-N59)*M59 -> 0 | Q59: Purchasing/Data Analytics | AB59: =SUM(R59:AA59) -> 0 | AC59: ='10. Workstream Implem. Discount'!$C$16 -> 40.00% | AD59: =(1-AC59)*AB59 -> 0 | AF59: Purchasing/Data Analytics | AQ59: =SUM(AG59:AP59) -> 0 | AR59: ='10. Workstream Implem. Discount'!$C$16 -> 40.00% | AS59: =(1-AR59)*AQ59 -> 0
B60: Integration | M60: 0 | N60: ='10. Workstream Implem. Discount'!$C$16 -> 40.00% | O60: 0 | Q60: Integration | AB60: 0 | AC60: ='10. Workstream Implem. Discount'!$C$16 -> 40.00% | AD60: 0 | AF60: Integration | AQ60: 0 | AR60: ='10. Workstream Implem. Discount'!$C$16 -> 40.00% | AS60: 0
B61: <other item for vendor input (optional)> | M61: 0 | N61: ='10. Workstream Implem. Discount'!$C$16 -> 40.00% | O61: 0 | Q61: <other item for vendor input (optional)> | AB61: 0 | AC61: ='10. Workstream Implem. Discount'!$C$16 -> 40.00% | AD61: 0 | AF61: <other item for vendor input (optional)> | AQ61: 0 | AR61: ='10. Workstream Implem. Discount'!$C$16 -> 40.00% | AS61: 0
B62: <other item for vendor input (optional)> | M62: 0 | N62: ='10. Workstream Implem. Discount'!$C$16 -> 40.00% | O62: 0 | Q62: <other item for vendor input (optional)> | AB62: 0 | AC62: ='10. Workstream Implem. Discount'!$C$16 -> 40.00% | AD62: 0 | AF62: <other item for vendor input (optional)> | AQ62: 0 | AR62: ='10. Workstream Implem. Discount'!$C$16 -> 40.00% | AS62: 0
B63: <other item for vendor input (optional)> | M63: 0 | N63: ='10. Workstream Implem. Discount'!$C$16 -> 40.00% | O63: 0 | Q63: <other item for vendor input (optional)> | AB63: 0 | AC63: ='10. Workstream Implem. Discount'!$C$16 -> 40.00% | AD63: 0 | AF63: <other item for vendor input (optional)> | AQ63: 0 | AR63: ='10. Workstream Implem. Discount'!$C$16 -> 40.00% | AS63: 0
B64: <other item for vendor input (optional)> | M64: 0 | N64: ='10. Workstream Implem. Discount'!$C$16 -> 40.00% | O64: 0 | Q64: <other item for vendor input (optional)> | AB64: 0 | AC64: ='10. Workstream Implem. Discount'!$C$16 -> 40.00% | AD64: 0 | AF64: <other item for vendor input (optional)> | AQ64: 0 | AR64: ='10. Workstream Implem. Discount'!$C$16 -> 40.00% | AS64: 0
B65: TOTAL | C65: =SUM(C59:C64) -> 0 | D65: 0 | E65: 0 | F65: 0 | G65: 0 | H65: 0 | I65: 0 | J65: 0 | K65: 0 | L65: 0 | M65: 0 | N65: ='10. Workstream Implem. Discount'!$C$16 -> 40.00% | O65: =SUM(O59:O64) -> 0 | Q65: TOTAL | R65: =SUM(R59:R64) -> 0 | S65: 0 | T65: 0 | U65: 0 | V65: 0 | W65: 0 | X65: 0 | Y65: 0 | Z65: 0 | AA65: 0 | AB65: 0 | AC65: ='10. Workstream Implem. Discount'!$C$16 -> 40.00% | AD65: =SUM(AD59:AD64) -> 0 | AF65: TOTAL | AG65: =SUM(AG59:AG64) -> 0 | AH65: 0 | AI65: 0 | AJ65: 0 | AK65: 0 | AL65: 0 | AM65: 0 | AN65: 0 | AO65: 0 | AP65: 0 | AQ65: 0 | AR65: ='10. Workstream Implem. Discount'!$C$16 -> 40.00% | AS65: =SUM(AS59:AS64) -> 0
B68: D. Managed Services Support Costs (Note: "Total" values should equal the "Final Costs" values for Managed ServicesSupport in Table A.) | Q68: D. Managed Services Support Costs (Note: "Total" values should equal the "Final Costs" values for Managed ServicesSupport in Table A.) | AF68: D. Managed Services Support Costs (Note: "Total" values should equal the "Final Costs" values for Managed ServicesSupport in Table A.)
C69: Year 1 | D69: Year 2 | E69: Year 3 | F69: Year 4 | G69: Year 5 | H69: Year 6 | I69: Year 7 | J69: Year 8 | K69: Year 9 | L69: Year 10 | M69: Total | N69: Discount (%) | O69: Final Costs | R69: Year 1 | S69: Year 2 | T69: Year 3 | U69: Year 4 | V69: Year 5 | W69: Year 6 | X69: Year 7 | Y69: Year 8 | Z69: Year 9 | AA69: Year 10 | AB69: Total | AC69: Discount (%) | AD69: Final Costs | AG69: Year 1 | AH69: Year 2 | AI69: Year 3 | AJ69: Year 4 | AK69: Year 5 | AL69: Year 6 | AM69: Year 7 | AN69: Year 8 | AO69: Year 9 | AP69: Year 10 | AQ69: Total | AR69: Discount (%) | AS69: Final Costs
B70: On-site System Stabilization Support | M70: =SUM(C70:L70) -> 0 | N70: ='10. Workstream Implem. Discount'!$C$17 -> 50.00% | O70: =(1-N70)*M70 -> 0 | Q70: On-site System Stabilization Support | AB70: =SUM(R70:AA70) -> 0 | AC70: ='10. Workstream Implem. Discount'!$C$17 -> 50.00% | AD70: =(1-AC70)*AB70 -> 0 | AF70: On-site System Stabilization Support | AQ70: =SUM(AG70:AP70) -> 0 | AR70: ='10. Workstream Implem. Discount'!$C$17 -> 50.00% | AS70: =(1-AR70)*AQ70 -> 0
B71: Third Party Licensing (e.g. NIGP Codes) | M71: 0 | N71: ='10. Workstream Implem. Discount'!$C$17 -> 50.00% | O71: 0 | Q71: Third Party Licensing (e.g. NIGP Codes) | AB71: 0 | AC71: ='10. Workstream Implem. Discount'!$C$17 -> 50.00% | AD71: 0 | AF71: Third Party Licensing (e.g. NIGP Codes) | AQ71: 0 | AR71: ='10. Workstream Implem. Discount'!$C$17 -> 50.00% | AS71: 0
B72: Transition Out Assistance Services | M72: 0 | N72: ='10. Workstream Implem. Discount'!$C$17 -> 50.00% | O72: 0 | Q72: Transition Out Assistance Services | AB72: 0 | AC72: ='10. Workstream Implem. Discount'!$C$17 -> 50.00% | AD72: 0 | AF72: Transition Out Assistance Services | AQ72: 0 | AR72: ='10. Workstream Implem. Discount'!$C$17 -> 50.00% | AS72: 0
B73: <other item for vendor input (optional)> | M73: 0 | N73: ='10. Workstream Implem. Discount'!$C$17 -> 50.00% | O73: 0 | Q73: <other item for vendor input (optional)> | AB73: 0 | AC73: ='10. Workstream Implem. Discount'!$C$17 -> 50.00% | AD73: 0 | AF73: <other item for vendor input (optional)> | AQ73: 0 | AR73: ='10. Workstream Implem. Discount'!$C$17 -> 50.00% | AS73: 0
B74: <other item for vendor input (optional)> | M74: 0 | N74: ='10. Workstream Implem. Discount'!$C$17 -> 50.00% | O74: 0 | Q74: <other item for vendor input (optional)> | AB74: 0 | AC74: ='10. Workstream Implem. Discount'!$C$17 -> 50.00% | AD74: 0 | AF74: <other item for vendor input (optional)> | AQ74: 0 | AR74: ='10. Workstream Implem. Discount'!$C$17 -> 50.00% | AS74: 0
B75: <other item for vendor input (optional)> | M75: 0 | N75: ='10. Workstream Implem. Discount'!$C$17 -> 50.00% | O75: 0 | Q75: <other item for vendor input (optional)> | AB75: 0 | AC75: ='10. Workstream Implem. Discount'!$C$17 -> 50.00% | AD75: 0 | AF75: <other item for vendor input (optional)> | AQ75: 0 | AR75: ='10. Workstream Implem. Discount'!$C$17 -> 50.00% | AS75: 0
B76: <other item for vendor input (optional)> | M76: 0 | N76: ='10. Workstream Implem. Discount'!$C$17 -> 50.00% | O76: 0 | Q76: <other item for vendor input (optional)> | AB76: 0 | AC76: ='10. Workstream Implem. Discount'!$C$17 -> 50.00% | AD76: 0 | AF76: <other item for vendor input (optional)> | AQ76: 0 | AR76: ='10. Workstream Implem. Discount'!$C$17 -> 50.00% | AS76: 0
B77: <other item for vendor input (optional)> | M77: 0 | N77: ='10. Workstream Implem. Discount'!$C$17 -> 50.00% | O77: 0 | Q77: <other item for vendor input (optional)> | AB77: 0 | AC77: ='10. Workstream Implem. Discount'!$C$17 -> 50.00% | AD77: 0 | AF77: <other item for vendor input (optional)> | AQ77: 0 | AR77: ='10. Workstream Implem. Discount'!$C$17 -> 50.00% | AS77: 0
B78: TOTAL | C78: =SUM(C70:C77) -> 0 | D78: 0 | E78: 0 | F78: 0 | G78: 0 | H78: 0 | I78: 0 | J78: 0 | K78: 0 | L78: 0 | M78: 0 | N78: ='10. Workstream Implem. Discount'!$C$17 -> 50.00% | O78: =SUM(O70:O77) -> 0 | Q78: TOTAL | R78: =SUM(R70:R77) -> 0 | S78: 0 | T78: 0 | U78: 0 | V78: 0 | W78: 0 | X78: 0 | Y78: 0 | Z78: 0 | AA78: 0 | AB78: 0 | AC78: ='10. Workstream Implem. Discount'!$C$17 -> 50.00% | AD78: =SUM(AD70:AD77) -> 0 | AF78: TOTAL | AG78: =SUM(AG70:AG77) -> 0 | AH78: 0 | AI78: 0 | AJ78: 0 | AK78: 0 | AL78: 0 | AM78: 0 | AN78: 0 | AO78: 0 | AP78: 0 | AQ78: 0 | AR78: ='10. Workstream Implem. Discount'!$C$17 -> 50.00% | AS78: =SUM(AS70:AS77) -> 0
B81: *E. Assumptions | Q81: *E. Assumptions | AF81: *E. Assumptions
B88: <insert rows for additional Assumptions> | Q88: <insert rows for additional Assumptions> | AF88: <insert rows for additional Assumptions>

Sheet 3. Need Identification
B1: RFP# 202102021 - eProcurement Solution and Services
B2: Cost Proposal Workbook - WORKSTREAM IMPLEMENTATION
B3: Bidder's Name:
B6: Instructions: The Fixed Pricing is to reflect contracting for the IMPLEMENTATION and SOFTWARE of an eProcurement Solution for the specific Workstream as required in Sections A thru F of the RFP for the specifically identified Scenarios on this Tab.
B7: 1. In the tables below Bidders must provide the firm, fixed prices in each yellow shaded cell that corresponds to the detail listed in each table. Bidders are to provide prices for the three identified scenarios which reflect the concepts of small, medium and large States. There are separate sets of tables for each scenario and bidders must provide complete responses for each scenario. NOTE: Scenario scope that is not relevant to the specific Workstream being proposed does not have to be addressed however Bidders must list the specific Scope areas not addressed by the proposed solution in Table E "Assumptions".
B8: 2. In Table A, Bidders must provide the overall pricing breakdown of what is included to deliver the identified eProcurement Solution/Service that meets the associated requirements detailed in the RFP and RTM. The prices must include the licensing and maintenance costs, implemetation costs for deployment, and the costs for on-going operations and support of the implemented Solution. TThe costs in this table reflect the total Final Cost values in Tables B-D which have had the proposed discount (Tab 2) applied.
B9: 3. In Table B, Bidders must provide the total hours, costs, and discounted Final Costs as per relevant proposaed discount identifed on "Tab 2. Complete Solution Discount" for the approach to implement the identified workstream functionality, integations, conversion from existing State systems, staffing and support services, etc. as described in each Scenario.
B10: 4. In Table C, Bidders must provide pricing details for the Licensing and Maintenance proposed for the identified workstream/module, integration, and applications that meet the relevant requirements of this RFP. The discounted Final Costs represents applying the relevant proposed discount from "Tab 2. Complete Solution Discount" to the Total.
B11: 5. In Table D, Bidders must provide pricing details for the proposed Managed Services for the identified workstream to meet the requirements described in Section F of the RFP. The discounted Final Costs represents applying the relevant discount from "Tab 2. Complete Solution Discount" to the Total.
B12: 6. In Table E, Bidders must document all assumptions that are reflected in the proposed Pricing. Bidders proposing services only must identify the specific eProcurement solution(s) that the proposed services costs reflect.
B14: SCENARIOs
B15: Scope Common to all Scenarios | C15: • 24 month implementation period • Suppliers managed through eProcurement Solution • State provides dedicated Project Team including Project Sponsor, Project Manager, Functional Lead, Technical Lead, SMEs, Testers, Trainers and technical staff for the state side of integration programming. • Implementation Services provided include o Integration/Interface to on-premise Finance system > PeopleSoft 9.2 > Real-time integration points to Finance - Supplier accounts, create/update (eProcurement solution is system of record) - Requisitions - Purchase Orders/Change Orders - Invoice ‘Ok to Pay’ > Batch interface points - Chart of Accounts values from Finance - Receiving to Finance o Organizational Change Management Services o Training Services > Contractor delivered End User training for 25% of scenario user count > 'Train the Trainer' training for 10 State staff > Supplier training through 20 live webinars o Help Desk Services: Full end user support, State and Supplier • Managed Services provided include o Solution Support o Additional Help Desk Services; as described above for 6 months after go-live of final solution component o On-site System Stabilization Support for 3 months after go-live of final solution component
B16: Scenario I - Large State | C16: GDP: $700 Billion Spend: $8 Billion/year Population: 11 Million State Employees: 125,000 User Count: 1,250 Buyers, 11,250 End Users Suppliers: 100,000 with 60,000 to be converted from the Finance System during implementation. Contracts: 1,000 Central Procurement Office issued, 2500 Agency issued. Data conversion of basic data from the Finance System during implementation for all Contracts. Solicitations: 2,400/year Catalogs: 1000 Hosted, 100 Punchouts with no catalogs to be converted from the Finance System during implementation. Purchase Orders: 400,000 issued/year Invoices: 600,000/year
B17: Scenario II - Medium State | C17: GDP: $300 Billion Spend: $4 Billion/year Population: 6 Million State Employees: 70,000 User Count: 700 Buyers, 6,300 End Users Suppliers: 75,000 with 50,000 to be converted from the Finance System during implementation. Contracts: 800 Central Procurement Office issued, 2000 Agency issued. Data conversion of basic data from the Finance System during implementation for all Contracts. Solicitations: 1,600/year Catalogs: 1000 Hosted, 80 Punchouts with no catalogs to be converted from the Finance System during implementation. Purchase Orders: 150,000 issued/year Invoices: 225,000/year
B18: Scenario III - Small State | C18: GDP: $100 Billion Spend: $2 Billion/year Population: 3 Million State Employees: 50,000 User Count: 500 Buyers, 4,500 End Users Suppliers: 50,000 with 35,000 to be converted from the Finance System during implementation. Contracts: 500 Central Procurement Office issued, 1500 Agency issued. Data conversion of basic data from the Finance System during implementation for all Contracts. Solicitations: 1,000/year Catalogs: 500 Hosted, 60 Punchouts with no catalogs to be converted from the Finance System during implementation. Purchase Orders: 80,000 issued/year Invoices: 105,000/year
B20: SCENARIO I - LARGE STATE PRICING | Q20: SCENARIO II - MEDIUM STATE PRICING | AF20: SCENARIO III - SMALL STATE PRICING
B22: A. Overall Cost Proposal (The all-in-costs necessary to provide an eProcurement Solution that meet the mandatory requirements of the RFP and is a total of the values in Tables B-D) | Q22: A. Overall Cost Proposal (The all-in-costs necessary to provide an eProcurement Solution that meet the mandatory requirements of the RFP and is a total of the values in Tables B-D) | AF22: A. Overall Cost Proposal (The all-in-costs necessary to provide an eProcurement Solution that meet the mandatory requirements of the RFP and is a total of the values in Tables B-D)
C23: Year 1 | D23: Year 2 | E23: Year 3 | F23: Year 4 | G23: Year 5 | H23: Year 6 | I23: Year 7 | J23: Year 8 | K23: Year 9 | L23: Year 10 | M23: Total | R23: Year 1 | S23: Year 2 | T23: Year 3 | U23: Year 4 | V23: Year 5 | W23: Year 6 | X23: Year 7 | Y23: Year 8 | Z23: Year 9 | AA23: Year 10 | AB23: Total | AG23: Year 1 | AH23: Year 2 | AI23: Year 3 | AJ23: Year 4 | AK23: Year 5 | AL23: Year 6 | AM23: Year 7 | AN23: Year 8 | AO23: Year 9 | AP23: Year 10 | AQ23: Total
B24: Solution Implementation Costs | C24: =D54*(1-'10. Workstream Implem. Discount'!$C$15) -> 0 | D24: =F54*(1-'10. Workstream Implem. Discount'!$C$15) -> 0 | M24: =SUM(C24:L24) -> 0 | Q24: Solution Implementation Costs | R24: =S54*(1-'10. Workstream Implem. Discount'!$C$15) -> 0 | S24: =U54*(1-'10. Workstream Implem. Discount'!$C$15) -> 0 | AB24: =SUM(R24:AA24) -> 0 | AF24: Solution Implementation Costs | AG24: =AH54*(1-'10. Workstream Implem. Discount'!$C$15) -> 0 | AH24: =AJ54*(1-'10. Workstream Implem. Discount'!$C$15) -> 0 | AQ24: =SUM(AG24:AP24) -> 0
B25: Annual Licensing/Maintenance Costs | C25: =C65*(1-'10. Workstream Implem. Discount'!$C$16) -> 0 | D25: =D65*(1-'10. Workstream Implem. Discount'!$C$16) -> 0 | E25: =E65*(1-'10. Workstream Implem. Discount'!$C$16) -> 0 | F25: =F65*(1-'10. Workstream Implem. Discount'!$C$16) -> 0 | G25: =G65*(1-'10. Workstream Implem. Discount'!$C$16) -> 0 | H25: =H65*(1-'10. Workstream Implem. Discount'!$C$16) -> 0 | I25: =I65*(1-'10. Workstream Implem. Discount'!$C$16) -> 0 | J25: =J65*(1-'10. Workstream Implem. Discount'!$C$16) -> 0 | K25: =K65*(1-'10. Workstream Implem. Discount'!$C$16) -> 0 | L25: =L65*(1-'10. Workstream Implem. Discount'!$C$16) -> 0 | M25: 0 | Q25: Annual Licensing/Maintenance Costs | R25: =R65*(1-'10. Workstream Implem. Discount'!$C$16) -> 0 | S25: =S65*(1-'10. Workstream Implem. Discount'!$C$16) -> 0 | T25: =T65*(1-'10. Workstream Implem. Discount'!$C$16) -> 0 | U25: =U65*(1-'10. Workstream Implem. Discount'!$C$16) -> 0 | V25: =V65*(1-'10. Workstream Implem. Discount'!$C$16) -> 0 | W25: =W65*(1-'10. Workstream Implem. Discount'!$C$16) -> 0 | X25: =X65*(1-'10. Workstream Implem. Discount'!$C$16) -> 0 | Y25: =Y65*(1-'10. Workstream Implem. Discount'!$C$16) -> 0 | Z25: =Z65*(1-'10. Workstream Implem. Discount'!$C$16) -> 0 | AA25: =AA65*(1-'10. Workstream Implem. Discount'!$C$16) -> 0 | AB25: 0 | AF25: Annual Licensing/Maintenance Costs | AG25: =AG65*(1-'10. Workstream Implem. Discount'!$C$16) -> 0 | AH25: =AH65*(1-'10. Workstream Implem. Discount'!$C$16) -> 0 | AI25: =AI65*(1-'10. Workstream Implem. Discount'!$C$16) -> 0 | AJ25: =AJ65*(1-'10. Workstream Implem. Discount'!$C$16) -> 0 | AK25: =AK65*(1-'10. Workstream Implem. Discount'!$C$16) -> 0 | AL25: =AL65*(1-'10. Workstream Implem. Discount'!$C$16) -> 0 | AM25: =AM65*(1-'10. Workstream Implem. Discount'!$C$16) -> 0 | AN25: =AN65*(1-'10. Workstream Implem. Discount'!$C$16) -> 0 | AO25: =AO65*(1-'10. Workstream Implem. Discount'!$C$16) -> 0 | AP25: =AP65*(1-'10. Workstream Implem. Discount'!$C$16) -> 0 | AQ25: 0
B26: Managed Services Support Costs | C26: =C78*(1-'10. Workstream Implem. Discount'!$C$17) -> 0 | D26: =D78*(1-'10. Workstream Implem. Discount'!$C$17) -> 0 | E26: =E78*(1-'10. Workstream Implem. Discount'!$C$17) -> 0 | F26: =F78*(1-'10. Workstream Implem. Discount'!$C$17) -> 0 | G26: =G78*(1-'10. Workstream Implem. Discount'!$C$17) -> 0 | H26: =H78*(1-'10. Workstream Implem. Discount'!$C$17) -> 0 | I26: =I78*(1-'10. Workstream Implem. Discount'!$C$17) -> 0 | J26: =J78*(1-'10. Workstream Implem. Discount'!$C$17) -> 0 | K26: =K78*(1-'10. Workstream Implem. Discount'!$C$17) -> 0 | L26: =L78*(1-'10. Workstream Implem. Discount'!$C$17) -> 0 | M26: 0 | Q26: Managed Services Support Costs | R26: =R78*(1-'10. Workstream Implem. Discount'!$C$17) -> 0 | S26: =S78*(1-'10. Workstream Implem. Discount'!$C$17) -> 0 | T26: =T78*(1-'10. Workstream Implem. Discount'!$C$17) -> 0 | U26: =U78*(1-'10. Workstream Implem. Discount'!$C$17) -> 0 | V26: =V78*(1-'10. Workstream Implem. Discount'!$C$17) -> 0 | W26: =W78*(1-'10. Workstream Implem. Discount'!$C$17) -> 0 | X26: =X78*(1-'10. Workstream Implem. Discount'!$C$17) -> 0 | Y26: =Y78*(1-'10. Workstream Implem. Discount'!$C$17) -> 0 | Z26: =Z78*(1-'10. Workstream Implem. Discount'!$C$17) -> 0 | AA26: =AA78*(1-'10. Workstream Implem. Discount'!$C$17) -> 0 | AB26: 0 | AF26: Managed Services Support Costs | AG26: =AG78*(1-'10. Workstream Implem. Discount'!$C$17) -> 0 | AH26: =AH78*(1-'10. Workstream Implem. Discount'!$C$17) -> 0 | AI26: =AI78*(1-'10. Workstream Implem. Discount'!$C$17) -> 0 | AJ26: =AJ78*(1-'10. Workstream Implem. Discount'!$C$17) -> 0 | AK26: =AK78*(1-'10. Workstream Implem. Discount'!$C$17) -> 0 | AL26: =AL78*(1-'10. Workstream Implem. Discount'!$C$17) -> 0 | AM26: =AM78*(1-'10. Workstream Implem. Discount'!$C$17) -> 0 | AN26: =AN78*(1-'10. Workstream Implem. Discount'!$C$17) -> 0 | AO26: =AO78*(1-'10. Workstream Implem. Discount'!$C$17) -> 0 | AP26: =AP78*(1-'10. Workstream Implem. Discount'!$C$17) -> 0 | AQ26: 0
B27: <other item for vendor input (optional)> | M27: 0 | Q27: <other item for vendor input (optional)> | AB27: 0 | AF27: <other item for vendor input (optional)> | AQ27: 0
B28: <other item for vendor input (optional)> | M28: 0 | Q28: <other item for vendor input (optional)> | AB28: 0 | AF28: <other item for vendor input (optional)> | AQ28: 0
B29: <other item for vendor input (optional)> | M29: 0 | Q29: <other item for vendor input (optional)> | AB29: 0 | AF29: <other item for vendor input (optional)> | AQ29: 0
B30: <other item for vendor input (optional)> | M30: 0 | Q30: <other item for vendor input (optional)> | AB30: 0 | AF30: <other item for vendor input (optional)> | AQ30: 0
B31: <other item for vendor input (optional)> | M31: 0 | Q31: <other item for vendor input (optional)> | AB31: 0 | AF31: <other item for vendor input (optional)> | AQ31: 0
B32: <other item for vendor input (optional)> | M32: 0 | Q32: <other item for vendor input (optional)> | AB32: 0 | AF32: <other item for vendor input (optional)> | AQ32: 0
B33: TOTAL | C33: =SUM(C24:C32) -> 0 | D33: 0 | E33: 0 | F33: 0 | G33: 0 | H33: 0 | I33: 0 | J33: 0 | K33: 0 | L33: 0 | M33: 0 | Q33: TOTAL | R33: =SUM(R24:R32) -> 0 | S33: 0 | T33: 0 | U33: 0 | V33: 0 | W33: 0 | X33: 0 | Y33: 0 | Z33: 0 | AA33: 0 | AB33: 0 | AF33: TOTAL | AG33: =SUM(AG24:AG32) -> 0 | AH33: 0 | AI33: 0 | AJ33: 0 | AK33: 0 | AL33: 0 | AM33: 0 | AN33: 0 | AO33: 0 | AP33: 0 | AQ33: 0
B35: B. Solution Implementation Costs - Distribute over Years 1 & 2 Note: "Final Costs" values should equal the "Total" values for Solution Implementation in Table A. | Q35: B. Solution Implementation Costs - Distribute over Years 1 & 2 Note: "Final Costs" values should equal the "Total" values for Solution Implementation in Table A. | AF35: B. Solution Implementation Costs - Distribute over Years 1 & 2 Note: "Final Costs" values should equal the "Total" values for Solution Implementation in Table A.
C36: Year 1 | E36: Year 2 | G36: Totals | R36: Year 1 | T36: Year 2 | V36: Totals | AG36: Year 1 | AI36: Year 2 | AK36: Totals
B37: Workstream Costs: | C37: Hours | D37: Costs | E37: Hours | F37: Costs | G37: Hours | H37: Costs | I37: Discount (%) | J37: Final Costs | Q37: Workstream Costs: | R37: Hours | S37: Costs | T37: Hours | U37: Costs | V37: Hours | W37: Costs | X37: Discount (%) | Y37: Final Costs | AF37: Workstream Costs: | AG37: Hours | AH37: Costs | AI37: Hours | AJ37: Costs | AK37: Hours | AL37: Costs | AM37: Discount (%) | AN37: Final Costs
B38: Purchasing/Data Analytics | G38: =C38+E38 -> 0 | H38: =SUM(D38+F38) -> 0 | I38: ='10. Workstream Implem. Discount'!$C$15 -> 60.00% | J38: =(1-I38)*H38 -> 0 | Q38: Purchasing/Data Analytics | V38: =R38+T38 -> 0 | W38: =SUM(S38+U38) -> 0 | X38: ='10. Workstream Implem. Discount'!$C$15 -> 60.00% | Y38: =(1-X38)*W38 -> 0 | AF38: Purchasing/Data Analytics | AK38: =AG38+AI38 -> 0 | AL38: =SUM(AH38+AJ38) -> 0 | AM38: ='10. Workstream Implem. Discount'!$C$15 -> 60.00% | AN38: =(1-AM38)*AL38 -> 0
B39: Integration to Finance System | G39: 0 | H39: 0 | I39: ='10. Workstream Implem. Discount'!$C$15 -> 60.00% | J39: 0 | Q39: Integration to Finance System | V39: 0 | W39: 0 | X39: ='10. Workstream Implem. Discount'!$C$15 -> 60.00% | Y39: 0 | AF39: Integration to Finance System | AK39: 0 | AL39: 0 | AM39: ='10. Workstream Implem. Discount'!$C$15 -> 60.00% | AN39: 0
B40: <other item for vendor input (optional)> | G40: 0 | H40: 0 | I40: ='10. Workstream Implem. Discount'!$C$15 -> 60.00% | J40: 0 | Q40: <other item for vendor input (optional)> | V40: 0 | W40: 0 | X40: ='10. Workstream Implem. Discount'!$C$15 -> 60.00% | Y40: 0 | AF40: <other item for vendor input (optional)> | AK40: 0 | AL40: 0 | AM40: ='10. Workstream Implem. Discount'!$C$15 -> 60.00% | AN40: 0
B41: <other item for vendor input (optional)> | G41: 0 | H41: 0 | I41: ='10. Workstream Implem. Discount'!$C$15 -> 60.00% | J41: 0 | Q41: <other item for vendor input (optional)> | V41: 0 | W41: 0 | X41: ='10. Workstream Implem. Discount'!$C$15 -> 60.00% | Y41: 0 | AF41: <other item for vendor input (optional)> | AK41: 0 | AL41: 0 | AM41: ='10. Workstream Implem. Discount'!$C$15 -> 60.00% | AN41: 0
B42: <other item for vendor input (optional)> | G42: 0 | H42: 0 | I42: ='10. Workstream Implem. Discount'!$C$15 -> 60.00% | J42: 0 | Q42: <other item for vendor input (optional)> | V42: 0 | W42: 0 | X42: ='10. Workstream Implem. Discount'!$C$15 -> 60.00% | Y42: 0 | AF42: <other item for vendor input (optional)> | AK42: 0 | AL42: 0 | AM42: ='10. Workstream Implem. Discount'!$C$15 -> 60.00% | AN42: 0
B43: Supporting Services: | Q43: Supporting Services: | AF43: Supporting Services:
B44: Project Initiation | G44: =C44+E44 -> 0 | H44: =SUM(D44+F44) -> 0 | I44: ='10. Workstream Implem. Discount'!$C$15 -> 60.00% | J44: =(1-I44)*H44 -> 0 | Q44: Project Initiation | V44: =R44+T44 -> 0 | W44: =SUM(S44+U44) -> 0 | X44: ='10. Workstream Implem. Discount'!$C$15 -> 60.00% | Y44: =(1-X44)*W44 -> 0 | AF44: Project Initiation | AK44: =AG44+AI44 -> 0 | AL44: =SUM(AH44+AJ44) -> 0 | AM44: ='10. Workstream Implem. Discount'!$C$15 -> 60.00% | AN44: =(1-AM44)*AL44 -> 0
B45: Project Management | G45: 0 | H45: 0 | I45: ='10. Workstream Implem. Discount'!$C$15 -> 60.00% | J45: 0 | Q45: Project Management | V45: 0 | W45: 0 | X45: ='10. Workstream Implem. Discount'!$C$15 -> 60.00% | Y45: 0 | AF45: Project Management | AK45: 0 | AL45: 0 | AM45: ='10. Workstream Implem. Discount'!$C$15 -> 60.00% | AN45: 0
B46: Change Management | G46: 0 | H46: 0 | I46: ='10. Workstream Implem. Discount'!$C$15 -> 60.00% | J46: 0 | Q46: Change Management | V46: 0 | W46: 0 | X46: ='10. Workstream Implem. Discount'!$C$15 -> 60.00% | Y46: 0 | AF46: Change Management | AK46: 0 | AL46: 0 | AM46: ='10. Workstream Implem. Discount'!$C$15 -> 60.00% | AN46: 0
B47: Training Services | G47: 0 | H47: 0 | I47: ='10. Workstream Implem. Discount'!$C$15 -> 60.00% | J47: 0 | Q47: Training Services | V47: 0 | W47: 0 | X47: ='10. Workstream Implem. Discount'!$C$15 -> 60.00% | Y47: 0 | AF47: Training Services | AK47: 0 | AL47: 0 | AM47: ='10. Workstream Implem. Discount'!$C$15 -> 60.00% | AN47: 0
B48: Help Desk Services (Costs for period from contract award through 6 months following t'Go Live' | G48: 0 | H48: 0 | I48: ='10. Workstream Implem. Discount'!$C$15 -> 60.00% | J48: 0 | Q48: Help Desk Services (Costs for period from contract award through 6 months following t'Go Live' | V48: 0 | W48: 0 | X48: ='10. Workstream Implem. Discount'!$C$15 -> 60.00% | Y48: 0 | AF48: Help Desk Services (Costs for period from contract award through 6 months following t'Go Live' | AK48: 0 | AL48: 0 | AM48: ='10. Workstream Implem. Discount'!$C$15 -> 60.00% | AN48: 0
B49: <other item for vendor input (optional)> | G49: 0 | H49: 0 | I49: ='10. Workstream Implem. Discount'!$C$15 -> 60.00% | J49: 0 | Q49: <other item for vendor input (optional)> | V49: 0 | W49: 0 | X49: ='10. Workstream Implem. Discount'!$C$15 -> 60.00% | Y49: 0 | AF49: <other item for vendor input (optional)> | AK49: 0 | AL49: 0 | AM49: ='10. Workstream Implem. Discount'!$C$15 -> 60.00% | AN49: 0
B50: <other item for vendor input (optional)> | G50: 0 | H50: 0 | I50: ='10. Workstream Implem. Discount'!$C$15 -> 60.00% | J50: 0 | Q50: <other item for vendor input (optional)> | V50: 0 | W50: 0 | X50: ='10. Workstream Implem. Discount'!$C$15 -> 60.00% | Y50: 0 | AF50: <other item for vendor input (optional)> | AK50: 0 | AL50: 0 | AM50: ='10. Workstream Implem. Discount'!$C$15 -> 60.00% | AN50: 0
B51: <other item for vendor input (optional)> | G51: 0 | H51: 0 | I51: ='10. Workstream Implem. Discount'!$C$15 -> 60.00% | J51: 0 | Q51: <other item for vendor input (optional)> | V51: 0 | W51: 0 | X51: ='10. Workstream Implem. Discount'!$C$15 -> 60.00% | Y51: 0 | AF51: <other item for vendor input (optional)> | AK51: 0 | AL51: 0 | AM51: ='10. Workstream Implem. Discount'!$C$15 -> 60.00% | AN51: 0
B52: <other item for vendor input (optional)> | G52: 0 | H52: 0 | I52: ='10. Workstream Implem. Discount'!$C$15 -> 60.00% | J52: 0 | Q52: <other item for vendor input (optional)> | V52: 0 | W52: 0 | X52: ='10. Workstream Implem. Discount'!$C$15 -> 60.00% | Y52: 0 | AF52: <other item for vendor input (optional)> | AK52: 0 | AL52: 0 | AM52: ='10. Workstream Implem. Discount'!$C$15 -> 60.00% | AN52: 0
B53: <other item for vendor input (optional)> | G53: 0 | H53: 0 | I53: ='10. Workstream Implem. Discount'!$C$15 -> 60.00% | J53: 0 | Q53: <other item for vendor input (optional)> | V53: 0 | W53: 0 | X53: ='10. Workstream Implem. Discount'!$C$15 -> 60.00% | Y53: 0 | AF53: <other item for vendor input (optional)> | AK53: 0 | AL53: 0 | AM53: ='10. Workstream Implem. Discount'!$C$15 -> 60.00% | AN53: 0
B54: Total | D54: =SUM(D38:D42,D44:D53) -> 0 | F54: =SUM(F38:F42,F44:F53) -> 0 | H54: =SUM(H38:H42,H44:H53) -> 0 | I54: ='10. Workstream Implem. Discount'!$C$15 -> 60.00% | J54: =SUM(J38:J42,J44:J53) -> 0 | Q54: Total | S54: =SUM(S38:S42,S44:S53) -> 0 | U54: =SUM(U38:U42,U44:U53) -> 0 | W54: =SUM(W38:W42,W44:W53) -> 0 | X54: ='10. Workstream Implem. Discount'!$C$15 -> 60.00% | Y54: =SUM(Y38:Y42,Y44:Y53) -> 0 | AF54: Total | AH54: =SUM(AH38:AH42,AH44:AH53) -> 0 | AJ54: =SUM(AJ38:AJ42,AJ44:AJ53) -> 0 | AL54: =SUM(AL38:AL42,AL44:AL53) -> 0 | AM54: ='10. Workstream Implem. Discount'!$C$15 -> 60.00% | AN54: =SUM(AN38:AN42,AN44:AN53) -> 0
B57: C. Annual Licensing Costs including Maintenance (Note: Unlimited users and "Final Costs" values should equal the "Total" values for Annual Licensing & Maintenance in Table A.) | Q57: C. Annual Licensing Costs including Maintenance (Note: Unlimited users and "Final Costs" values should equal the "Total" values for Annual Licensing & Maintenance in Table A.) | AF57: C. Annual Licensing Costs including Maintenance (Note: Unlimited users and "Final Costs" values should equal the "Total" values for Annual Licensing & Maintenance in Table A.)
C58: Year 1 | D58: Year 2 | E58: Year 3 | F58: Year 4 | G58: Year 5 | H58: Year 6 | I58: Year 7 | J58: Year 8 | K58: Year 9 | L58: Year 10 | M58: Total | N58: Discount (%) | O58: Final Costs | R58: Year 1 | S58: Year 2 | T58: Year 3 | U58: Year 4 | V58: Year 5 | W58: Year 6 | X58: Year 7 | Y58: Year 8 | Z58: Year 9 | AA58: Year 10 | AB58: Total | AC58: Discount (%) | AD58: Final Costs | AG58: Year 1 | AH58: Year 2 | AI58: Year 3 | AJ58: Year 4 | AK58: Year 5 | AL58: Year 6 | AM58: Year 7 | AN58: Year 8 | AO58: Year 9 | AP58: Year 10 | AQ58: Total | AR58: Discount (%) | AS58: Final Costs
B59: Purchasing/Data Analytics | M59: =SUM(C59:L59) -> 0 | N59: ='10. Workstream Implem. Discount'!$C$16 -> 40.00% | O59: =(1-N59)*M59 -> 0 | Q59: Purchasing/Data Analytics | AB59: =SUM(R59:AA59) -> 0 | AC59: ='10. Workstream Implem. Discount'!$C$16 -> 40.00% | AD59: =(1-AC59)*AB59 -> 0 | AF59: Purchasing/Data Analytics | AQ59: =SUM(AG59:AP59) -> 0 | AR59: ='10. Workstream Implem. Discount'!$C$16 -> 40.00% | AS59: =(1-AR59)*AQ59 -> 0
B60: Integration | M60: 0 | N60: ='10. Workstream Implem. Discount'!$C$16 -> 40.00% | O60: 0 | Q60: Integration | AB60: 0 | AC60: ='10. Workstream Implem. Discount'!$C$16 -> 40.00% | AD60: 0 | AF60: Integration | AQ60: 0 | AR60: ='10. Workstream Implem. Discount'!$C$16 -> 40.00% | AS60: 0
B61: <other item for vendor input (optional)> | M61: 0 | N61: ='10. Workstream Implem. Discount'!$C$16 -> 40.00% | O61: 0 | Q61: <other item for vendor input (optional)> | AB61: 0 | AC61: ='10. Workstream Implem. Discount'!$C$16 -> 40.00% | AD61: 0 | AF61: <other item for vendor input (optional)> | AQ61: 0 | AR61: ='10. Workstream Implem. Discount'!$C$16 -> 40.00% | AS61: 0
B62: <other item for vendor input (optional)> | M62: 0 | N62: ='10. Workstream Implem. Discount'!$C$16 -> 40.00% | O62: 0 | Q62: <other item for vendor input (optional)> | AB62: 0 | AC62: ='10. Workstream Implem. Discount'!$C$16 -> 40.00% | AD62: 0 | AF62: <other item for vendor input (optional)> | AQ62: 0 | AR62: ='10. Workstream Implem. Discount'!$C$16 -> 40.00% | AS62: 0
B63: <other item for vendor input (optional)> | M63: 0 | N63: ='10. Workstream Implem. Discount'!$C$16 -> 40.00% | O63: 0 | Q63: <other item for vendor input (optional)> | AB63: 0 | AC63: ='10. Workstream Implem. Discount'!$C$16 -> 40.00% | AD63: 0 | AF63: <other item for vendor input (optional)> | AQ63: 0 | AR63: ='10. Workstream Implem. Discount'!$C$16 -> 40.00% | AS63: 0
B64: <other item for vendor input (optional)> | M64: 0 | N64: ='10. Workstream Implem. Discount'!$C$16 -> 40.00% | O64: 0 | Q64: <other item for vendor input (optional)> | AB64: 0 | AC64: ='10. Workstream Implem. Discount'!$C$16 -> 40.00% | AD64: 0 | AF64: <other item for vendor input (optional)> | AQ64: 0 | AR64: ='10. Workstream Implem. Discount'!$C$16 -> 40.00% | AS64: 0
B65: TOTAL | C65: =SUM(C59:C64) -> 0 | D65: 0 | E65: 0 | F65: 0 | G65: 0 | H65: 0 | I65: 0 | J65: 0 | K65: 0 | L65: 0 | M65: 0 | N65: ='10. Workstream Implem. Discount'!$C$16 -> 40.00% | O65: =SUM(O59:O64) -> 0 | Q65: TOTAL | R65: =SUM(R59:R64) -> 0 | S65: 0 | T65: 0 | U65: 0 | V65: 0 | W65: 0 | X65: 0 | Y65: 0 | Z65: 0 | AA65: 0 | AB65: 0 | AC65: ='10. Workstream Implem. Discount'!$C$16 -> 40.00% | AD65: =SUM(AD59:AD64) -> 0 | AF65: TOTAL | AG65: =SUM(AG59:AG64) -> 0 | AH65: 0 | AI65: 0 | AJ65: 0 | AK65: 0 | AL65: 0 | AM65: 0 | AN65: 0 | AO65: 0 | AP65: 0 | AQ65: 0 | AR65: ='10. Workstream Implem. Discount'!$C$16 -> 40.00% | AS65: =SUM(AS59:AS64) -> 0
B68: D. Managed Services Support Costs (Note: "Total" values should equal the "Final Costs" values for Managed ServicesSupport in Table A.) | Q68: D. Managed Services Support Costs (Note: "Total" values should equal the "Final Costs" values for Managed ServicesSupport in Table A.) | AF68: D. Managed Services Support Costs (Note: "Total" values should equal the "Final Costs" values for Managed ServicesSupport in Table A.)
C69: Year 1 | D69: Year 2 | E69: Year 3 | F69: Year 4 | G69: Year 5 | H69: Year 6 | I69: Year 7 | J69: Year 8 | K69: Year 9 | L69: Year 10 | M69: Total | N69: Discount (%) | O69: Final Costs | R69: Year 1 | S69: Year 2 | T69: Year 3 | U69: Year 4 | V69: Year 5 | W69: Year 6 | X69: Year 7 | Y69: Year 8 | Z69: Year 9 | AA69: Year 10 | AB69: Total | AC69: Discount (%) | AD69: Final Costs | AG69: Year 1 | AH69: Year 2 | AI69: Year 3 | AJ69: Year 4 | AK69: Year 5 | AL69: Year 6 | AM69: Year 7 | AN69: Year 8 | AO69: Year 9 | AP69: Year 10 | AQ69: Total | AR69: Discount (%) | AS69: Final Costs
B70: On-site System Stabilization Support | M70: =SUM(C70:L70) -> 0 | N70: ='10. Workstream Implem. Discount'!$C$17 -> 50.00% | O70: =(1-N70)*M70 -> 0 | Q70: On-site System Stabilization Support | AB70: =SUM(R70:AA70) -> 0 | AC70: ='10. Workstream Implem. Discount'!$C$17 -> 50.00% | AD70: =(1-AC70)*AB70 -> 0 | AF70: On-site System Stabilization Support | AQ70: =SUM(AG70:AP70) -> 0 | AR70: ='10. Workstream Implem. Discount'!$C$17 -> 50.00% | AS70: =(1-AR70)*AQ70 -> 0
B71: Third Party Licensing (e.g. NIGP Codes) | M71: 0 | N71: ='10. Workstream Implem. Discount'!$C$17 -> 50.00% | O71: 0 | Q71: Third Party Licensing (e.g. NIGP Codes) | AB71: 0 | AC71: ='10. Workstream Implem. Discount'!$C$17 -> 50.00% | AD71: 0 | AF71: Third Party Licensing (e.g. NIGP Codes) | AQ71: 0 | AR71: ='10. Workstream Implem. Discount'!$C$17 -> 50.00% | AS71: 0
B72: Transition Out Assistance Services | M72: 0 | N72: ='10. Workstream Implem. Discount'!$C$17 -> 50.00% | O72: 0 | Q72: Transition Out Assistance Services | AB72: 0 | AC72: ='10. Workstream Implem. Discount'!$C$17 -> 50.00% | AD72: 0 | AF72: Transition Out Assistance Services | AQ72: 0 | AR72: ='10. Workstream Implem. Discount'!$C$17 -> 50.00% | AS72: 0
B73: <other item for vendor input (optional)> | M73: 0 | N73: ='10. Workstream Implem. Discount'!$C$17 -> 50.00% | O73: 0 | Q73: <other item for vendor input (optional)> | AB73: 0 | AC73: ='10. Workstream Implem. Discount'!$C$17 -> 50.00% | AD73: 0 | AF73: <other item for vendor input (optional)> | AQ73: 0 | AR73: ='10. Workstream Implem. Discount'!$C$17 -> 50.00% | AS73: 0
B74: <other item for vendor input (optional)> | M74: 0 | N74: ='10. Workstream Implem. Discount'!$C$17 -> 50.00% | O74: 0 | Q74: <other item for vendor input (optional)> | AB74: 0 | AC74: ='10. Workstream Implem. Discount'!$C$17 -> 50.00% | AD74: 0 | AF74: <other item for vendor input (optional)> | AQ74: 0 | AR74: ='10. Workstream Implem. Discount'!$C$17 -> 50.00% | AS74: 0
B75: <other item for vendor input (optional)> | M75: 0 | N75: ='10. Workstream Implem. Discount'!$C$17 -> 50.00% | O75: 0 | Q75: <other item for vendor input (optional)> | AB75: 0 | AC75: ='10. Workstream Implem. Discount'!$C$17 -> 50.00% | AD75: 0 | AF75: <other item for vendor input (optional)> | AQ75: 0 | AR75: ='10. Workstream Implem. Discount'!$C$17 -> 50.00% | AS75: 0
B76: <other item for vendor input (optional)> | M76: 0 | N76: ='10. Workstream Implem. Discount'!$C$17 -> 50.00% | O76: 0 | Q76: <other item for vendor input (optional)> | AB76: 0 | AC76: ='10. Workstream Implem. Discount'!$C$17 -> 50.00% | AD76: 0 | AF76: <other item for vendor input (optional)> | AQ76: 0 | AR76: ='10. Workstream Implem. Discount'!$C$17 -> 50.00% | AS76: 0
B77: <other item for vendor input (optional)> | M77: 0 | N77: ='10. Workstream Implem. Discount'!$C$17 -> 50.00% | O77: 0 | Q77: <other item for vendor input (optional)> | AB77: 0 | AC77: ='10. Workstream Implem. Discount'!$C$17 -> 50.00% | AD77: 0 | AF77: <other item for vendor input (optional)> | AQ77: 0 | AR77: ='10. Workstream Implem. Discount'!$C$17 -> 50.00% | AS77: 0
B78: TOTAL | C78: =SUM(C70:C77) -> 0 | D78: 0 | E78: 0 | F78: 0 | G78: 0 | H78: 0 | I78: 0 | J78: 0 | K78: 0 | L78: 0 | M78: 0 | N78: ='10. Workstream Implem. Discount'!$C$17 -> 50.00% | O78: =SUM(O70:O77) -> 0 | Q78: TOTAL | R78: =SUM(R70:R77) -> 0 | S78: 0 | T78: 0 | U78: 0 | V78: 0 | W78: 0 | X78: 0 | Y78: 0 | Z78: 0 | AA78: 0 | AB78: 0 | AC78: ='10. Workstream Implem. Discount'!$C$17 -> 50.00% | AD78: =SUM(AD70:AD77) -> 0 | AF78: TOTAL | AG78: =SUM(AG70:AG77) -> 0 | AH78: 0 | AI78: 0 | AJ78: 0 | AK78: 0 | AL78: 0 | AM78: 0 | AN78: 0 | AO78: 0 | AP78: 0 | AQ78: 0 | AR78: ='10. Workstream Implem. Discount'!$C$17 -> 50.00% | AS78: =SUM(AS70:AS77) -> 0
B81: *E. Assumptions | Q81: *E. Assumptions | AF81: *E. Assumptions
B88: <insert rows for additional Assumptions> | Q88: <insert rows for additional Assumptions> | AF88: <insert rows for additional Assumptions>

Sheet 4. Request-Pay & Catalogs
B1: RFP# 202102021 - eProcurement Solution and Services
B2: Cost Proposal Workbook - WORKSTREAM IMPLEMENTATION
B3: Bidder's Name:
B6: Instructions: The Fixed Pricing is to reflect contracting for the IMPLEMENTATION and SOFTWARE of an eProcurement Solution for the specific Workstream as required in Sections A thru F of the RFP for the specifically identified Scenarios on this Tab.
B7: 1. In the tables below Bidders must provide the firm, fixed prices in each yellow shaded cell that corresponds to the detail listed in each table. Bidders are to provide prices for the three identified scenarios which reflect the concepts of small, medium and large States. There are separate sets of tables for each scenario and bidders must provide complete responses for each scenario. NOTE: Scenario scope that is not relevant to the specific Workstream being proposed does not have to be addressed however Bidders must list the specific Scope areas not addressed by the proposed solution in Table E "Assumptions".
B8: 2. In Table A, Bidders must provide the overall pricing breakdown of what is included to deliver the identified eProcurement Solution/Service that meets the associated requirements detailed in the RFP and RTM. The prices must include the licensing and maintenance costs, implemetation costs for deployment, and the costs for on-going operations and support of the implemented Solution. TThe costs in this table reflect the total Final Cost values in Tables B-D which have had the proposed discount (Tab 2) applied.
B9: 3. In Table B, Bidders must provide the total hours, costs, and discounted Final Costs as per relevant proposaed discount identifed on "Tab 2. Complete Solution Discount" for the approach to implement the identified workstream functionality, integations, conversion from existing State systems, staffing and support services, etc. as described in each Scenario.
B10: 4. In Table C, Bidders must provide pricing details for the Licensing and Maintenance proposed for the identified workstream/module, integration, and applications that meet the relevant requirements of this RFP. The discounted Final Costs represents applying the relevant proposed discount from "Tab 2. Complete Solution Discount" to the Total.
B11: 5. In Table D, Bidders must provide pricing details for the proposed Managed Services for the identified workstream to meet the requirements described in Section F of the RFP. The discounted Final Costs represents applying the relevant discount from "Tab 2. Complete Solution Discount" to the Total.
B12: 6. In Table E, Bidders must document all assumptions that are reflected in the proposed Pricing. Bidders proposing services only must identify the specific eProcurement solution(s) that the proposed services costs reflect.
B14: SCENARIOs
B15: Scope Common to all Scenarios | C15: • 24 month implementation period • Suppliers managed through eProcurement Solution • State provides dedicated Project Team including Project Sponsor, Project Manager, Functional Lead, Technical Lead, SMEs, Testers, Trainers and technical staff for the state side of integration programming. • Implementation Services provided include o Integration/Interface to on-premise Finance system > PeopleSoft 9.2 > Real-time integration points to Finance - Supplier accounts, create/update (eProcurement solution is system of record) - Requisitions - Purchase Orders/Change Orders - Invoice ‘Ok to Pay’ > Batch interface points - Chart of Accounts values from Finance - Receiving to Finance o Organizational Change Management Services o Training Services > Contractor delivered End User training for 25% of scenario user count > 'Train the Trainer' training for 10 State staff > Supplier training through 20 live webinars o Help Desk Services: Full end user support, State and Supplier • Managed Services provided include o Solution Support o Additional Help Desk Services; as described above for 6 months after go-live of final solution component o On-site System Stabilization Support for 3 months after go-live of final solution component
B16: Scenario I - Large State | C16: GDP: $700 Billion Spend: $8 Billion/year Population: 11 Million State Employees: 125,000 User Count: 1,250 Buyers, 11,250 End Users Suppliers: 100,000 with 60,000 to be converted from the Finance System during implementation. Contracts: 1,000 Central Procurement Office issued, 2500 Agency issued. Data conversion of basic data from the Finance System during implementation for all Contracts. Solicitations: 2,400/year Catalogs: 1000 Hosted, 100 Punchouts with no catalogs to be converted from the Finance System during implementation. Purchase Orders: 400,000 issued/year Invoices: 600,000/year
B17: Scenario II - Medium State | C17: GDP: $300 Billion Spend: $4 Billion/year Population: 6 Million State Employees: 70,000 User Count: 700 Buyers, 6,300 End Users Suppliers: 75,000 with 50,000 to be converted from the Finance System during implementation. Contracts: 800 Central Procurement Office issued, 2000 Agency issued. Data conversion of basic data from the Finance System during implementation for all Contracts. Solicitations: 1,600/year Catalogs: 1000 Hosted, 80 Punchouts with no catalogs to be converted from the Finance System during implementation. Purchase Orders: 150,000 issued/year Invoices: 225,000/year
B18: Scenario III - Small State | C18: GDP: $100 Billion Spend: $2 Billion/year Population: 3 Million State Employees: 50,000 User Count: 500 Buyers, 4,500 End Users Suppliers: 50,000 with 35,000 to be converted from the Finance System during implementation. Contracts: 500 Central Procurement Office issued, 1500 Agency issued. Data conversion of basic data from the Finance System during implementation for all Contracts. Solicitations: 1,000/year Catalogs: 500 Hosted, 60 Punchouts with no catalogs to be converted from the Finance System during implementation. Purchase Orders: 80,000 issued/year Invoices: 105,000/year
B20: SCENARIO I - LARGE STATE PRICING | Q20: SCENARIO II - MEDIUM STATE PRICING | AF20: SCENARIO III - SMALL STATE PRICING
B22: A. Overall Cost Proposal (The all-in-costs necessary to provide an eProcurement Solution that meet the mandatory requirements of the RFP and is a total of the values in Tables B-D) | Q22: A. Overall Cost Proposal (The all-in-costs necessary to provide an eProcurement Solution that meet the mandatory requirements of the RFP and is a total of the values in Tables B-D) | AF22: A. Overall Cost Proposal (The all-in-costs necessary to provide an eProcurement Solution that meet the mandatory requirements of the RFP and is a total of the values in Tables B-D)
C23: Year 1 | D23: Year 2 | E23: Year 3 | F23: Year 4 | G23: Year 5 | H23: Year 6 | I23: Year 7 | J23: Year 8 | K23: Year 9 | L23: Year 10 | M23: Total | R23: Year 1 | S23: Year 2 | T23: Year 3 | U23: Year 4 | V23: Year 5 | W23: Year 6 | X23: Year 7 | Y23: Year 8 | Z23: Year 9 | AA23: Year 10 | AB23: Total | AG23: Year 1 | AH23: Year 2 | AI23: Year 3 | AJ23: Year 4 | AK23: Year 5 | AL23: Year 6 | AM23: Year 7 | AN23: Year 8 | AO23: Year 9 | AP23: Year 10 | AQ23: Total
B24: Solution Implementation Costs | C24: =D54*(1-'10. Workstream Implem. Discount'!$C$15) -> 0 | D24: =F54*(1-'10. Workstream Implem. Discount'!$C$15) -> 0 | M24: =SUM(C24:L24) -> 0 | Q24: Solution Implementation Costs | R24: =S54*(1-'10. Workstream Implem. Discount'!$C$15) -> 0 | S24: =U54*(1-'10. Workstream Implem. Discount'!$C$15) -> 0 | AB24: =SUM(R24:AA24) -> 0 | AF24: Solution Implementation Costs | AG24: =AH54*(1-'10. Workstream Implem. Discount'!$C$15) -> 0 | AH24: =AJ54*(1-'10. Workstream Implem. Discount'!$C$15) -> 0 | AQ24: =SUM(AG24:AP24) -> 0
B25: Annual Licensing/Maintenance Costs | C25: =C65*(1-'10. Workstream Implem. Discount'!$C$16) -> 0 | D25: =D65*(1-'10. Workstream Implem. Discount'!$C$16) -> 0 | E25: =E65*(1-'10. Workstream Implem. Discount'!$C$16) -> 0 | F25: =F65*(1-'10. Workstream Implem. Discount'!$C$16) -> 0 | G25: =G65*(1-'10. Workstream Implem. Discount'!$C$16) -> 0 | H25: =H65*(1-'10. Workstream Implem. Discount'!$C$16) -> 0 | I25: =I65*(1-'10. Workstream Implem. Discount'!$C$16) -> 0 | J25: =J65*(1-'10. Workstream Implem. Discount'!$C$16) -> 0 | K25: =K65*(1-'10. Workstream Implem. Discount'!$C$16) -> 0 | L25: =L65*(1-'10. Workstream Implem. Discount'!$C$16) -> 0 | M25: 0 | Q25: Annual Licensing/Maintenance Costs | R25: =R65*(1-'10. Workstream Implem. Discount'!$C$16) -> 0 | S25: =S65*(1-'10. Workstream Implem. Discount'!$C$16) -> 0 | T25: =T65*(1-'10. Workstream Implem. Discount'!$C$16) -> 0 | U25: =U65*(1-'10. Workstream Implem. Discount'!$C$16) -> 0 | V25: =V65*(1-'10. Workstream Implem. Discount'!$C$16) -> 0 | W25: =W65*(1-'10. Workstream Implem. Discount'!$C$16) -> 0 | X25: =X65*(1-'10. Workstream Implem. Discount'!$C$16) -> 0 | Y25: =Y65*(1-'10. Workstream Implem. Discount'!$C$16) -> 0 | Z25: =Z65*(1-'10. Workstream Implem. Discount'!$C$16) -> 0 | AA25: =AA65*(1-'10. Workstream Implem. Discount'!$C$16) -> 0 | AB25: 0 | AF25: Annual Licensing/Maintenance Costs | AG25: =AG65*(1-'10. Workstream Implem. Discount'!$C$16) -> 0 | AH25: =AH65*(1-'10. Workstream Implem. Discount'!$C$16) -> 0 | AI25: =AI65*(1-'10. Workstream Implem. Discount'!$C$16) -> 0 | AJ25: =AJ65*(1-'10. Workstream Implem. Discount'!$C$16) -> 0 | AK25: =AK65*(1-'10. Workstream Implem. Discount'!$C$16) -> 0 | AL25: =AL65*(1-'10. Workstream Implem. Discount'!$C$16) -> 0 | AM25: =AM65*(1-'10. Workstream Implem. Discount'!$C$16) -> 0 | AN25: =AN65*(1-'10. Workstream Implem. Discount'!$C$16) -> 0 | AO25: =AO65*(1-'10. Workstream Implem. Discount'!$C$16) -> 0 | AP25: =AP65*(1-'10. Workstream Implem. Discount'!$C$16) -> 0 | AQ25: 0
B26: Managed Services Support Costs | C26: =C78*(1-'10. Workstream Implem. Discount'!$C$17) -> 0 | D26: =D78*(1-'10. Workstream Implem. Discount'!$C$17) -> 0 | E26: =E78*(1-'10. Workstream Implem. Discount'!$C$17) -> 0 | F26: =F78*(1-'10. Workstream Implem. Discount'!$C$17) -> 0 | G26: =G78*(1-'10. Workstream Implem. Discount'!$C$17) -> 0 | H26: =H78*(1-'10. Workstream Implem. Discount'!$C$17) -> 0 | I26: =I78*(1-'10. Workstream Implem. Discount'!$C$17) -> 0 | J26: =J78*(1-'10. Workstream Implem. Discount'!$C$17) -> 0 | K26: =K78*(1-'10. Workstream Implem. Discount'!$C$17) -> 0 | L26: =L78*(1-'10. Workstream Implem. Discount'!$C$17) -> 0 | M26: 0 | Q26: Managed Services Support Costs | R26: =R78*(1-'10. Workstream Implem. Discount'!$C$17) -> 0 | S26: =S78*(1-'10. Workstream Implem. Discount'!$C$17) -> 0 | T26: =T78*(1-'10. Workstream Implem. Discount'!$C$17) -> 0 | U26: =U78*(1-'10. Workstream Implem. Discount'!$C$17) -> 0 | V26: =V78*(1-'10. Workstream Implem. Discount'!$C$17) -> 0 | W26: =W78*(1-'10. Workstream Implem. Discount'!$C$17) -> 0 | X26: =X78*(1-'10. Workstream Implem. Discount'!$C$17) -> 0 | Y26: =Y78*(1-'10. Workstream Implem. Discount'!$C$17) -> 0 | Z26: =Z78*(1-'10. Workstream Implem. Discount'!$C$17) -> 0 | AA26: =AA78*(1-'10. Workstream Implem. Discount'!$C$17) -> 0 | AB26: 0 | AF26: Managed Services Support Costs | AG26: =AG78*(1-'10. Workstream Implem. Discount'!$C$17) -> 0 | AH26: =AH78*(1-'10. Workstream Implem. Discount'!$C$17) -> 0 | AI26: =AI78*(1-'10. Workstream Implem. Discount'!$C$17) -> 0 | AJ26: =AJ78*(1-'10. Workstream Implem. Discount'!$C$17) -> 0 | AK26: =AK78*(1-'10. Workstream Implem. Discount'!$C$17) -> 0 | AL26: =AL78*(1-'10. Workstream Implem. Discount'!$C$17) -> 0 | AM26: =AM78*(1-'10. Workstream Implem. Discount'!$C$17) -> 0 | AN26: =AN78*(1-'10. Workstream Implem. Discount'!$C$17) -> 0 | AO26: =AO78*(1-'10. Workstream Implem. Discount'!$C$17) -> 0 | AP26: =AP78*(1-'10. Workstream Implem. Discount'!$C$17) -> 0 | AQ26: 0
B27: <other item for vendor input (optional)> | M27: 0 | Q27: <other item for vendor input (optional)> | AB27: 0 | AF27: <other item for vendor input (optional)> | AQ27: 0
B28: <other item for vendor input (optional)> | M28: 0 | Q28: <other item for vendor input (optional)> | AB28: 0 | AF28: <other item for vendor input (optional)> | AQ28: 0
B29: <other item for vendor input (optional)> | M29: 0 | Q29: <other item for vendor input (optional)> | AB29: 0 | AF29: <other item for vendor input (optional)> | AQ29: 0
B30: <other item for vendor input (optional)> | M30: 0 | Q30: <other item for vendor input (optional)> | AB30: 0 | AF30: <other item for vendor input (optional)> | AQ30: 0
B31: <other item for vendor input (optional)> | M31: 0 | Q31: <other item for vendor input (optional)> | AB31: 0 | AF31: <other item for vendor input (optional)> | AQ31: 0
B32: <other item for vendor input (optional)> | M32: 0 | Q32: <other item for vendor input (optional)> | AB32: 0 | AF32: <other item for vendor input (optional)> | AQ32: 0
B33: TOTAL | C33: =SUM(C24:C32) -> 0 | D33: 0 | E33: 0 | F33: 0 | G33: 0 | H33: 0 | I33: 0 | J33: 0 | K33: 0 | L33: 0 | M33: 0 | Q33: TOTAL | R33: =SUM(R24:R32) -> 0 | S33: 0 | T33: 0 | U33: 0 | V33: 0 | W33: 0 | X33: 0 | Y33: 0 | Z33: 0 | AA33: 0 | AB33: 0 | AF33: TOTAL | AG33: =SUM(AG24:AG32) -> 0 | AH33: 0 | AI33: 0 | AJ33: 0 | AK33: 0 | AL33: 0 | AM33: 0 | AN33: 0 | AO33: 0 | AP33: 0 | AQ33: 0
B35: B. Solution Implementation Costs - Distribute over Years 1 & 2 Note: "Final Costs" values should equal the "Total" values for Solution Implementation in Table A. | Q35: B. Solution Implementation Costs - Distribute over Years 1 & 2 Note: "Final Costs" values should equal the "Total" values for Solution Implementation in Table A. | AF35: B. Solution Implementation Costs - Distribute over Years 1 & 2 Note: "Final Costs" values should equal the "Total" values for Solution Implementation in Table A.
C36: Year 1 | E36: Year 2 | G36: Totals | R36: Year 1 | T36: Year 2 | V36: Totals | AG36: Year 1 | AI36: Year 2 | AK36: Totals
B37: Workstream Costs: | C37: Hours | D37: Costs | E37: Hours | F37: Costs | G37: Hours | H37: Costs | I37: Discount (%) | J37: Final Costs | Q37: Workstream Costs: | R37: Hours | S37: Costs | T37: Hours | U37: Costs | V37: Hours | W37: Costs | X37: Discount (%) | Y37: Final Costs | AF37: Workstream Costs: | AG37: Hours | AH37: Costs | AI37: Hours | AJ37: Costs | AK37: Hours | AL37: Costs | AM37: Discount (%) | AN37: Final Costs
B38: Purchasing/Data Analytics | G38: =C38+E38 -> 0 | H38: =SUM(D38+F38) -> 0 | I38: ='10. Workstream Implem. Discount'!$C$15 -> 60.00% | J38: =(1-I38)*H38 -> 0 | Q38: Purchasing/Data Analytics | V38: =R38+T38 -> 0 | W38: =SUM(S38+U38) -> 0 | X38: ='10. Workstream Implem. Discount'!$C$15 -> 60.00% | Y38: =(1-X38)*W38 -> 0 | AF38: Purchasing/Data Analytics | AK38: =AG38+AI38 -> 0 | AL38: =SUM(AH38+AJ38) -> 0 | AM38: ='10. Workstream Implem. Discount'!$C$15 -> 60.00% | AN38: =(1-AM38)*AL38 -> 0
B39: Integration to Finance System | G39: 0 | H39: 0 | I39: ='10. Workstream Implem. Discount'!$C$15 -> 60.00% | J39: 0 | Q39: Integration to Finance System | V39: 0 | W39: 0 | X39: ='10. Workstream Implem. Discount'!$C$15 -> 60.00% | Y39: 0 | AF39: Integration to Finance System | AK39: 0 | AL39: 0 | AM39: ='10. Workstream Implem. Discount'!$C$15 -> 60.00% | AN39: 0
B40: <other item for vendor input (optional)> | G40: 0 | H40: 0 | I40: ='10. Workstream Implem. Discount'!$C$15 -> 60.00% | J40: 0 | Q40: <other item for vendor input (optional)> | V40: 0 | W40: 0 | X40: ='10. Workstream Implem. Discount'!$C$15 -> 60.00% | Y40: 0 | AF40: <other item for vendor input (optional)> | AK40: 0 | AL40: 0 | AM40: ='10. Workstream Implem. Discount'!$C$15 -> 60.00% | AN40: 0
B41: <other item for vendor input (optional)> | G41: 0 | H41: 0 | I41: ='10. Workstream Implem. Discount'!$C$15 -> 60.00% | J41: 0 | Q41: <other item for vendor input (optional)> | V41: 0 | W41: 0 | X41: ='10. Workstream Implem. Discount'!$C$15 -> 60.00% | Y41: 0 | AF41: <other item for vendor input (optional)> | AK41: 0 | AL41: 0 | AM41: ='10. Workstream Implem. Discount'!$C$15 -> 60.00% | AN41: 0
B42: <other item for vendor input (optional)> | G42: 0 | H42: 0 | I42: ='10. Workstream Implem. Discount'!$C$15 -> 60.00% | J42: 0 | Q42: <other item for vendor input (optional)> | V42: 0 | W42: 0 | X42: ='10. Workstream Implem. Discount'!$C$15 -> 60.00% | Y42: 0 | AF42: <other item for vendor input (optional)> | AK42: 0 | AL42: 0 | AM42: ='10. Workstream Implem. Discount'!$C$15 -> 60.00% | AN42: 0
B43: Supporting Services: | Q43: Supporting Services: | AF43: Supporting Services:
B44: Project Initiation | G44: =C44+E44 -> 0 | H44: =SUM(D44+F44) -> 0 | I44: ='10. Workstream Implem. Discount'!$C$15 -> 60.00% | J44: =(1-I44)*H44 -> 0 | Q44: Project Initiation | V44: =R44+T44 -> 0 | W44: =SUM(S44+U44) -> 0 | X44: ='10. Workstream Implem. Discount'!$C$15 -> 60.00% | Y44: =(1-X44)*W44 -> 0 | AF44: Project Initiation | AK44: =AG44+AI44 -> 0 | AL44: =SUM(AH44+AJ44) -> 0 | AM44: ='10. Workstream Implem. Discount'!$C$15 -> 60.00% | AN44: =(1-AM44)*AL44 -> 0
B45: Project Management | G45: 0 | H45: 0 | I45: ='10. Workstream Implem. Discount'!$C$15 -> 60.00% | J45: 0 | Q45: Project Management | V45: 0 | W45: 0 | X45: ='10. Workstream Implem. Discount'!$C$15 -> 60.00% | Y45: 0 | AF45: Project Management | AK45: 0 | AL45: 0 | AM45: ='10. Workstream Implem. Discount'!$C$15 -> 60.00% | AN45: 0
B46: Change Management | G46: 0 | H46: 0 | I46: ='10. Workstream Implem. Discount'!$C$15 -> 60.00% | J46: 0 | Q46: Change Management | V46: 0 | W46: 0 | X46: ='10. Workstream Implem. Discount'!$C$15 -> 60.00% | Y46: 0 | AF46: Change Management | AK46: 0 | AL46: 0 | AM46: ='10. Workstream Implem. Discount'!$C$15 -> 60.00% | AN46: 0
B47: Training Services | G47: 0 | H47: 0 | I47: ='10. Workstream Implem. Discount'!$C$15 -> 60.00% | J47: 0 | Q47: Training Services | V47: 0 | W47: 0 | X47: ='10. Workstream Implem. Discount'!$C$15 -> 60.00% | Y47: 0 | AF47: Training Services | AK47: 0 | AL47: 0 | AM47: ='10. Workstream Implem. Discount'!$C$15 -> 60.00% | AN47: 0
B48: Help Desk Services (Costs for period from contract award through 6 months following t'Go Live' | G48: 0 | H48: 0 | I48: ='10. Workstream Implem. Discount'!$C$15 -> 60.00% | J48: 0 | Q48: Help Desk Services (Costs for period from contract award through 6 months following t'Go Live' | V48: 0 | W48: 0 | X48: ='10. Workstream Implem. Discount'!$C$15 -> 60.00% | Y48: 0 | AF48: Help Desk Services (Costs for period from contract award through 6 months following t'Go Live' | AK48: 0 | AL48: 0 | AM48: ='10. Workstream Implem. Discount'!$C$15 -> 60.00% | AN48: 0
B49: <other item for vendor input (optional)> | G49: 0 | H49: 0 | I49: ='10. Workstream Implem. Discount'!$C$15 -> 60.00% | J49: 0 | Q49: <other item for vendor input (optional)> | V49: 0 | W49: 0 | X49: ='10. Workstream Implem. Discount'!$C$15 -> 60.00% | Y49: 0 | AF49: <other item for vendor input (optional)> | AK49: 0 | AL49: 0 | AM49: ='10. Workstream Implem. Discount'!$C$15 -> 60.00% | AN49: 0
B50: <other item for vendor input (optional)> | G50: 0 | H50: 0 | I50: ='10. Workstream Implem. Discount'!$C$15 -> 60.00% | J50: 0 | Q50: <other item for vendor input (optional)> | V50: 0 | W50: 0 | X50: ='10. Workstream Implem. Discount'!$C$15 -> 60.00% | Y50: 0 | AF50: <other item for vendor input (optional)> | AK50: 0 | AL50: 0 | AM50: ='10. Workstream Implem. Discount'!$C$15 -> 60.00% | AN50: 0
B51: <other item for vendor input (optional)> | G51: 0 | H51: 0 | I51: ='10. Workstream Implem. Discount'!$C$15 -> 60.00% | J51: 0 | Q51: <other item for vendor input (optional)> | V51: 0 | W51: 0 | X51: ='10. Workstream Implem. Discount'!$C$15 -> 60.00% | Y51: 0 | AF51: <other item for vendor input (optional)> | AK51: 0 | AL51: 0 | AM51: ='10. Workstream Implem. Discount'!$C$15 -> 60.00% | AN51: 0
B52: <other item for vendor input (optional)> | G52: 0 | H52: 0 | I52: ='10. Workstream Implem. Discount'!$C$15 -> 60.00% | J52: 0 | Q52: <other item for vendor input (optional)> | V52: 0 | W52: 0 | X52: ='10. Workstream Implem. Discount'!$C$15 -> 60.00% | Y52: 0 | AF52: <other item for vendor input (optional)> | AK52: 0 | AL52: 0 | AM52: ='10. Workstream Implem. Discount'!$C$15 -> 60.00% | AN52: 0
B53: <other item for vendor input (optional)> | G53: 0 | H53: 0 | I53: ='10. Workstream Implem. Discount'!$C$15 -> 60.00% | J53: 0 | Q53: <other item for vendor input (optional)> | V53: 0 | W53: 0 | X53: ='10. Workstream Implem. Discount'!$C$15 -> 60.00% | Y53: 0 | AF53: <other item for vendor input (optional)> | AK53: 0 | AL53: 0 | AM53: ='10. Workstream Implem. Discount'!$C$15 -> 60.00% | AN53: 0
B54: Total | D54: =SUM(D38:D42,D44:D53) -> 0 | F54: =SUM(F38:F42,F44:F53) -> 0 | H54: =SUM(H38:H42,H44:H53) -> 0 | I54: ='10. Workstream Implem. Discount'!$C$15 -> 60.00% | J54: =SUM(J38:J42,J44:J53) -> 0 | Q54: Total | S54: =SUM(S38:S42,S44:S53) -> 0 | U54: =SUM(U38:U42,U44:U53) -> 0 | W54: =SUM(W38:W42,W44:W53) -> 0 | X54: ='10. Workstream Implem. Discount'!$C$15 -> 60.00% | Y54: =SUM(Y38:Y42,Y44:Y53) -> 0 | AF54: Total | AH54: =SUM(AH38:AH42,AH44:AH53) -> 0 | AJ54: =SUM(AJ38:AJ42,AJ44:AJ53) -> 0 | AL54: =SUM(AL38:AL42,AL44:AL53) -> 0 | AM54: ='10. Workstream Implem. Discount'!$C$15 -> 60.00% | AN54: =SUM(AN38:AN42,AN44:AN53) -> 0
B57: C. Annual Licensing Costs including Maintenance (Note: Unlimited users and "Final Costs" values should equal the "Total" values for Annual Licensing & Maintenance in Table A.) | Q57: C. Annual Licensing Costs including Maintenance (Note: Unlimited users and "Final Costs" values should equal the "Total" values for Annual Licensing & Maintenance in Table A.) | AF57: C. Annual Licensing Costs including Maintenance (Note: Unlimited users and "Final Costs" values should equal the "Total" values for Annual Licensing & Maintenance in Table A.)
C58: Year 1 | D58: Year 2 | E58: Year 3 | F58: Year 4 | G58: Year 5 | H58: Year 6 | I58: Year 7 | J58: Year 8 | K58: Year 9 | L58: Year 10 | M58: Total | N58: Discount (%) | O58: Final Costs | R58: Year 1 | S58: Year 2 | T58: Year 3 | U58: Year 4 | V58: Year 5 | W58: Year 6 | X58: Year 7 | Y58: Year 8 | Z58: Year 9 | AA58: Year 10 | AB58: Total | AC58: Discount (%) | AD58: Final Costs | AG58: Year 1 | AH58: Year 2 | AI58: Year 3 | AJ58: Year 4 | AK58: Year 5 | AL58: Year 6 | AM58: Year 7 | AN58: Year 8 | AO58: Year 9 | AP58: Year 10 | AQ58: Total | AR58: Discount (%) | AS58: Final Costs
B59: Purchasing/Data Analytics | M59: =SUM(C59:L59) -> 0 | N59: ='10. Workstream Implem. Discount'!$C$16 -> 40.00% | O59: =(1-N59)*M59 -> 0 | Q59: Purchasing/Data Analytics | AB59: =SUM(R59:AA59) -> 0 | AC59: ='10. Workstream Implem. Discount'!$C$16 -> 40.00% | AD59: =(1-AC59)*AB59 -> 0 | AF59: Purchasing/Data Analytics | AQ59: =SUM(AG59:AP59) -> 0 | AR59: ='10. Workstream Implem. Discount'!$C$16 -> 40.00% | AS59: =(1-AR59)*AQ59 -> 0
B60: Integration | M60: 0 | N60: ='10. Workstream Implem. Discount'!$C$16 -> 40.00% | O60: 0 | Q60: Integration | AB60: 0 | AC60: ='10. Workstream Implem. Discount'!$C$16 -> 40.00% | AD60: 0 | AF60: Integration | AQ60: 0 | AR60: ='10. Workstream Implem. Discount'!$C$16 -> 40.00% | AS60: 0
B61: <other item for vendor input (optional)> | M61: 0 | N61: ='10. Workstream Implem. Discount'!$C$16 -> 40.00% | O61: 0 | Q61: <other item for vendor input (optional)> | AB61: 0 | AC61: ='10. Workstream Implem. Discount'!$C$16 -> 40.00% | AD61: 0 | AF61: <other item for vendor input (optional)> | AQ61: 0 | AR61: ='10. Workstream Implem. Discount'!$C$16 -> 40.00% | AS61: 0
B62: <other item for vendor input (optional)> | M62: 0 | N62: ='10. Workstream Implem. Discount'!$C$16 -> 40.00% | O62: 0 | Q62: <other item for vendor input (optional)> | AB62: 0 | AC62: ='10. Workstream Implem. Discount'!$C$16 -> 40.00% | AD62: 0 | AF62: <other item for vendor input (optional)> | AQ62: 0 | AR62: ='10. Workstream Implem. Discount'!$C$16 -> 40.00% | AS62: 0
B63: <other item for vendor input (optional)> | M63: 0 | N63: ='10. Workstream Implem. Discount'!$C$16 -> 40.00% | O63: 0 | Q63: <other item for vendor input (optional)> | AB63: 0 | AC63: ='10. Workstream Implem. Discount'!$C$16 -> 40.00% | AD63: 0 | AF63: <other item for vendor input (optional)> | AQ63: 0 | AR63: ='10. Workstream Implem. Discount'!$C$16 -> 40.00% | AS63: 0
B64: <other item for vendor input (optional)> | M64: 0 | N64: ='10. Workstream Implem. Discount'!$C$16 -> 40.00% | O64: 0 | Q64: <other item for vendor input (optional)> | AB64: 0 | AC64: ='10. Workstream Implem. Discount'!$C$16 -> 40.00% | AD64: 0 | AF64: <other item for vendor input (optional)> | AQ64: 0 | AR64: ='10. Workstream Implem. Discount'!$C$16 -> 40.00% | AS64: 0
B65: TOTAL | C65: =SUM(C59:C64) -> 0 | D65: 0 | E65: 0 | F65: 0 | G65: 0 | H65: 0 | I65: 0 | J65: 0 | K65: 0 | L65: 0 | M65: 0 | N65: ='10. Workstream Implem. Discount'!$C$16 -> 40.00% | O65: =SUM(O59:O64) -> 0 | Q65: TOTAL | R65: =SUM(R59:R64) -> 0 | S65: 0 | T65: 0 | U65: 0 | V65: 0 | W65: 0 | X65: 0 | Y65: 0 | Z65: 0 | AA65: 0 | AB65: 0 | AC65: ='10. Workstream Implem. Discount'!$C$16 -> 40.00% | AD65: =SUM(AD59:AD64) -> 0 | AF65: TOTAL | AG65: =SUM(AG59:AG64) -> 0 | AH65: 0 | AI65: 0 | AJ65: 0 | AK65: 0 | AL65: 0 | AM65: 0 | AN65: 0 | AO65: 0 | AP65: 0 | AQ65: 0 | AR65: ='10. Workstream Implem. Discount'!$C$16 -> 40.00% | AS65: =SUM(AS59:AS64) -> 0
B68: D. Managed Services Support Costs (Note: "Total" values should equal the "Final Costs" values for Managed ServicesSupport in Table A.) | Q68: D. Managed Services Support Costs (Note: "Total" values should equal the "Final Costs" values for Managed ServicesSupport in Table A.) | AF68: D. Managed Services Support Costs (Note: "Total" values should equal the "Final Costs" values for Managed ServicesSupport in Table A.)
C69: Year 1 | D69: Year 2 | E69: Year 3 | F69: Year 4 | G69: Year 5 | H69: Year 6 | I69: Year 7 | J69: Year 8 | K69: Year 9 | L69: Year 10 | M69: Total | N69: Discount (%) | O69: Final Costs | R69: Year 1 | S69: Year 2 | T69: Year 3 | U69: Year 4 | V69: Year 5 | W69: Year 6 | X69: Year 7 | Y69: Year 8 | Z69: Year 9 | AA69: Year 10 | AB69: Total | AC69: Discount (%) | AD69: Final Costs | AG69: Year 1 | AH69: Year 2 | AI69: Year 3 | AJ69: Year 4 | AK69: Year 5 | AL69: Year 6 | AM69: Year 7 | AN69: Year 8 | AO69: Year 9 | AP69: Year 10 | AQ69: Total | AR69: Discount (%) | AS69: Final Costs
B70: On-site System Stabilization Support | M70: =SUM(C70:L70) -> 0 | N70: ='10. Workstream Implem. Discount'!$C$17 -> 50.00% | O70: =(1-N70)*M70 -> 0 | Q70: On-site System Stabilization Support | AB70: =SUM(R70:AA70) -> 0 | AC70: ='10. Workstream Implem. Discount'!$C$17 -> 50.00% | AD70: =(1-AC70)*AB70 -> 0 | AF70: On-site System Stabilization Support | AQ70: =SUM(AG70:AP70) -> 0 | AR70: ='10. Workstream Implem. Discount'!$C$17 -> 50.00% | AS70: =(1-AR70)*AQ70 -> 0
B71: Third Party Licensing (e.g. NIGP Codes) | M71: 0 | N71: ='10. Workstream Implem. Discount'!$C$17 -> 50.00% | O71: 0 | Q71: Third Party Licensing (e.g. NIGP Codes) | AB71: 0 | AC71: ='10. Workstream Implem. Discount'!$C$17 -> 50.00% | AD71: 0 | AF71: Third Party Licensing (e.g. NIGP Codes) | AQ71: 0 | AR71: ='10. Workstream Implem. Discount'!$C$17 -> 50.00% | AS71: 0
B72: Transition Out Assistance Services | M72: 0 | N72: ='10. Workstream Implem. Discount'!$C$17 -> 50.00% | O72: 0 | Q72: Transition Out Assistance Services | AB72: 0 | AC72: ='10. Workstream Implem. Discount'!$C$17 -> 50.00% | AD72: 0 | AF72: Transition Out Assistance Services | AQ72: 0 | AR72: ='10. Workstream Implem. Discount'!$C$17 -> 50.00% | AS72: 0
B73: <other item for vendor input (optional)> | M73: 0 | N73: ='10. Workstream Implem. Discount'!$C$17 -> 50.00% | O73: 0 | Q73: <other item for vendor input (optional)> | AB73: 0 | AC73: ='10. Workstream Implem. Discount'!$C$17 -> 50.00% | AD73: 0 | AF73: <other item for vendor input (optional)> | AQ73: 0 | AR73: ='10. Workstream Implem. Discount'!$C$17 -> 50.00% | AS73: 0
B74: <other item for vendor input (optional)> | M74: 0 | N74: ='10. Workstream Implem. Discount'!$C$17 -> 50.00% | O74: 0 | Q74: <other item for vendor input (optional)> | AB74: 0 | AC74: ='10. Workstream Implem. Discount'!$C$17 -> 50.00% | AD74: 0 | AF74: <other item for vendor input (optional)> | AQ74: 0 | AR74: ='10. Workstream Implem. Discount'!$C$17 -> 50.00% | AS74: 0
B75: <other item for vendor input (optional)> | M75: 0 | N75: ='10. Workstream Implem. Discount'!$C$17 -> 50.00% | O75: 0 | Q75: <other item for vendor input (optional)> | AB75: 0 | AC75: ='10. Workstream Implem. Discount'!$C$17 -> 50.00% | AD75: 0 | AF75: <other item for vendor input (optional)> | AQ75: 0 | AR75: ='10. Workstream Implem. Discount'!$C$17 -> 50.00% | AS75: 0
B76: <other item for vendor input (optional)> | M76: 0 | N76: ='10. Workstream Implem. Discount'!$C$17 -> 50.00% | O76: 0 | Q76: <other item for vendor input (optional)> | AB76: 0 | AC76: ='10. Workstream Implem. Discount'!$C$17 -> 50.00% | AD76: 0 | AF76: <other item for vendor input (optional)> | AQ76: 0 | AR76: ='10. Workstream Implem. Discount'!$C$17 -> 50.00% | AS76: 0
B77: <other item for vendor input (optional)> | M77: 0 | N77: ='10. Workstream Implem. Discount'!$C$17 -> 50.00% | O77: 0 | Q77: <other item for vendor input (optional)> | AB77: 0 | AC77: ='10. Workstream Implem. Discount'!$C$17 -> 50.00% | AD77: 0 | AF77: <other item for vendor input (optional)> | AQ77: 0 | AR77: ='10. Workstream Implem. Discount'!$C$17 -> 50.00% | AS77: 0
B78: TOTAL | C78: =SUM(C70:C77) -> 0 | D78: 0 | E78: 0 | F78: 0 | G78: 0 | H78: 0 | I78: 0 | J78: 0 | K78: 0 | L78: 0 | M78: 0 | N78: ='10. Workstream Implem. Discount'!$C$17 -> 50.00% | O78: =SUM(O70:O77) -> 0 | Q78: TOTAL | R78: =SUM(R70:R77) -> 0 | S78: 0 | T78: 0 | U78: 0 | V78: 0 | W78: 0 | X78: 0 | Y78: 0 | Z78: 0 | AA78: 0 | AB78: 0 | AC78: ='10. Workstream Implem. Discount'!$C$17 -> 50.00% | AD78: =SUM(AD70:AD77) -> 0 | AF78: TOTAL | AG78: =SUM(AG70:AG77) -> 0 | AH78: 0 | AI78: 0 | AJ78: 0 | AK78: 0 | AL78: 0 | AM78: 0 | AN78: 0 | AO78: 0 | AP78: 0 | AQ78: 0 | AR78: ='10. Workstream Implem. Discount'!$C$17 -> 50.00% | AS78: =SUM(AS70:AS77) -> 0
B81: *E. Assumptions | Q81: *E. Assumptions | AF81: *E. Assumptions
B88: <insert rows for additional Assumptions> | Q88: <insert rows for additional Assumptions> | AF88: <insert rows for additional Assumptions>

Sheet 5. Supplier Enablement
B1: RFP# 202102021 - eProcurement Solution and Services
B2: Cost Proposal Workbook - WORKSTREAM IMPLEMENTATION
B3: Bidder's Name:
B6: Instructions: The Fixed Pricing is to reflect contracting for the IMPLEMENTATION and SOFTWARE of an eProcurement Solution for the specific Workstream as required in Sections A thru F of the RFP for the specifically identified Scenarios on this Tab.
B7: 1. In the tables below Bidders must provide the firm, fixed prices in each yellow shaded cell that corresponds to the detail listed in each table. Bidders are to provide prices for the three identified scenarios which reflect the concepts of small, medium and large States. There are separate sets of tables for each scenario and bidders must provide complete responses for each scenario. NOTE: Scenario scope that is not relevant to the specific Workstream being proposed does not have to be addressed however Bidders must list the specific Scope areas not addressed by the proposed solution in Table E "Assumptions".
B8: 2. In Table A, Bidders must provide the overall pricing breakdown of what is included to deliver the identified eProcurement Solution/Service that meets the associated requirements detailed in the RFP and RTM. The prices must include the licensing and maintenance costs, implemetation costs for deployment, and the costs for on-going operations and support of the implemented Solution. TThe costs in this table reflect the total Final Cost values in Tables B-D which have had the proposed discount (Tab 2) applied.
B9: 3. In Table B, Bidders must provide the total hours, costs, and discounted Final Costs as per relevant proposaed discount identifed on "Tab 2. Complete Solution Discount" for the approach to implement the identified workstream functionality, integations, conversion from existing State systems, staffing and support services, etc. as described in each Scenario.
B10: 4. In Table C, Bidders must provide pricing details for the Licensing and Maintenance proposed for the identified workstream/module, integration, and applications that meet the relevant requirements of this RFP. The discounted Final Costs represents applying the relevant proposed discount from "Tab 2. Complete Solution Discount" to the Total.
B11: 5. In Table D, Bidders must provide pricing details for the proposed Managed Services for the identified workstream to meet the requirements described in Section F of the RFP. The discounted Final Costs represents applying the relevant discount from "Tab 2. Complete Solution Discount" to the Total.
B12: 6. In Table E, Bidders must document all assumptions that are reflected in the proposed Pricing. Bidders proposing services only must identify the specific eProcurement solution(s) that the proposed services costs reflect.
B14: SCENARIOs
B15: Scope Common to all Scenarios | C15: • 24 month implementation period • Suppliers managed through eProcurement Solution • State provides dedicated Project Team including Project Sponsor, Project Manager, Functional Lead, Technical Lead, SMEs, Testers, Trainers and technical staff for the state side of integration programming. • Implementation Services provided include o Integration/Interface to on-premise Finance system > PeopleSoft 9.2 > Real-time integration points to Finance - Supplier accounts, create/update (eProcurement solution is system of record) - Requisitions - Purchase Orders/Change Orders - Invoice ‘Ok to Pay’ > Batch interface points - Chart of Accounts values from Finance - Receiving to Finance o Organizational Change Management Services o Training Services > Contractor delivered End User training for 25% of scenario user count > 'Train the Trainer' training for 10 State staff > Supplier training through 20 live webinars o Help Desk Services: Full end user support, State and Supplier • Managed Services provided include o Solution Support o Additional Help Desk Services; as described above for 6 months after go-live of final solution component o On-site System Stabilization Support for 3 months after go-live of final solution component
B16: Scenario I - Large State | C16: GDP: $700 Billion Spend: $8 Billion/year Population: 11 Million State Employees: 125,000 User Count: 1,250 Buyers, 11,250 End Users Suppliers: 100,000 with 60,000 to be converted from the Finance System during implementation. Contracts: 1,000 Central Procurement Office issued, 2500 Agency issued. Data conversion of basic data from the Finance System during implementation for all Contracts. Solicitations: 2,400/year Catalogs: 1000 Hosted, 100 Punchouts with no catalogs to be converted from the Finance System during implementation. Purchase Orders: 400,000 issued/year Invoices: 600,000/year
B17: Scenario II - Medium State | C17: GDP: $300 Billion Spend: $4 Billion/year Population: 6 Million State Employees: 70,000 User Count: 700 Buyers, 6,300 End Users Suppliers: 75,000 with 50,000 to be converted from the Finance System during implementation. Contracts: 800 Central Procurement Office issued, 2000 Agency issued. Data conversion of basic data from the Finance System during implementation for all Contracts. Solicitations: 1,600/year Catalogs: 1000 Hosted, 80 Punchouts with no catalogs to be converted from the Finance System during implementation. Purchase Orders: 150,000 issued/year Invoices: 225,000/year
B18: Scenario III - Small State | C18: GDP: $100 Billion Spend: $2 Billion/year Population: 3 Million State Employees: 50,000 User Count: 500 Buyers, 4,500 End Users Suppliers: 50,000 with 35,000 to be converted from the Finance System during implementation. Contracts: 500 Central Procurement Office issued, 1500 Agency issued. Data conversion of basic data from the Finance System during implementation for all Contracts. Solicitations: 1,000/year Catalogs: 500 Hosted, 60 Punchouts with no catalogs to be converted from the Finance System during implementation. Purchase Orders: 80,000 issued/year Invoices: 105,000/year
B20: SCENARIO I - LARGE STATE PRICING | Q20: SCENARIO II - MEDIUM STATE PRICING | AF20: SCENARIO III - SMALL STATE PRICING
B22: A. Overall Cost Proposal (The all-in-costs necessary to provide an eProcurement Solution that meet the mandatory requirements of the RFP and is a total of the values in Tables B-D) | Q22: A. Overall Cost Proposal (The all-in-costs necessary to provide an eProcurement Solution that meet the mandatory requirements of the RFP and is a total of the values in Tables B-D) | AF22: A. Overall Cost Proposal (The all-in-costs necessary to provide an eProcurement Solution that meet the mandatory requirements of the RFP and is a total of the values in Tables B-D)
C23: Year 1 | D23: Year 2 | E23: Year 3 | F23: Year 4 | G23: Year 5 | H23: Year 6 | I23: Year 7 | J23: Year 8 | K23: Year 9 | L23: Year 10 | M23: Total | R23: Year 1 | S23: Year 2 | T23: Year 3 | U23: Year 4 | V23: Year 5 | W23: Year 6 | X23: Year 7 | Y23: Year 8 | Z23: Year 9 | AA23: Year 10 | AB23: Total | AG23: Year 1 | AH23: Year 2 | AI23: Year 3 | AJ23: Year 4 | AK23: Year 5 | AL23: Year 6 | AM23: Year 7 | AN23: Year 8 | AO23: Year 9 | AP23: Year 10 | AQ23: Total
B24: Solution Implementation Costs | C24: =D54*(1-'10. Workstream Implem. Discount'!$C$15) -> 0 | D24: =F54*(1-'10. Workstream Implem. Discount'!$C$15) -> 0 | M24: =SUM(C24:L24) -> 0 | Q24: Solution Implementation Costs | R24: =S54*(1-'10. Workstream Implem. Discount'!$C$15) -> 0 | S24: =U54*(1-'10. Workstream Implem. Discount'!$C$15) -> 0 | AB24: =SUM(R24:AA24) -> 0 | AF24: Solution Implementation Costs | AG24: =AH54*(1-'10. Workstream Implem. Discount'!$C$15) -> 0 | AH24: =AJ54*(1-'10. Workstream Implem. Discount'!$C$15) -> 0 | AQ24: =SUM(AG24:AP24) -> 0
B25: Annual Licensing/Maintenance Costs | C25: =C65*(1-'10. Workstream Implem. Discount'!$C$16) -> 0 | D25: =D65*(1-'10. Workstream Implem. Discount'!$C$16) -> 0 | E25: =E65*(1-'10. Workstream Implem. Discount'!$C$16) -> 0 | F25: =F65*(1-'10. Workstream Implem. Discount'!$C$16) -> 0 | G25: =G65*(1-'10. Workstream Implem. Discount'!$C$16) -> 0 | H25: =H65*(1-'10. Workstream Implem. Discount'!$C$16) -> 0 | I25: =I65*(1-'10. Workstream Implem. Discount'!$C$16) -> 0 | J25: =J65*(1-'10. Workstream Implem. Discount'!$C$16) -> 0 | K25: =K65*(1-'10. Workstream Implem. Discount'!$C$16) -> 0 | L25: =L65*(1-'10. Workstream Implem. Discount'!$C$16) -> 0 | M25: 0 | Q25: Annual Licensing/Maintenance Costs | R25: =R65*(1-'10. Workstream Implem. Discount'!$C$16) -> 0 | S25: =S65*(1-'10. Workstream Implem. Discount'!$C$16) -> 0 | T25: =T65*(1-'10. Workstream Implem. Discount'!$C$16) -> 0 | U25: =U65*(1-'10. Workstream Implem. Discount'!$C$16) -> 0 | V25: =V65*(1-'10. Workstream Implem. Discount'!$C$16) -> 0 | W25: =W65*(1-'10. Workstream Implem. Discount'!$C$16) -> 0 | X25: =X65*(1-'10. Workstream Implem. Discount'!$C$16) -> 0 | Y25: =Y65*(1-'10. Workstream Implem. Discount'!$C$16) -> 0 | Z25: =Z65*(1-'10. Workstream Implem. Discount'!$C$16) -> 0 | AA25: =AA65*(1-'10. Workstream Implem. Discount'!$C$16) -> 0 | AB25: 0 | AF25: Annual Licensing/Maintenance Costs | AG25: =AG65*(1-'10. Workstream Implem. Discount'!$C$16) -> 0 | AH25: =AH65*(1-'10. Workstream Implem. Discount'!$C$16) -> 0 | AI25: =AI65*(1-'10. Workstream Implem. Discount'!$C$16) -> 0 | AJ25: =AJ65*(1-'10. Workstream Implem. Discount'!$C$16) -> 0 | AK25: =AK65*(1-'10. Workstream Implem. Discount'!$C$16) -> 0 | AL25: =AL65*(1-'10. Workstream Implem. Discount'!$C$16) -> 0 | AM25: =AM65*(1-'10. Workstream Implem. Discount'!$C$16) -> 0 | AN25: =AN65*(1-'10. Workstream Implem. Discount'!$C$16) -> 0 | AO25: =AO65*(1-'10. Workstream Implem. Discount'!$C$16) -> 0 | AP25: =AP65*(1-'10. Workstream Implem. Discount'!$C$16) -> 0 | AQ25: 0
B26: Managed Services Support Costs | C26: =C78*(1-'10. Workstream Implem. Discount'!$C$17) -> 0 | D26: =D78*(1-'10. Workstream Implem. Discount'!$C$17) -> 0 | E26: =E78*(1-'10. Workstream Implem. Discount'!$C$17) -> 0 | F26: =F78*(1-'10. Workstream Implem. Discount'!$C$17) -> 0 | G26: =G78*(1-'10. Workstream Implem. Discount'!$C$17) -> 0 | H26: =H78*(1-'10. Workstream Implem. Discount'!$C$17) -> 0 | I26: =I78*(1-'10. Workstream Implem. Discount'!$C$17) -> 0 | J26: =J78*(1-'10. Workstream Implem. Discount'!$C$17) -> 0 | K26: =K78*(1-'10. Workstream Implem. Discount'!$C$17) -> 0 | L26: =L78*(1-'10. Workstream Implem. Discount'!$C$17) -> 0 | M26: 0 | Q26: Managed Services Support Costs | R26: =R78*(1-'10. Workstream Implem. Discount'!$C$17) -> 0 | S26: =S78*(1-'10. Workstream Implem. Discount'!$C$17) -> 0 | T26: =T78*(1-'10. Workstream Implem. Discount'!$C$17) -> 0 | U26: =U78*(1-'10. Workstream Implem. Discount'!$C$17) -> 0 | V26: =V78*(1-'10. Workstream Implem. Discount'!$C$17) -> 0 | W26: =W78*(1-'10. Workstream Implem. Discount'!$C$17) -> 0 | X26: =X78*(1-'10. Workstream Implem. Discount'!$C$17) -> 0 | Y26: =Y78*(1-'10. Workstream Implem. Discount'!$C$17) -> 0 | Z26: =Z78*(1-'10. Workstream Implem. Discount'!$C$17) -> 0 | AA26: =AA78*(1-'10. Workstream Implem. Discount'!$C$17) -> 0 | AB26: 0 | AF26: Managed Services Support Costs | AG26: =AG78*(1-'10. Workstream Implem. Discount'!$C$17) -> 0 | AH26: =AH78*(1-'10. Workstream Implem. Discount'!$C$17) -> 0 | AI26: =AI78*(1-'10. Workstream Implem. Discount'!$C$17) -> 0 | AJ26: =AJ78*(1-'10. Workstream Implem. Discount'!$C$17) -> 0 | AK26: =AK78*(1-'10. Workstream Implem. Discount'!$C$17) -> 0 | AL26: =AL78*(1-'10. Workstream Implem. Discount'!$C$17) -> 0 | AM26: =AM78*(1-'10. Workstream Implem. Discount'!$C$17) -> 0 | AN26: =AN78*(1-'10. Workstream Implem. Discount'!$C$17) -> 0 | AO26: =AO78*(1-'10. Workstream Implem. Discount'!$C$17) -> 0 | AP26: =AP78*(1-'10. Workstream Implem. Discount'!$C$17) -> 0 | AQ26: 0
B27: <other item for vendor input (optional)> | M27: 0 | Q27: <other item for vendor input (optional)> | AB27: 0 | AF27: <other item for vendor input (optional)> | AQ27: 0
B28: <other item for vendor input (optional)> | M28: 0 | Q28: <other item for vendor input (optional)> | AB28: 0 | AF28: <other item for vendor input (optional)> | AQ28: 0
B29: <other item for vendor input (optional)> | M29: 0 | Q29: <other item for vendor input (optional)> | AB29: 0 | AF29: <other item for vendor input (optional)> | AQ29: 0
B30: <other item for vendor input (optional)> | M30: 0 | Q30: <other item for vendor input (optional)> | AB30: 0 | AF30: <other item for vendor input (optional)> | AQ30: 0
B31: <other item for vendor input (optional)> | M31: 0 | Q31: <other item for vendor input (optional)> | AB31: 0 | AF31: <other item for vendor input (optional)> | AQ31: 0
B32: <other item for vendor input (optional)> | M32: 0 | Q32: <other item for vendor input (optional)> | AB32: 0 | AF32: <other item for vendor input (optional)> | AQ32: 0
B33: TOTAL | C33: =SUM(C24:C32) -> 0 | D33: 0 | E33: 0 | F33: 0 | G33: 0 | H33: 0 | I33: 0 | J33: 0 | K33: 0 | L33: 0 | M33: 0 | Q33: TOTAL | R33: =SUM(R24:R32) -> 0 | S33: 0 | T33: 0 | U33: 0 | V33: 0 | W33: 0 | X33: 0 | Y33: 0 | Z33: 0 | AA33: 0 | AB33: 0 | AF33: TOTAL | AG33: =SUM(AG24:AG32) -> 0 | AH33: 0 | AI33: 0 | AJ33: 0 | AK33: 0 | AL33: 0 | AM33: 0 | AN33: 0 | AO33: 0 | AP33: 0 | AQ33: 0
B35: B. Solution Implementation Costs - Distribute over Years 1 & 2 Note: "Final Costs" values should equal the "Total" values for Solution Implementation in Table A. | Q35: B. Solution Implementation Costs - Distribute over Years 1 & 2 Note: "Final Costs" values should equal the "Total" values for Solution Implementation in Table A. | AF35: B. Solution Implementation Costs - Distribute over Years 1 & 2 Note: "Final Costs" values should equal the "Total" values for Solution Implementation in Table A.
C36: Year 1 | E36: Year 2 | G36: Totals | R36: Year 1 | T36: Year 2 | V36: Totals | AG36: Year 1 | AI36: Year 2 | AK36: Totals
B37: Workstream Costs: | C37: Hours | D37: Costs | E37: Hours | F37: Costs | G37: Hours | H37: Costs | I37: Discount (%) | J37: Final Costs | Q37: Workstream Costs: | R37: Hours | S37: Costs | T37: Hours | U37: Costs | V37: Hours | W37: Costs | X37: Discount (%) | Y37: Final Costs | AF37: Workstream Costs: | AG37: Hours | AH37: Costs | AI37: Hours | AJ37: Costs | AK37: Hours | AL37: Costs | AM37: Discount (%) | AN37: Final Costs
B38: Purchasing/Data Analytics | G38: =C38+E38 -> 0 | H38: =SUM(D38+F38) -> 0 | I38: ='10. Workstream Implem. Discount'!$C$15 -> 60.00% | J38: =(1-I38)*H38 -> 0 | Q38: Purchasing/Data Analytics | V38: =R38+T38 -> 0 | W38: =SUM(S38+U38) -> 0 | X38: ='10. Workstream Implem. Discount'!$C$15 -> 60.00% | Y38: =(1-X38)*W38 -> 0 | AF38: Purchasing/Data Analytics | AK38: =AG38+AI38 -> 0 | AL38: =SUM(AH38+AJ38) -> 0 | AM38: ='10. Workstream Implem. Discount'!$C$15 -> 60.00% | AN38: =(1-AM38)*AL38 -> 0
B39: Integration to Finance System | G39: 0 | H39: 0 | I39: ='10. Workstream Implem. Discount'!$C$15 -> 60.00% | J39: 0 | Q39: Integration to Finance System | V39: 0 | W39: 0 | X39: ='10. Workstream Implem. Discount'!$C$15 -> 60.00% | Y39: 0 | AF39: Integration to Finance System | AK39: 0 | AL39: 0 | AM39: ='10. Workstream Implem. Discount'!$C$15 -> 60.00% | AN39: 0
B40: <other item for vendor input (optional)> | G40: 0 | H40: 0 | I40: ='10. Workstream Implem. Discount'!$C$15 -> 60.00% | J40: 0 | Q40: <other item for vendor input (optional)> | V40: 0 | W40: 0 | X40: ='10. Workstream Implem. Discount'!$C$15 -> 60.00% | Y40: 0 | AF40: <other item for vendor input (optional)> | AK40: 0 | AL40: 0 | AM40: ='10. Workstream Implem. Discount'!$C$15 -> 60.00% | AN40: 0
B41: <other item for vendor input (optional)> | G41: 0 | H41: 0 | I41: ='10. Workstream Implem. Discount'!$C$15 -> 60.00% | J41: 0 | Q41: <other item for vendor input (optional)> | V41: 0 | W41: 0 | X41: ='10. Workstream Implem. Discount'!$C$15 -> 60.00% | Y41: 0 | AF41: <other item for vendor input (optional)> | AK41: 0 | AL41: 0 | AM41: ='10. Workstream Implem. Discount'!$C$15 -> 60.00% | AN41: 0
B42: <other item for vendor input (optional)> | G42: 0 | H42: 0 | I42: ='10. Workstream Implem. Discount'!$C$15 -> 60.00% | J42: 0 | Q42: <other item for vendor input (optional)> | V42: 0 | W42: 0 | X42: ='10. Workstream Implem. Discount'!$C$15 -> 60.00% | Y42: 0 | AF42: <other item for vendor input (optional)> | AK42: 0 | AL42: 0 | AM42: ='10. Workstream Implem. Discount'!$C$15 -> 60.00% | AN42: 0
B43: Supporting Services: | Q43: Supporting Services: | AF43: Supporting Services:
B44: Project Initiation | G44: =C44+E44 -> 0 | H44: =SUM(D44+F44) -> 0 | I44: ='10. Workstream Implem. Discount'!$C$15 -> 60.00% | J44: =(1-I44)*H44 -> 0 | Q44: Project Initiation | V44: =R44+T44 -> 0 | W44: =SUM(S44+U44) -> 0 | X44: ='10. Workstream Implem. Discount'!$C$15 -> 60.00% | Y44: =(1-X44)*W44 -> 0 | AF44: Project Initiation | AK44: =AG44+AI44 -> 0 | AL44: =SUM(AH44+AJ44) -> 0 | AM44: ='10. Workstream Implem. Discount'!$C$15 -> 60.00% | AN44: =(1-AM44)*AL44 -> 0
B45: Project Management | G45: 0 | H45: 0 | I45: ='10. Workstream Implem. Discount'!$C$15 -> 60.00% | J45: 0 | Q45: Project Management | V45: 0 | W45: 0 | X45: ='10. Workstream Implem. Discount'!$C$15 -> 60.00% | Y45: 0 | AF45: Project Management | AK45: 0 | AL45: 0 | AM45: ='10. Workstream Implem. Discount'!$C$15 -> 60.00% | AN45: 0
B46: Change Management | G46: 0 | H46: 0 | I46: ='10. Workstream Implem. Discount'!$C$15 -> 60.00% | J46: 0 | Q46: Change Management | V46: 0 | W46: 0 | X46: ='10. Workstream Implem. Discount'!$C$15 -> 60.00% | Y46: 0 | AF46: Change Management | AK46: 0 | AL46: 0 | AM46: ='10. Workstream Implem. Discount'!$C$15 -> 60.00% | AN46: 0
B47: Training Services | G47: 0 | H47: 0 | I47: ='10. Workstream Implem. Discount'!$C$15 -> 60.00% | J47: 0 | Q47: Training Services | V47: 0 | W47: 0 | X47: ='10. Workstream Implem. Discount'!$C$15 -> 60.00% | Y47: 0 | AF47: Training Services | AK47: 0 | AL47: 0 | AM47: ='10. Workstream Implem. Discount'!$C$15 -> 60.00% | AN47: 0
B48: Help Desk Services (Costs for period from contract award through 6 months following t'Go Live' | G48: 0 | H48: 0 | I48: ='10. Workstream Implem. Discount'!$C$15 -> 60.00% | J48: 0 | Q48: Help Desk Services (Costs for period from contract award through 6 months following t'Go Live' | V48: 0 | W48: 0 | X48: ='10. Workstream Implem. Discount'!$C$15 -> 60.00% | Y48: 0 | AF48: Help Desk Services (Costs for period from contract award through 6 months following t'Go Live' | AK48: 0 | AL48: 0 | AM48: ='10. Workstream Implem. Discount'!$C$15 -> 60.00% | AN48: 0
B49: <other item for vendor input (optional)> | G49: 0 | H49: 0 | I49: ='10. Workstream Implem. Discount'!$C$15 -> 60.00% | J49: 0 | Q49: <other item for vendor input (optional)> | V49: 0 | W49: 0 | X49: ='10. Workstream Implem. Discount'!$C$15 -> 60.00% | Y49: 0 | AF49: <other item for vendor input (optional)> | AK49: 0 | AL49: 0 | AM49: ='10. Workstream Implem. Discount'!$C$15 -> 60.00% | AN49: 0
B50: <other item for vendor input (optional)> | G50: 0 | H50: 0 | I50: ='10. Workstream Implem. Discount'!$C$15 -> 60.00% | J50: 0 | Q50: <other item for vendor input (optional)> | V50: 0 | W50: 0 | X50: ='10. Workstream Implem. Discount'!$C$15 -> 60.00% | Y50: 0 | AF50: <other item for vendor input (optional)> | AK50: 0 | AL50: 0 | AM50: ='10. Workstream Implem. Discount'!$C$15 -> 60.00% | AN50: 0
B51: <other item for vendor input (optional)> | G51: 0 | H51: 0 | I51: ='10. Workstream Implem. Discount'!$C$15 -> 60.00% | J51: 0 | Q51: <other item for vendor input (optional)> | V51: 0 | W51: 0 | X51: ='10. Workstream Implem. Discount'!$C$15 -> 60.00% | Y51: 0 | AF51: <other item for vendor input (optional)> | AK51: 0 | AL51: 0 | AM51: ='10. Workstream Implem. Discount'!$C$15 -> 60.00% | AN51: 0
B52: <other item for vendor input (optional)> | G52: 0 | H52: 0 | I52: ='10. Workstream Implem. Discount'!$C$15 -> 60.00% | J52: 0 | Q52: <other item for vendor input (optional)> | V52: 0 | W52: 0 | X52: ='10. Workstream Implem. Discount'!$C$15 -> 60.00% | Y52: 0 | AF52: <other item for vendor input (optional)> | AK52: 0 | AL52: 0 | AM52: ='10. Workstream Implem. Discount'!$C$15 -> 60.00% | AN52: 0
B53: <other item for vendor input (optional)> | G53: 0 | H53: 0 | I53: ='10. Workstream Implem. Discount'!$C$15 -> 60.00% | J53: 0 | Q53: <other item for vendor input (optional)> | V53: 0 | W53: 0 | X53: ='10. Workstream Implem. Discount'!$C$15 -> 60.00% | Y53: 0 | AF53: <other item for vendor input (optional)> | AK53: 0 | AL53: 0 | AM53: ='10. Workstream Implem. Discount'!$C$15 -> 60.00% | AN53: 0
B54: Total | D54: =SUM(D38:D42,D44:D53) -> 0 | F54: =SUM(F38:F42,F44:F53) -> 0 | H54: =SUM(H38:H42,H44:H53) -> 0 | I54: ='10. Workstream Implem. Discount'!$C$15 -> 60.00% | J54: =SUM(J38:J42,J44:J53) -> 0 | Q54: Total | S54: =SUM(S38:S42,S44:S53) -> 0 | U54: =SUM(U38:U42,U44:U53) -> 0 | W54: =SUM(W38:W42,W44:W53) -> 0 | X54: ='10. Workstream Implem. Discount'!$C$15 -> 60.00% | Y54: =SUM(Y38:Y42,Y44:Y53) -> 0 | AF54: Total | AH54: =SUM(AH38:AH42,AH44:AH53) -> 0 | AJ54: =SUM(AJ38:AJ42,AJ44:AJ53) -> 0 | AL54: =SUM(AL38:AL42,AL44:AL53) -> 0 | AM54: ='10. Workstream Implem. Discount'!$C$15 -> 60.00% | AN54: =SUM(AN38:AN42,AN44:AN53) -> 0
B57: C. Annual Licensing Costs including Maintenance (Note: Unlimited users and "Final Costs" values should equal the "Total" values for Annual Licensing & Maintenance in Table A.) | Q57: C. Annual Licensing Costs including Maintenance (Note: Unlimited users and "Final Costs" values should equal the "Total" values for Annual Licensing & Maintenance in Table A.) | AF57: C. Annual Licensing Costs including Maintenance (Note: Unlimited users and "Final Costs" values should equal the "Total" values for Annual Licensing & Maintenance in Table A.)
C58: Year 1 | D58: Year 2 | E58: Year 3 | F58: Year 4 | G58: Year 5 | H58: Year 6 | I58: Year 7 | J58: Year 8 | K58: Year 9 | L58: Year 10 | M58: Total | N58: Discount (%) | O58: Final Costs | R58: Year 1 | S58: Year 2 | T58: Year 3 | U58: Year 4 | V58: Year 5 | W58: Year 6 | X58: Year 7 | Y58: Year 8 | Z58: Year 9 | AA58: Year 10 | AB58: Total | AC58: Discount (%) | AD58: Final Costs | AG58: Year 1 | AH58: Year 2 | AI58: Year 3 | AJ58: Year 4 | AK58: Year 5 | AL58: Year 6 | AM58: Year 7 | AN58: Year 8 | AO58: Year 9 | AP58: Year 10 | AQ58: Total | AR58: Discount (%) | AS58: Final Costs
B59: Purchasing/Data Analytics | M59: =SUM(C59:L59) -> 0 | N59: ='10. Workstream Implem. Discount'!$C$16 -> 40.00% | O59: =(1-N59)*M59 -> 0 | Q59: Purchasing/Data Analytics | AB59: =SUM(R59:AA59) -> 0 | AC59: ='10. Workstream Implem. Discount'!$C$16 -> 40.00% | AD59: =(1-AC59)*AB59 -> 0 | AF59: Purchasing/Data Analytics | AQ59: =SUM(AG59:AP59) -> 0 | AR59: ='10. Workstream Implem. Discount'!$C$16 -> 40.00% | AS59: =(1-AR59)*AQ59 -> 0
B60: Integration | M60: 0 | N60: ='10. Workstream Implem. Discount'!$C$16 -> 40.00% | O60: 0 | Q60: Integration | AB60: 0 | AC60: ='10. Workstream Implem. Discount'!$C$16 -> 40.00% | AD60: 0 | AF60: Integration | AQ60: 0 | AR60: ='10. Workstream Implem. Discount'!$C$16 -> 40.00% | AS60: 0
B61: <other item for vendor input (optional)> | M61: 0 | N61: ='10. Workstream Implem. Discount'!$C$16 -> 40.00% | O61: 0 | Q61: <other item for vendor input (optional)> | AB61: 0 | AC61: ='10. Workstream Implem. Discount'!$C$16 -> 40.00% | AD61: 0 | AF61: <other item for vendor input (optional)> | AQ61: 0 | AR61: ='10. Workstream Implem. Discount'!$C$16 -> 40.00% | AS61: 0
B62: <other item for vendor input (optional)> | M62: 0 | N62: ='10. Workstream Implem. Discount'!$C$16 -> 40.00% | O62: 0 | Q62: <other item for vendor input (optional)> | AB62: 0 | AC62: ='10. Workstream Implem. Discount'!$C$16 -> 40.00% | AD62: 0 | AF62: <other item for vendor input (optional)> | AQ62: 0 | AR62: ='10. Workstream Implem. Discount'!$C$16 -> 40.00% | AS62: 0
B63: <other item for vendor input (optional)> | M63: 0 | N63: ='10. Workstream Implem. Discount'!$C$16 -> 40.00% | O63: 0 | Q63: <other item for vendor input (optional)> | AB63: 0 | AC63: ='10. Workstream Implem. Discount'!$C$16 -> 40.00% | AD63: 0 | AF63: <other item for vendor input (optional)> | AQ63: 0 | AR63: ='10. Workstream Implem. Discount'!$C$16 -> 40.00% | AS63: 0
B64: <other item for vendor input (optional)> | M64: 0 | N64: ='10. Workstream Implem. Discount'!$C$16 -> 40.00% | O64: 0 | Q64: <other item for vendor input (optional)> | AB64: 0 | AC64: ='10. Workstream Implem. Discount'!$C$16 -> 40.00% | AD64: 0 | AF64: <other item for vendor input (optional)> | AQ64: 0 | AR64: ='10. Workstream Implem. Discount'!$C$16 -> 40.00% | AS64: 0
B65: TOTAL | C65: =SUM(C59:C64) -> 0 | D65: 0 | E65: 0 | F65: 0 | G65: 0 | H65: 0 | I65: 0 | J65: 0 | K65: 0 | L65: 0 | M65: 0 | N65: ='10. Workstream Implem. Discount'!$C$16 -> 40.00% | O65: =SUM(O59:O64) -> 0 | Q65: TOTAL | R65: =SUM(R59:R64) -> 0 | S65: 0 | T65: 0 | U65: 0 | V65: 0 | W65: 0 | X65: 0 | Y65: 0 | Z65: 0 | AA65: 0 | AB65: 0 | AC65: ='10. Workstream Implem. Discount'!$C$16 -> 40.00% | AD65: =SUM(AD59:AD64) -> 0 | AF65: TOTAL | AG65: =SUM(AG59:AG64) -> 0 | AH65: 0 | AI65: 0 | AJ65: 0 | AK65: 0 | AL65: 0 | AM65: 0 | AN65: 0 | AO65: 0 | AP65: 0 | AQ65: 0 | AR65: ='10. Workstream Implem. Discount'!$C$16 -> 40.00% | AS65: =SUM(AS59:AS64) -> 0
B68: D. Managed Services Support Costs (Note: "Total" values should equal the "Final Costs" values for Managed ServicesSupport in Table A.) | Q68: D. Managed Services Support Costs (Note: "Total" values should equal the "Final Costs" values for Managed ServicesSupport in Table A.) | AF68: D. Managed Services Support Costs (Note: "Total" values should equal the "Final Costs" values for Managed ServicesSupport in Table A.)
C69: Year 1 | D69: Year 2 | E69: Year 3 | F69: Year 4 | G69: Year 5 | H69: Year 6 | I69: Year 7 | J69: Year 8 | K69: Year 9 | L69: Year 10 | M69: Total | N69: Discount (%) | O69: Final Costs | R69: Year 1 | S69: Year 2 | T69: Year 3 | U69: Year 4 | V69: Year 5 | W69: Year 6 | X69: Year 7 | Y69: Year 8 | Z69: Year 9 | AA69: Year 10 | AB69: Total | AC69: Discount (%) | AD69: Final Costs | AG69: Year 1 | AH69: Year 2 | AI69: Year 3 | AJ69: Year 4 | AK69: Year 5 | AL69: Year 6 | AM69: Year 7 | AN69: Year 8 | AO69: Year 9 | AP69: Year 10 | AQ69: Total | AR69: Discount (%) | AS69: Final Costs
B70: On-site System Stabilization Support | M70: =SUM(C70:L70) -> 0 | N70: ='10. Workstream Implem. Discount'!$C$17 -> 50.00% | O70: =(1-N70)*M70 -> 0 | Q70: On-site System Stabilization Support | AB70: =SUM(R70:AA70) -> 0 | AC70: ='10. Workstream Implem. Discount'!$C$17 -> 50.00% | AD70: =(1-AC70)*AB70 -> 0 | AF70: On-site System Stabilization Support | AQ70: =SUM(AG70:AP70) -> 0 | AR70: ='10. Workstream Implem. Discount'!$C$17 -> 50.00% | AS70: =(1-AR70)*AQ70 -> 0
B71: Third Party Licensing (e.g. NIGP Codes) | M71: 0 | N71: ='10. Workstream Implem. Discount'!$C$17 -> 50.00% | O71: 0 | Q71: Third Party Licensing (e.g. NIGP Codes) | AB71: 0 | AC71: ='10. Workstream Implem. Discount'!$C$17 -> 50.00% | AD71: 0 | AF71: Third Party Licensing (e.g. NIGP Codes) | AQ71: 0 | AR71: ='10. Workstream Implem. Discount'!$C$17 -> 50.00% | AS71: 0
B72: Transition Out Assistance Services | M72: 0 | N72: ='10. Workstream Implem. Discount'!$C$17 -> 50.00% | O72: 0 | Q72: Transition Out Assistance Services | AB72: 0 | AC72: ='10. Workstream Implem. Discount'!$C$17 -> 50.00% | AD72: 0 | AF72: Transition Out Assistance Services | AQ72: 0 | AR72: ='10. Workstream Implem. Discount'!$C$17 -> 50.00% | AS72: 0
B73: <other item for vendor input (optional)> | M73: 0 | N73: ='10. Workstream Implem. Discount'!$C$17 -> 50.00% | O73: 0 | Q73: <other item for vendor input (optional)> | AB73: 0 | AC73: ='10. Workstream Implem. Discount'!$C$17 -> 50.00% | AD73: 0 | AF73: <other item for vendor input (optional)> | AQ73: 0 | AR73: ='10. Workstream Implem. Discount'!$C$17 -> 50.00% | AS73: 0
B74: <other item for vendor input (optional)> | M74: 0 | N74: ='10. Workstream Implem. Discount'!$C$17 -> 50.00% | O74: 0 | Q74: <other item for vendor input (optional)> | AB74: 0 | AC74: ='10. Workstream Implem. Discount'!$C$17 -> 50.00% | AD74: 0 | AF74: <other item for vendor input (optional)> | AQ74: 0 | AR74: ='10. Workstream Implem. Discount'!$C$17 -> 50.00% | AS74: 0
B75: <other item for vendor input (optional)> | M75: 0 | N75: ='10. Workstream Implem. Discount'!$C$17 -> 50.00% | O75: 0 | Q75: <other item for vendor input (optional)> | AB75: 0 | AC75: ='10. Workstream Implem. Discount'!$C$17 -> 50.00% | AD75: 0 | AF75: <other item for vendor input (optional)> | AQ75: 0 | AR75: ='10. Workstream Implem. Discount'!$C$17 -> 50.00% | AS75: 0
B76: <other item for vendor input (optional)> | M76: 0 | N76: ='10. Workstream Implem. Discount'!$C$17 -> 50.00% | O76: 0 | Q76: <other item for vendor input (optional)> | AB76: 0 | AC76: ='10. Workstream Implem. Discount'!$C$17 -> 50.00% | AD76: 0 | AF76: <other item for vendor input (optional)> | AQ76: 0 | AR76: ='10. Workstream Implem. Discount'!$C$17 -> 50.00% | AS76: 0
B77: <other item for vendor input (optional)> | M77: 0 | N77: ='10. Workstream Implem. Discount'!$C$17 -> 50.00% | O77: 0 | Q77: <other item for vendor input (optional)> | AB77: 0 | AC77: ='10. Workstream Implem. Discount'!$C$17 -> 50.00% | AD77: 0 | AF77: <other item for vendor input (optional)> | AQ77: 0 | AR77: ='10. Workstream Implem. Discount'!$C$17 -> 50.00% | AS77: 0
B78: TOTAL | C78: =SUM(C70:C77) -> 0 | D78: 0 | E78: 0 | F78: 0 | G78: 0 | H78: 0 | I78: 0 | J78: 0 | K78: 0 | L78: 0 | M78: 0 | N78: ='10. Workstream Implem. Discount'!$C$17 -> 50.00% | O78: =SUM(O70:O77) -> 0 | Q78: TOTAL | R78: =SUM(R70:R77) -> 0 | S78: 0 | T78: 0 | U78: 0 | V78: 0 | W78: 0 | X78: 0 | Y78: 0 | Z78: 0 | AA78: 0 | AB78: 0 | AC78: ='10. Workstream Implem. Discount'!$C$17 -> 50.00% | AD78: =SUM(AD70:AD77) -> 0 | AF78: TOTAL | AG78: =SUM(AG70:AG77) -> 0 | AH78: 0 | AI78: 0 | AJ78: 0 | AK78: 0 | AL78: 0 | AM78: 0 | AN78: 0 | AO78: 0 | AP78: 0 | AQ78: 0 | AR78: ='10. Workstream Implem. Discount'!$C$17 -> 50.00% | AS78: =SUM(AS70:AS77) -> 0
B81: *E. Assumptions | Q81: *E. Assumptions | AF81: *E. Assumptions
B88: <insert rows for additional Assumptions> | Q88: <insert rows for additional Assumptions> | AF88: <insert rows for additional Assumptions>

Sheet 6. Sourcing-Bid Mgmt
B1: RFP# 202102021 - eProcurement Solution and Services
B2: Cost Proposal Workbook - WORKSTREAM IMPLEMENTATION
B3: Bidder's Name: | C3: BONFIRE INTERACTIVE LTD.
B6: Instructions: The Fixed Pricing is to reflect contracting for the IMPLEMENTATION and SOFTWARE of an eProcurement Solution for the specific Workstream as required in Sections A thru F of the RFP for the specifically identified Scenarios on this Tab.
B7: 1. In the tables below Bidders must provide the firm, fixed prices in each yellow shaded cell that corresponds to the detail listed in each table. Bidders are to provide prices for the three identified scenarios which reflect the concepts of small, medium and large States. There are separate sets of tables for each scenario and bidders must provide complete responses for each scenario. NOTE: Scenario scope that is not relevant to the specific Workstream being proposed does not have to be addressed however Bidders must list the specific Scope areas not addressed by the proposed solution in Table E "Assumptions".
B8: 2. In Table A, Bidders must provide the overall pricing breakdown of what is included to deliver the identified eProcurement Solution/Service that meets the associated requirements detailed in the RFP and RTM. The prices must include the licensing and maintenance costs, implemetation costs for deployment, and the costs for on-going operations and support of the implemented Solution. TThe costs in this table reflect the total Final Cost values in Tables B-D which have had the proposed discount (Tab 2) applied.
B9: 3. In Table B, Bidders must provide the total hours, costs, and discounted Final Costs as per relevant proposaed discount identifed on "Tab 2. Complete Solution Discount" for the approach to implement the identified workstream functionality, integations, conversion from existing State systems, staffing and support services, etc. as described in each Scenario.
B10: 4. In Table C, Bidders must provide pricing details for the Licensing and Maintenance proposed for the identified workstream/module, integration, and applications that meet the relevant requirements of this RFP. The discounted Final Costs represents applying the relevant proposed discount from "Tab 2. Complete Solution Discount" to the Total.
B11: 5. In Table D, Bidders must provide pricing details for the proposed Managed Services for the identified workstream to meet the requirements described in Section F of the RFP. The discounted Final Costs represents applying the relevant discount from "Tab 2. Complete Solution Discount" to the Total.
B12: 6. In Table E, Bidders must document all assumptions that are reflected in the proposed Pricing. Bidders proposing services only must identify the specific eProcurement solution(s) that the proposed services costs reflect.
B14: SCENARIOs
B15: Scope Common to all Scenarios | C15: • 24 month implementation period • Suppliers managed through eProcurement Solution • State provides dedicated Project Team including Project Sponsor, Project Manager, Functional Lead, Technical Lead, SMEs, Testers, Trainers and technical staff for the state side of integration programming. • Implementation Services provided include o Integration/Interface to on-premise Finance system > PeopleSoft 9.2 > Real-time integration points to Finance - Supplier accounts, create/update (eProcurement solution is system of record) - Requisitions - Purchase Orders/Change Orders - Invoice ‘Ok to Pay’ > Batch interface points - Chart of Accounts values from Finance - Receiving to Finance o Organizational Change Management Services o Training Services > Contractor delivered End User training for 25% of scenario user count > 'Train the Trainer' training for 10 State staff > Supplier training through 20 live webinars o Help Desk Services: Full end user support, State and Supplier • Managed Services provided include o Solution Support o Additional Help Desk Services; as described above for 6 months after go-live of final solution component o On-site System Stabilization Support for 3 months after go-live of final solution component
B16: Scenario I - Large State | C16: GDP: $700 Billion Spend: $8 Billion/year Population: 11 Million State Employees: 125,000 User Count: 1,250 Buyers, 11,250 End Users Suppliers: 100,000 with 60,000 to be converted from the Finance System during implementation. Contracts: 1,000 Central Procurement Office issued, 2500 Agency issued. Data conversion of basic data from the Finance System during implementation for all Contracts. Solicitations: 2,400/year Catalogs: 1000 Hosted, 100 Punchouts with no catalogs to be converted from the Finance System during implementation. Purchase Orders: 400,000 issued/year Invoices: 600,000/year
B17: Scenario II - Medium State | C17: GDP: $300 Billion Spend: $4 Billion/year Population: 6 Million State Employees: 70,000 User Count: 700 Buyers, 6,300 End Users Suppliers: 75,000 with 50,000 to be converted from the Finance System during implementation. Contracts: 800 Central Procurement Office issued, 2000 Agency issued. Data conversion of basic data from the Finance System during implementation for all Contracts. Solicitations: 1,600/year Catalogs: 1000 Hosted, 80 Punchouts with no catalogs to be converted from the Finance System during implementation. Purchase Orders: 150,000 issued/year Invoices: 225,000/year
B18: Scenario III - Small State | C18: GDP: $100 Billion Spend: $2 Billion/year Population: 3 Million State Employees: 50,000 User Count: 500 Buyers, 4,500 End Users Suppliers: 50,000 with 35,000 to be converted from the Finance System during implementation. Contracts: 500 Central Procurement Office issued, 1500 Agency issued. Data conversion of basic data from the Finance System during implementation for all Contracts. Solicitations: 1,000/year Catalogs: 500 Hosted, 60 Punchouts with no catalogs to be converted from the Finance System during implementation. Purchase Orders: 80,000 issued/year Invoices: 105,000/year
B20: SCENARIO I - LARGE STATE PRICING | Q20: SCENARIO II - MEDIUM STATE PRICING | AF20: SCENARIO III - SMALL STATE PRICING
B22: A. Overall Cost Proposal (The all-in-costs necessary to provide an eProcurement Solution that meet the mandatory requirements of the RFP and is a total of the values in Tables B-D) | Q22: A. Overall Cost Proposal (The all-in-costs necessary to provide an eProcurement Solution that meet the mandatory requirements of the RFP and is a total of the values in Tables B-D) | AF22: A. Overall Cost Proposal (The all-in-costs necessary to provide an eProcurement Solution that meet the mandatory requirements of the RFP and is a total of the values in Tables B-D)
C23: Year 1 | D23: Year 2 | E23: Year 3 | F23: Year 4 | G23: Year 5 | H23: Year 6 | I23: Year 7 | J23: Year 8 | K23: Year 9 | L23: Year 10 | M23: Total | R23: Year 1 | S23: Year 2 | T23: Year 3 | U23: Year 4 | V23: Year 5 | W23: Year 6 | X23: Year 7 | Y23: Year 8 | Z23: Year 9 | AA23: Year 10 | AB23: Total | AG23: Year 1 | AH23: Year 2 | AI23: Year 3 | AJ23: Year 4 | AK23: Year 5 | AL23: Year 6 | AM23: Year 7 | AN23: Year 8 | AO23: Year 9 | AP23: Year 10 | AQ23: Total
B24: Solution Implementation Costs | C24: =D54*(1-'10. Workstream Implem. Discount'!$C$15) -> $176,000.00 | D24: =F54*(1-'10. Workstream Implem. Discount'!$C$15) -> $176,000.00 | M24: =SUM(C24:L24) -> $352,000.00 | Q24: Solution Implementation Costs | R24: =S54*(1-'10. Workstream Implem. Discount'!$C$15) -> $124,500.00 | S24: =U54*(1-'10. Workstream Implem. Discount'!$C$15) -> $124,500.00 | AB24: =SUM(R24:AA24) -> $249,000.00 | AF24: Solution Implementation Costs | AG24: =AH54*(1-'10. Workstream Implem. Discount'!$C$15) -> $53,000.00 | AH24: =AJ54*(1-'10. Workstream Implem. Discount'!$C$15) -> $53,000.00 | AQ24: =SUM(AG24:AP24) -> $106,000.00
B25: Annual Licensing/Maintenance Costs | C25: =C65*(1-'10. Workstream Implem. Discount'!$C$16) -> $1,824,000.00 | D25: =D65*(1-'10. Workstream Implem. Discount'!$C$16) -> $1,824,000.00 | E25: =E65*(1-'10. Workstream Implem. Discount'!$C$16) -> $1,824,000.00 | F25: =F65*(1-'10. Workstream Implem. Discount'!$C$16) -> $1,824,000.00 | G25: =G65*(1-'10. Workstream Implem. Discount'!$C$16) -> $1,824,000.00 | H25: =H65*(1-'10. Workstream Implem. Discount'!$C$16) -> $1,824,000.00 | I25: =I65*(1-'10. Workstream Implem. Discount'!$C$16) -> $1,824,000.00 | J25: =J65*(1-'10. Workstream Implem. Discount'!$C$16) -> $1,824,000.00 | K25: =K65*(1-'10. Workstream Implem. Discount'!$C$16) -> $1,824,000.00 | L25: =L65*(1-'10. Workstream Implem. Discount'!$C$16) -> $1,824,000.00 | M25: $18,240,000.00 | Q25: Annual Licensing/Maintenance Costs | R25: =R65*(1-'10. Workstream Implem. Discount'!$C$16) -> $1,155,000.00 | S25: =S65*(1-'10. Workstream Implem. Discount'!$C$16) -> $1,155,000.00 | T25: =T65*(1-'10. Workstream Implem. Discount'!$C$16) -> $1,155,000.00 | U25: =U65*(1-'10. Workstream Implem. Discount'!$C$16) -> $1,155,000.00 | V25: =V65*(1-'10. Workstream Implem. Discount'!$C$16) -> $1,155,000.00 | W25: =W65*(1-'10. Workstream Implem. Discount'!$C$16) -> $1,155,000.00 | X25: =X65*(1-'10. Workstream Implem. Discount'!$C$16) -> $1,155,000.00 | Y25: =Y65*(1-'10. Workstream Implem. Discount'!$C$16) -> $1,155,000.00 | Z25: =Z65*(1-'10. Workstream Implem. Discount'!$C$16) -> $1,155,000.00 | AA25: =AA65*(1-'10. Workstream Implem. Discount'!$C$16) -> $1,155,000.00 | AB25: $11,550,000.00 | AF25: Annual Licensing/Maintenance Costs | AG25: =AG65*(1-'10. Workstream Implem. Discount'!$C$16) -> $540,000.00 | AH25: =AH65*(1-'10. Workstream Implem. Discount'!$C$16) -> $540,000.00 | AI25: =AI65*(1-'10. Workstream Implem. Discount'!$C$16) -> $540,000.00 | AJ25: =AJ65*(1-'10. Workstream Implem. Discount'!$C$16) -> $540,000.00 | AK25: =AK65*(1-'10. Workstream Implem. Discount'!$C$16) -> $540,000.00 | AL25: =AL65*(1-'10. Workstream Implem. Discount'!$C$16) -> $540,000.00 | AM25: =AM65*(1-'10. Workstream Implem. Discount'!$C$16) -> $540,000.00 | AN25: =AN65*(1-'10. Workstream Implem. Discount'!$C$16) -> $540,000.00 | AO25: =AO65*(1-'10. Workstream Implem. Discount'!$C$16) -> $540,000.00 | AP25: =AP65*(1-'10. Workstream Implem. Discount'!$C$16) -> $540,000.00 | AQ25: $5,400,000.00
B26: Managed Services Support Costs | C26: =C78*(1-'10. Workstream Implem. Discount'!$C$17) -> $150,000.00 | D26: =D78*(1-'10. Workstream Implem. Discount'!$C$17) -> $150,000.00 | E26: =E78*(1-'10. Workstream Implem. Discount'!$C$17) -> $150,000.00 | F26: =F78*(1-'10. Workstream Implem. Discount'!$C$17) -> $150,000.00 | G26: =G78*(1-'10. Workstream Implem. Discount'!$C$17) -> $150,000.00 | H26: =H78*(1-'10. Workstream Implem. Discount'!$C$17) -> $150,000.00 | I26: =I78*(1-'10. Workstream Implem. Discount'!$C$17) -> $150,000.00 | J26: =J78*(1-'10. Workstream Implem. Discount'!$C$17) -> $150,000.00 | K26: =K78*(1-'10. Workstream Implem. Discount'!$C$17) -> $150,000.00 | L26: =L78*(1-'10. Workstream Implem. Discount'!$C$17) -> $150,000.00 | M26: $1,500,000.00 | Q26: Managed Services Support Costs | R26: =R78*(1-'10. Workstream Implem. Discount'!$C$17) -> $93,750.00 | S26: =S78*(1-'10. Workstream Implem. Discount'!$C$17) -> $93,750.00 | T26: =T78*(1-'10. Workstream Implem. Discount'!$C$17) -> $93,750.00 | U26: =U78*(1-'10. Workstream Implem. Discount'!$C$17) -> $93,750.00 | V26: =V78*(1-'10. Workstream Implem. Discount'!$C$17) -> $93,750.00 | W26: =W78*(1-'10. Workstream Implem. Discount'!$C$17) -> $93,750.00 | X26: =X78*(1-'10. Workstream Implem. Discount'!$C$17) -> $93,750.00 | Y26: =Y78*(1-'10. Workstream Implem. Discount'!$C$17) -> $93,750.00 | Z26: =Z78*(1-'10. Workstream Implem. Discount'!$C$17) -> $93,750.00 | AA26: =AA78*(1-'10. Workstream Implem. Discount'!$C$17) -> $93,750.00 | AB26: $937,500.00 | AF26: Managed Services Support Costs | AG26: =AG78*(1-'10. Workstream Implem. Discount'!$C$17) -> $45,000.00 | AH26: =AH78*(1-'10. Workstream Implem. Discount'!$C$17) -> $45,000.00 | AI26: =AI78*(1-'10. Workstream Implem. Discount'!$C$17) -> $45,000.00 | AJ26: =AJ78*(1-'10. Workstream Implem. Discount'!$C$17) -> $45,000.00 | AK26: =AK78*(1-'10. Workstream Implem. Discount'!$C$17) -> $45,000.00 | AL26: =AL78*(1-'10. Workstream Implem. Discount'!$C$17) -> $45,000.00 | AM26: =AM78*(1-'10. Workstream Implem. Discount'!$C$17) -> $45,000.00 | AN26: =AN78*(1-'10. Workstream Implem. Discount'!$C$17) -> $45,000.00 | AO26: =AO78*(1-'10. Workstream Implem. Discount'!$C$17) -> $45,000.00 | AP26: =AP78*(1-'10. Workstream Implem. Discount'!$C$17) -> $45,000.00 | AQ26: $450,000.00
B27: <other item for vendor input (optional)> | M27: 0 | Q27: <other item for vendor input (optional)> | AB27: 0 | AF27: <other item for vendor input (optional)> | AQ27: 0
B28: <other item for vendor input (optional)> | M28: 0 | Q28: <other item for vendor input (optional)> | AB28: 0 | AF28: <other item for vendor input (optional)> | AQ28: 0
B29: <other item for vendor input (optional)> | M29: 0 | Q29: <other item for vendor input (optional)> | AB29: 0 | AF29: <other item for vendor input (optional)> | AQ29: 0
B30: <other item for vendor input (optional)> | M30: 0 | Q30: <other item for vendor input (optional)> | AB30: 0 | AF30: <other item for vendor input (optional)> | AQ30: 0
B31: <other item for vendor input (optional)> | M31: 0 | Q31: <other item for vendor input (optional)> | AB31: 0 | AF31: <other item for vendor input (optional)> | AQ31: 0
B32: <other item for vendor input (optional)> | M32: 0 | Q32: <other item for vendor input (optional)> | AB32: 0 | AF32: <other item for vendor input (optional)> | AQ32: 0
B33: TOTAL | C33: =SUM(C24:C32) -> $2,150,000.00 | D33: $2,150,000.00 | E33: $1,974,000.00 | F33: $1,974,000.00 | G33: $1,974,000.00 | H33: $1,974,000.00 | I33: $1,974,000.00 | J33: $1,974,000.00 | K33: $1,974,000.00 | L33: $1,974,000.00 | M33: $20,092,000.00 | Q33: TOTAL | R33: =SUM(R24:R32) -> $1,373,250.00 | S33: $1,373,250.00 | T33: $1,248,750.00 | U33: $1,248,750.00 | V33: $1,248,750.00 | W33: $1,248,750.00 | X33: $1,248,750.00 | Y33: $1,248,750.00 | Z33: $1,248,750.00 | AA33: $1,248,750.00 | AB33: $12,736,500.00 | AF33: TOTAL | AG33: =SUM(AG24:AG32) -> $638,000.00 | AH33: $638,000.00 | AI33: $585,000.00 | AJ33: $585,000.00 | AK33: $585,000.00 | AL33: $585,000.00 | AM33: $585,000.00 | AN33: $585,000.00 | AO33: $585,000.00 | AP33: $585,000.00 | AQ33: $5,956,000.00
B35: B. Solution Implementation Costs - Distribute over Years 1 & 2 Note: "Final Costs" values should equal the "Total" values for Solution Implementation in Table A. | Q35: B. Solution Implementation Costs - Distribute over Years 1 & 2 Note: "Final Costs" values should equal the "Total" values for Solution Implementation in Table A. | AF35: B. Solution Implementation Costs - Distribute over Years 1 & 2 Note: "Final Costs" values should equal the "Total" values for Solution Implementation in Table A.
C36: Year 1 | E36: Year 2 | G36: Totals | R36: Year 1 | T36: Year 2 | V36: Totals | AG36: Year 1 | AI36: Year 2 | AK36: Totals
B37: Workstream Costs: | C37: Hours | D37: Costs | E37: Hours | F37: Costs | G37: Hours | H37: Costs | I37: Discount (%) | J37: Final Costs | Q37: Workstream Costs: | R37: Hours | S37: Costs | T37: Hours | U37: Costs | V37: Hours | W37: Costs | X37: Discount (%) | Y37: Final Costs | AF37: Workstream Costs: | AG37: Hours | AH37: Costs | AI37: Hours | AJ37: Costs | AK37: Hours | AL37: Costs | AM37: Discount (%) | AN37: Final Costs
B38: Purchasing/Data Analytics | C38: 75 | D38: $15,000.00 | E38: 75 | F38: $15,000.00 | G38: =C38+E38 -> 150 | H38: =SUM(D38+F38) -> $30,000.00 | I38: ='10. Workstream Implem. Discount'!$C$15 -> 60.00% | J38: =(1-I38)*H38 -> $12,000.00 | Q38: Purchasing/Data Analytics | R38: 75 | S38: $15,000.00 | T38: 75 | U38: $15,000.00 | V38: =R38+T38 -> 150 | W38: =SUM(S38+U38) -> $30,000.00 | X38: ='10. Workstream Implem. Discount'!$C$15 -> 60.00% | Y38: =(1-X38)*W38 -> $12,000.00 | AF38: Purchasing/Data Analytics | AG38: 75 | AH38: $15,000.00 | AI38: 75 | AJ38: $15,000.00 | AK38: =AG38+AI38 -> 150 | AL38: =SUM(AH38+AJ38) -> $30,000.00 | AM38: ='10. Workstream Implem. Discount'!$C$15 -> 60.00% | AN38: =(1-AM38)*AL38 -> $12,000.00
B39: Integration to Finance System | C39: 75 | D39: $15,000.00 | E39: 75 | F39: $15,000.00 | G39: 150 | H39: $30,000.00 | I39: ='10. Workstream Implem. Discount'!$C$15 -> 60.00% | J39: $12,000.00 | Q39: Integration to Finance System | R39: 75 | S39: $15,000.00 | T39: 75 | U39: $15,000.00 | V39: 150 | W39: $30,000.00 | X39: ='10. Workstream Implem. Discount'!$C$15 -> 60.00% | Y39: $12,000.00 | AF39: Integration to Finance System | AG39: 75 | AH39: $15,000.00 | AI39: 75 | AJ39: $15,000.00 | AK39: 150 | AL39: $30,000.00 | AM39: ='10. Workstream Implem. Discount'!$C$15 -> 60.00% | AN39: $12,000.00
B40: <other item for vendor input (optional)> | G40: 0 | H40: 0 | I40: ='10. Workstream Implem. Discount'!$C$15 -> 60.00% | J40: 0 | Q40: <other item for vendor input (optional)> | V40: 0 | W40: 0 | X40: ='10. Workstream Implem. Discount'!$C$15 -> 60.00% | Y40: 0 | AF40: <other item for vendor input (optional)> | AK40: 0 | AL40: 0 | AM40: ='10. Workstream Implem. Discount'!$C$15 -> 60.00% | AN40: 0
B41: <other item for vendor input (optional)> | G41: 0 | H41: 0 | I41: ='10. Workstream Implem. Discount'!$C$15 -> 60.00% | J41: 0 | Q41: <other item for vendor input (optional)> | V41: 0 | W41: 0 | X41: ='10. Workstream Implem. Discount'!$C$15 -> 60.00% | Y41: 0 | AF41: <other item for vendor input (optional)> | AK41: 0 | AL41: 0 | AM41: ='10. Workstream Implem. Discount'!$C$15 -> 60.00% | AN41: 0
B42: <other item for vendor input (optional)> | G42: 0 | H42: 0 | I42: ='10. Workstream Implem. Discount'!$C$15 -> 60.00% | J42: 0 | Q42: <other item for vendor input (optional)> | V42: 0 | W42: 0 | X42: ='10. Workstream Implem. Discount'!$C$15 -> 60.00% | Y42: 0 | AF42: <other item for vendor input (optional)> | AK42: 0 | AL42: 0 | AM42: ='10. Workstream Implem. Discount'!$C$15 -> 60.00% | AN42: 0
B43: Supporting Services: | Q43: Supporting Services: | AF43: Supporting Services:
B44: Project Initiation | C44: 200 | D44: $30,000.00 | E44: 200 | F44: $30,000.00 | G44: =C44+E44 -> 400 | H44: =SUM(D44+F44) -> $60,000.00 | I44: ='10. Workstream Implem. Discount'!$C$15 -> 60.00% | J44: =(1-I44)*H44 -> $24,000.00 | Q44: Project Initiation | R44: 125 | S44: $18,750.00 | T44: 125 | U44: $18,750.00 | V44: =R44+T44 -> 250 | W44: =SUM(S44+U44) -> $37,500.00 | X44: ='10. Workstream Implem. Discount'!$C$15 -> 60.00% | Y44: =(1-X44)*W44 -> $15,000.00 | AF44: Project Initiation | AG44: 50 | AH44: $7,500.00 | AI44: 50 | AJ44: $7,500.00 | AK44: =AG44+AI44 -> 100 | AL44: =SUM(AH44+AJ44) -> $15,000.00 | AM44: ='10. Workstream Implem. Discount'!$C$15 -> 60.00% | AN44: =(1-AM44)*AL44 -> $6,000.00
B45: Project Management | C45: 400 | D45: $60,000.00 | E45: 400 | F45: $60,000.00 | G45: 800 | H45: $120,000.00 | I45: ='10. Workstream Implem. Discount'!$C$15 -> 60.00% | J45: $48,000.00 | Q45: Project Management | R45: 250 | S45: $37,500.00 | T45: 250 | U45: $37,500.00 | V45: 500 | W45: $75,000.00 | X45: ='10. Workstream Implem. Discount'!$C$15 -> 60.00% | Y45: $30,000.00 | AF45: Project Management | AG45: 100 | AH45: $15,000.00 | AI45: 100 | AJ45: $15,000.00 | AK45: 200 | AL45: $30,000.00 | AM45: ='10. Workstream Implem. Discount'!$C$15 -> 60.00% | AN45: $12,000.00
B46: Change Management | C46: 400 | D46: $60,000.00 | E46: 400 | F46: $60,000.00 | G46: 800 | H46: $120,000.00 | I46: ='10. Workstream Implem. Discount'!$C$15 -> 60.00% | J46: $48,000.00 | Q46: Change Management | R46: 250 | S46: $37,500.00 | T46: 250 | U46: $37,500.00 | V46: 500 | W46: $75,000.00 | X46: ='10. Workstream Implem. Discount'!$C$15 -> 60.00% | Y46: $30,000.00 | AF46: Change Management | AG46: 100 | AH46: $15,000.00 | AI46: 100 | AJ46: $15,000.00 | AK46: 200 | AL46: $30,000.00 | AM46: ='10. Workstream Implem. Discount'!$C$15 -> 60.00% | AN46: $12,000.00
B47: Training Services | C47: 1200 | D47: $180,000.00 | E47: 1200 | F47: $180,000.00 | G47: 2400 | H47: $360,000.00 | I47: ='10. Workstream Implem. Discount'!$C$15 -> 60.00% | J47: $144,000.00 | Q47: Training Services | R47: 750 | S47: $112,500.00 | T47: 750 | U47: $112,500.00 | V47: 1500 | W47: $225,000.00 | X47: ='10. Workstream Implem. Discount'!$C$15 -> 60.00% | Y47: $90,000.00 | AF47: Training Services | AG47: 300 | AH47: $45,000.00 | AI47: 300 | AJ47: $45,000.00 | AK47: 600 | AL47: $90,000.00 | AM47: ='10. Workstream Implem. Discount'!$C$15 -> 60.00% | AN47: $36,000.00
B48: Help Desk Services (Costs for period from contract award through 6 months following t'Go Live' | C48: 800 | D48: $80,000.00 | E48: 800 | F48: $80,000.00 | G48: 1600 | H48: $160,000.00 | I48: ='10. Workstream Implem. Discount'!$C$15 -> 60.00% | J48: $64,000.00 | Q48: Help Desk Services (Costs for period from contract award through 6 months following t'Go Live' | R48: 500 | S48: $75,000.00 | T48: 500 | U48: $75,000.00 | V48: 1000 | W48: $150,000.00 | X48: ='10. Workstream Implem. Discount'!$C$15 -> 60.00% | Y48: $60,000.00 | AF48: Help Desk Services (Costs for period from contract award through 6 months following t'Go Live' | AG48: 200 | AH48: $20,000.00 | AI48: 200 | AJ48: $20,000.00 | AK48: 400 | AL48: $40,000.00 | AM48: ='10. Workstream Implem. Discount'!$C$15 -> 60.00% | AN48: $16,000.00
B49: <other item for vendor input (optional)> | G49: 0 | H49: 0 | I49: ='10. Workstream Implem. Discount'!$C$15 -> 60.00% | J49: 0 | Q49: <other item for vendor input (optional)> | V49: 0 | W49: 0 | X49: ='10. Workstream Implem. Discount'!$C$15 -> 60.00% | Y49: 0 | AF49: <other item for vendor input (optional)> | AK49: 0 | AL49: 0 | AM49: ='10. Workstream Implem. Discount'!$C$15 -> 60.00% | AN49: 0
B50: <other item for vendor input (optional)> | G50: 0 | H50: 0 | I50: ='10. Workstream Implem. Discount'!$C$15 -> 60.00% | J50: 0 | Q50: <other item for vendor input (optional)> | V50: 0 | W50: 0 | X50: ='10. Workstream Implem. Discount'!$C$15 -> 60.00% | Y50: 0 | AF50: <other item for vendor input (optional)> | AK50: 0 | AL50: 0 | AM50: ='10. Workstream Implem. Discount'!$C$15 -> 60.00% | AN50: 0
B51: <other item for vendor input (optional)> | G51: 0 | H51: 0 | I51: ='10. Workstream Implem. Discount'!$C$15 -> 60.00% | J51: 0 | Q51: <other item for vendor input (optional)> | V51: 0 | W51: 0 | X51: ='10. Workstream Implem. Discount'!$C$15 -> 60.00% | Y51: 0 | AF51: <other item for vendor input (optional)> | AK51: 0 | AL51: 0 | AM51: ='10. Workstream Implem. Discount'!$C$15 -> 60.00% | AN51: 0
B52: <other item for vendor input (optional)> | G52: 0 | H52: 0 | I52: ='10. Workstream Implem. Discount'!$C$15 -> 60.00% | J52: 0 | Q52: <other item for vendor input (optional)> | V52: 0 | W52: 0 | X52: ='10. Workstream Implem. Discount'!$C$15 -> 60.00% | Y52: 0 | AF52: <other item for vendor input (optional)> | AK52: 0 | AL52: 0 | AM52: ='10. Workstream Implem. Discount'!$C$15 -> 60.00% | AN52: 0
B53: <other item for vendor input (optional)> | G53: 0 | H53: 0 | I53: ='10. Workstream Implem. Discount'!$C$15 -> 60.00% | J53: 0 | Q53: <other item for vendor input (optional)> | V53: 0 | W53: 0 | X53: ='10. Workstream Implem. Discount'!$C$15 -> 60.00% | Y53: 0 | AF53: <other item for vendor input (optional)> | AK53: 0 | AL53: 0 | AM53: ='10. Workstream Implem. Discount'!$C$15 -> 60.00% | AN53: 0
B54: Total | D54: =SUM(D38:D42,D44:D53) -> $440,000.00 | F54: =SUM(F38:F42,F44:F53) -> $440,000.00 | H54: =SUM(H38:H42,H44:H53) -> $880,000.00 | I54: ='10. Workstream Implem. Discount'!$C$15 -> 60.00% | J54: =SUM(J38:J42,J44:J53) -> $352,000.00 | Q54: Total | S54: =SUM(S38:S42,S44:S53) -> $311,250.00 | U54: =SUM(U38:U42,U44:U53) -> $311,250.00 | W54: =SUM(W38:W42,W44:W53) -> $622,500.00 | X54: ='10. Workstream Implem. Discount'!$C$15 -> 60.00% | Y54: =SUM(Y38:Y42,Y44:Y53) -> $249,000.00 | AF54: Total | AH54: =SUM(AH38:AH42,AH44:AH53) -> $132,500.00 | AJ54: =SUM(AJ38:AJ42,AJ44:AJ53) -> $132,500.00 | AL54: =SUM(AL38:AL42,AL44:AL53) -> $265,000.00 | AM54: ='10. Workstream Implem. Discount'!$C$15 -> 60.00% | AN54: =SUM(AN38:AN42,AN44:AN53) -> $106,000.00
B57: C. Annual Licensing Costs including Maintenance (Note: Unlimited users and "Final Costs" values should equal the "Total" values for Annual Licensing & Maintenance in Table A.) | Q57: C. Annual Licensing Costs including Maintenance (Note: Unlimited users and "Final Costs" values should equal the "Total" values for Annual Licensing & Maintenance in Table A.) | AF57: C. Annual Licensing Costs including Maintenance (Note: Unlimited users and "Final Costs" values should equal the "Total" values for Annual Licensing & Maintenance in Table A.)
C58: Year 1 | D58: Year 2 | E58: Year 3 | F58: Year 4 | G58: Year 5 | H58: Year 6 | I58: Year 7 | J58: Year 8 | K58: Year 9 | L58: Year 10 | M58: Total | N58: Discount (%) | O58: Final Costs | R58: Year 1 | S58: Year 2 | T58: Year 3 | U58: Year 4 | V58: Year 5 | W58: Year 6 | X58: Year 7 | Y58: Year 8 | Z58: Year 9 | AA58: Year 10 | AB58: Total | AC58: Discount (%) | AD58: Final Costs | AG58: Year 1 | AH58: Year 2 | AI58: Year 3 | AJ58: Year 4 | AK58: Year 5 | AL58: Year 6 | AM58: Year 7 | AN58: Year 8 | AO58: Year 9 | AP58: Year 10 | AQ58: Total | AR58: Discount (%) | AS58: Final Costs
B59: Purchasing/Data Analytics | C59: $25,000.00 | D59: $25,000.00 | E59: $25,000.00 | F59: $25,000.00 | G59: $25,000.00 | H59: $25,000.00 | I59: $25,000.00 | J59: $25,000.00 | K59: $25,000.00 | L59: $25,000.00 | M59: =SUM(C59:L59) -> $250,000.00 | N59: ='10. Workstream Implem. Discount'!$C$16 -> 40.00% | O59: =(1-N59)*M59 -> $150,000.00 | Q59: Purchasing/Data Analytics | R59: $25,000.00 | S59: $25,000.00 | T59: $25,000.00 | U59: $25,000.00 | V59: $25,000.00 | W59: $25,000.00 | X59: $25,000.00 | Y59: $25,000.00 | Z59: $25,000.00 | AA59: $25,000.00 | AB59: =SUM(R59:AA59) -> $250,000.00 | AC59: ='10. Workstream Implem. Discount'!$C$16 -> 40.00% | AD59: =(1-AC59)*AB59 -> $150,000.00 | AF59: Purchasing/Data Analytics | AG59: $25,000.00 | AH59: $25,000.00 | AI59: $25,000.00 | AJ59: $25,000.00 | AK59: $25,000.00 | AL59: $25,000.00 | AM59: $25,000.00 | AN59: $25,000.00 | AO59: $25,000.00 | AP59: $25,000.00 | AQ59: =SUM(AG59:AP59) -> $250,000.00 | AR59: ='10. Workstream Implem. Discount'!$C$16 -> 40.00% | AS59: =(1-AR59)*AQ59 -> $150,000.00
B60: Integration | C60: $25,000.00 | D60: $25,000.00 | E60: $25,000.00 | F60: $25,000.00 | G60: $25,000.00 | H60: $25,000.00 | I60: $25,000.00 | J60: $25,000.00 | K60: $25,000.00 | L60: $25,000.00 | M60: $250,000.00 | N60: ='10. Workstream Implem. Discount'!$C$16 -> 40.00% | O60: $150,000.00 | Q60: Integration | R60: $25,000.00 | S60: $25,000.00 | T60: $25,000.00 | U60: $25,000.00 | V60: $25,000.00 | W60: $25,000.00 | X60: $25,000.00 | Y60: $25,000.00 | Z60: $25,000.00 | AA60: $25,000.00 | AB60: $250,000.00 | AC60: ='10. Workstream Implem. Discount'!$C$16 -> 40.00% | AD60: $150,000.00 | AF60: Integration | AG60: $25,000.00 | AH60: $25,000.00 | AI60: $25,000.00 | AJ60: $25,000.00 | AK60: $25,000.00 | AL60: $25,000.00 | AM60: $25,000.00 | AN60: $25,000.00 | AO60: $25,000.00 | AP60: $25,000.00 | AQ60: $250,000.00 | AR60: ='10. Workstream Implem. Discount'!$C$16 -> 40.00% | AS60: $150,000.00
B61: Solicitation Management | C61: $1,120,000.00 | D61: $1,120,000.00 | E61: $1,120,000.00 | F61: $1,120,000.00 | G61: $1,120,000.00 | H61: $1,120,000.00 | I61: $1,120,000.00 | J61: $1,120,000.00 | K61: $1,120,000.00 | L61: $1,120,000.00 | M61: $11,200,000.00 | N61: ='10. Workstream Implem. Discount'!$C$16 -> 40.00% | O61: $6,720,000.00 | Q61: Solicitation Management | R61: $700,000.00 | S61: $700,000.00 | T61: $700,000.00 | U61: $700,000.00 | V61: $700,000.00 | W61: $700,000.00 | X61: $700,000.00 | Y61: $700,000.00 | Z61: $700,000.00 | AA61: $700,000.00 | AB61: $7,000,000.00 | AC61: ='10. Workstream Implem. Discount'!$C$16 -> 40.00% | AD61: $4,200,000.00 | AF61: Solicitation Management | AG61: $300,000.00 | AH61: $300,000.00 | AI61: $300,000.00 | AJ61: $300,000.00 | AK61: $300,000.00 | AL61: $300,000.00 | AM61: $300,000.00 | AN61: $300,000.00 | AO61: $300,000.00 | AP61: $300,000.00 | AQ61: $3,000,000.00 | AR61: ='10. Workstream Implem. Discount'!$C$16 -> 40.00% | AS61: $1,800,000.00
B62: Evaluation Management | C62: $1,120,000.00 | D62: $1,120,000.00 | E62: $1,120,000.00 | F62: $1,120,000.00 | G62: $1,120,000.00 | H62: $1,120,000.00 | I62: $1,120,000.00 | J62: $1,120,000.00 | K62: $1,120,000.00 | L62: $1,120,000.00 | M62: $11,200,000.00 | N62: ='10. Workstream Implem. Discount'!$C$16 -> 40.00% | O62: $6,720,000.00 | Q62: Evaluation Management | R62: $700,000.00 | S62: $700,000.00 | T62: $700,000.00 | U62: $700,000.00 | V62: $700,000.00 | W62: $700,000.00 | X62: $700,000.00 | Y62: $700,000.00 | Z62: $700,000.00 | AA62: $700,000.00 | AB62: $7,000,000.00 | AC62: ='10. Workstream Implem. Discount'!$C$16 -> 40.00% | AD62: $4,200,000.00 | AF62: Evaluation Management | AG62: $300,000.00 | AH62: $300,000.00 | AI62: $300,000.00 | AJ62: $300,000.00 | AK62: $300,000.00 | AL62: $300,000.00 | AM62: $300,000.00 | AN62: $300,000.00 | AO62: $300,000.00 | AP62: $300,000.00 | AQ62: $3,000,000.00 | AR62: ='10. Workstream Implem. Discount'!$C$16 -> 40.00% | AS62: $1,800,000.00
B63: Intake, Template & Draft Management | C63: $600,000.00 | D63: $600,000.00 | E63: $600,000.00 | F63: $600,000.00 | G63: $600,000.00 | H63: $600,000.00 | I63: $600,000.00 | J63: $600,000.00 | K63: $600,000.00 | L63: $600,000.00 | M63: $6,000,000.00 | N63: ='10. Workstream Implem. Discount'!$C$16 -> 40.00% | O63: $3,600,000.00 | Q63: Intake, Template & Draft Management | R63: $375,000.00 | S63: $375,000.00 | T63: $375,000.00 | U63: $375,000.00 | V63: $375,000.00 | W63: $375,000.00 | X63: $375,000.00 | Y63: $375,000.00 | Z63: $375,000.00 | AA63: $375,000.00 | AB63: $3,750,000.00 | AC63: ='10. Workstream Implem. Discount'!$C$16 -> 40.00% | AD63: $2,250,000.00 | AF63: Intake, Template & Draft Management | AG63: $200,000.00 | AH63: $200,000.00 | AI63: $200,000.00 | AJ63: $200,000.00 | AK63: $200,000.00 | AL63: $200,000.00 | AM63: $200,000.00 | AN63: $200,000.00 | AO63: $200,000.00 | AP63: $200,000.00 | AQ63: $2,000,000.00 | AR63: ='10. Workstream Implem. Discount'!$C$16 -> 40.00% | AS63: $1,200,000.00
B64: SSO, User, Dept & Admin Management | C64: $150,000.00 | D64: $150,000.00 | E64: $150,000.00 | F64: $150,000.00 | G64: $150,000.00 | H64: $150,000.00 | I64: $150,000.00 | J64: $150,000.00 | K64: $150,000.00 | L64: $150,000.00 | M64: $1,500,000.00 | N64: ='10. Workstream Implem. Discount'!$C$16 -> 40.00% | O64: $900,000.00 | Q64: SSO, User, Dept & Admin Management | R64: $100,000.00 | S64: $100,000.00 | T64: $100,000.00 | U64: $100,000.00 | V64: $100,000.00 | W64: $100,000.00 | X64: $100,000.00 | Y64: $100,000.00 | Z64: $100,000.00 | AA64: $100,000.00 | AB64: $1,000,000.00 | AC64: ='10. Workstream Implem. Discount'!$C$16 -> 40.00% | AD64: $600,000.00 | AF64: SSO, User, Dept & Admin Management | AG64: $50,000.00 | AH64: $50,000.00 | AI64: $50,000.00 | AJ64: $50,000.00 | AK64: $50,000.00 | AL64: $50,000.00 | AM64: $50,000.00 | AN64: $50,000.00 | AO64: $50,000.00 | AP64: $50,000.00 | AQ64: $500,000.00 | AR64: ='10. Workstream Implem. Discount'!$C$16 -> 40.00% | AS64: $300,000.00
B65: TOTAL | C65: =SUM(C59:C64) -> $3,040,000 | D65: $3,040,000 | E65: $3,040,000 | F65: $3,040,000 | G65: $3,040,000 | H65: $3,040,000 | I65: $3,040,000 | J65: $3,040,000 | K65: $3,040,000 | L65: $3,040,000 | M65: $30,400,000 | N65: ='10. Workstream Implem. Discount'!$C$16 -> 40.00% | O65: =SUM(O59:O64) -> $18,240,000.00 | Q65: TOTAL | R65: =SUM(R59:R64) -> $1,925,000 | S65: $1,925,000 | T65: $1,925,000 | U65: $1,925,000 | V65: $1,925,000 | W65: $1,925,000 | X65: $1,925,000 | Y65: $1,925,000 | Z65: $1,925,000 | AA65: $1,925,000 | AB65: $19,250,000 | AC65: ='10. Workstream Implem. Discount'!$C$16 -> 40.00% | AD65: =SUM(AD59:AD64) -> $11,550,000.00 | AF65: TOTAL | AG65: =SUM(AG59:AG64) -> $900,000 | AH65: $900,000 | AI65: $900,000 | AJ65: $900,000 | AK65: $900,000 | AL65: $900,000 | AM65: $900,000 | AN65: $900,000 | AO65: $900,000 | AP65: $900,000 | AQ65: $9,000,000 | AR65: ='10. Workstream Implem. Discount'!$C$16 -> 40.00% | AS65: =SUM(AS59:AS64) -> $5,400,000.00
B68: D. Managed Services Support Costs (Note: "Total" values should equal the "Final Costs" values for Managed ServicesSupport in Table A.) | Q68: D. Managed Services Support Costs (Note: "Total" values should equal the "Final Costs" values for Managed ServicesSupport in Table A.) | AF68: D. Managed Services Support Costs (Note: "Total" values should equal the "Final Costs" values for Managed ServicesSupport in Table A.)
C69: Year 1 | D69: Year 2 | E69: Year 3 | F69: Year 4 | G69: Year 5 | H69: Year 6 | I69: Year 7 | J69: Year 8 | K69: Year 9 | L69: Year 10 | M69: Total | N69: Discount (%) | O69: Final Costs | R69: Year 1 | S69: Year 2 | T69: Year 3 | U69: Year 4 | V69: Year 5 | W69: Year 6 | X69: Year 7 | Y69: Year 8 | Z69: Year 9 | AA69: Year 10 | AB69: Total | AC69: Discount (%) | AD69: Final Costs | AG69: Year 1 | AH69: Year 2 | AI69: Year 3 | AJ69: Year 4 | AK69: Year 5 | AL69: Year 6 | AM69: Year 7 | AN69: Year 8 | AO69: Year 9 | AP69: Year 10 | AQ69: Total | AR69: Discount (%) | AS69: Final Costs
B70: On-site System Stabilization Support | D70: N/A | E70: N/A | M70: =SUM(C70:L70) -> 0 | N70: ='10. Workstream Implem. Discount'!$C$17 -> 50.00% | O70: =(1-N70)*M70 -> 0 | Q70: On-site System Stabilization Support | S70: N/A | T70: N/A | AB70: =SUM(R70:AA70) -> 0 | AC70: ='10. Workstream Implem. Discount'!$C$17 -> 50.00% | AD70: =(1-AC70)*AB70 -> 0 | AF70: On-site System Stabilization Support | AH70: N/A | AI70: N/A | AQ70: =SUM(AG70:AP70) -> 0 | AR70: ='10. Workstream Implem. Discount'!$C$17 -> 50.00% | AS70: =(1-AR70)*AQ70 -> 0
B71: Third Party Licensing (e.g. NIGP Codes) | C71: $0.00 | D71: $0.00 | E71: $0.00 | F71: $0.00 | G71: $0.00 | H71: $0.00 | I71: $0.00 | J71: $0.00 | K71: $0.00 | L71: $0.00 | M71: 0 | N71: ='10. Workstream Implem. Discount'!$C$17 -> 50.00% | O71: 0 | Q71: Third Party Licensing (e.g. NIGP Codes) | R71: $0.00 | S71: $0.00 | T71: $0.00 | U71: $0.00 | V71: $0.00 | W71: $0.00 | X71: $0.00 | Y71: $0.00 | Z71: $0.00 | AA71: $0.00 | AB71: 0 | AC71: ='10. Workstream Implem. Discount'!$C$17 -> 50.00% | AD71: 0 | AF71: Third Party Licensing (e.g. NIGP Codes) | AG71: $0.00 | AH71: $0.00 | AI71: $0.00 | AJ71: $0.00 | AK71: $0.00 | AL71: $0.00 | AM71: $0.00 | AN71: $0.00 | AO71: $0.00 | AP71: $0.00 | AQ71: 0 | AR71: ='10. Workstream Implem. Discount'!$C$17 -> 50.00% | AS71: 0
B72: Transition Out Assistance Services | C72: $0.00 | D72: $0.00 | E72: $0.00 | F72: $0.00 | G72: $0.00 | H72: $0.00 | I72: $0.00 | J72: $0.00 | K72: $0.00 | L72: $0.00 | M72: 0 | N72: ='10. Workstream Implem. Discount'!$C$17 -> 50.00% | O72: 0 | Q72: Transition Out Assistance Services | R72: $0.00 | S72: $0.00 | T72: $0.00 | U72: $0.00 | V72: $0.00 | W72: $0.00 | X72: $0.00 | Y72: $0.00 | Z72: $0.00 | AA72: $0.00 | AB72: 0 | AC72: ='10. Workstream Implem. Discount'!$C$17 -> 50.00% | AD72: 0 | AF72: Transition Out Assistance Services | AG72: $0.00 | AH72: $0.00 | AI72: $0.00 | AJ72: $0.00 | AK72: $0.00 | AL72: $0.00 | AM72: $0.00 | AN72: $0.00 | AO72: $0.00 | AP72: $0.00 | AQ72: 0 | AR72: ='10. Workstream Implem. Discount'!$C$17 -> 50.00% | AS72: 0
B73: Vendor Support Services | C73: $160,000.00 | D73: $160,000.00 | E73: $160,000.00 | F73: $160,000.00 | G73: $160,000.00 | H73: $160,000.00 | I73: $160,000.00 | J73: $160,000.00 | K73: $160,000.00 | L73: $160,000.00 | M73: $1,600,000.00 | N73: ='10. Workstream Implem. Discount'!$C$17 -> 50.00% | O73: $800,000.00 | Q73: Vendor Support Services | R73: $100,000.00 | S73: $100,000.00 | T73: $100,000.00 | U73: $100,000.00 | V73: $100,000.00 | W73: $100,000.00 | X73: $100,000.00 | Y73: $100,000.00 | Z73: $100,000.00 | AA73: $100,000.00 | AB73: $1,000,000.00 | AC73: ='10. Workstream Implem. Discount'!$C$17 -> 50.00% | AD73: $500,000.00 | AF73: Vendor Support Services | AG73: $40,000.00 | AH73: $40,000.00 | AI73: $40,000.00 | AJ73: $40,000.00 | AK73: $40,000.00 | AL73: $40,000.00 | AM73: $40,000.00 | AN73: $40,000.00 | AO73: $40,000.00 | AP73: $40,000.00 | AQ73: $400,000.00 | AR73: ='10. Workstream Implem. Discount'!$C$17 -> 50.00% | AS73: $200,000.00
B74: Evaluator Support Services | C74: $40,000.00 | D74: $40,000.00 | E74: $40,000.00 | F74: $40,000.00 | G74: $40,000.00 | H74: $40,000.00 | I74: $40,000.00 | J74: $40,000.00 | K74: $40,000.00 | L74: $40,000.00 | M74: $400,000.00 | N74: ='10. Workstream Implem. Discount'!$C$17 -> 50.00% | O74: $200,000.00 | Q74: Evaluator Support Services | R74: $25,000.00 | S74: $25,000.00 | T74: $25,000.00 | U74: $25,000.00 | V74: $25,000.00 | W74: $25,000.00 | X74: $25,000.00 | Y74: $25,000.00 | Z74: $25,000.00 | AA74: $25,000.00 | AB74: $250,000.00 | AC74: ='10. Workstream Implem. Discount'!$C$17 -> 50.00% | AD74: $125,000.00 | AF74: Evaluator Support Services | AG74: $10,000.00 | AH74: $10,000.00 | AI74: $10,000.00 | AJ74: $10,000.00 | AK74: $10,000.00 | AL74: $10,000.00 | AM74: $10,000.00 | AN74: $10,000.00 | AO74: $10,000.00 | AP74: $10,000.00 | AQ74: $100,000.00 | AR74: ='10. Workstream Implem. Discount'!$C$17 -> 50.00% | AS74: $50,000.00
B75: Buyer & Administration Support Services | C75: $100,000.00 | D75: $100,000.00 | E75: $100,000.00 | F75: $100,000.00 | G75: $100,000.00 | H75: $100,000.00 | I75: $100,000.00 | J75: $100,000.00 | K75: $100,000.00 | L75: $100,000.00 | M75: $1,000,000.00 | N75: ='10. Workstream Implem. Discount'!$C$17 -> 50.00% | O75: $500,000.00 | Q75: Buyer & Administration Support Services | R75: $62,500.00 | S75: $62,500.00 | T75: $62,500.00 | U75: $62,500.00 | V75: $62,500.00 | W75: $62,500.00 | X75: $62,500.00 | Y75: $62,500.00 | Z75: $62,500.00 | AA75: $62,500.00 | AB75: $625,000.00 | AC75: ='10. Workstream Implem. Discount'!$C$17 -> 50.00% | AD75: $312,500.00 | AF75: Buyer & Administration Support Services | AG75: $40,000.00 | AH75: $40,000.00 | AI75: $40,000.00 | AJ75: $40,000.00 | AK75: $40,000.00 | AL75: $40,000.00 | AM75: $40,000.00 | AN75: $40,000.00 | AO75: $40,000.00 | AP75: $40,000.00 | AQ75: $400,000.00 | AR75: ='10. Workstream Implem. Discount'!$C$17 -> 50.00% | AS75: $200,000.00
B76: <other item for vendor input (optional)> | M76: 0 | N76: ='10. Workstream Implem. Discount'!$C$17 -> 50.00% | O76: 0 | Q76: <other item for vendor input (optional)> | AB76: 0 | AC76: ='10. Workstream Implem. Discount'!$C$17 -> 50.00% | AD76: 0 | AF76: <other item for vendor input (optional)> | AQ76: 0 | AR76: ='10. Workstream Implem. Discount'!$C$17 -> 50.00% | AS76: 0
B77: <other item for vendor input (optional)> | M77: 0 | N77: ='10. Workstream Implem. Discount'!$C$17 -> 50.00% | O77: 0 | Q77: <other item for vendor input (optional)> | AB77: 0 | AC77: ='10. Workstream Implem. Discount'!$C$17 -> 50.00% | AD77: 0 | AF77: <other item for vendor input (optional)> | AQ77: 0 | AR77: ='10. Workstream Implem. Discount'!$C$17 -> 50.00% | AS77: 0
B78: TOTAL | C78: =SUM(C70:C77) -> $300,000.00 | D78: $300,000.00 | E78: $300,000.00 | F78: $300,000.00 | G78: $300,000.00 | H78: $300,000.00 | I78: $300,000.00 | J78: $300,000.00 | K78: $300,000.00 | L78: $300,000.00 | M78: $3,000,000.00 | N78: ='10. Workstream Implem. Discount'!$C$17 -> 50.00% | O78: =SUM(O70:O77) -> $1,500,000.00 | Q78: TOTAL | R78: =SUM(R70:R77) -> $187,500.00 | S78: $187,500.00 | T78: $187,500.00 | U78: $187,500.00 | V78: $187,500.00 | W78: $187,500.00 | X78: $187,500.00 | Y78: $187,500.00 | Z78: $187,500.00 | AA78: $187,500.00 | AB78: $1,875,000.00 | AC78: ='10. Workstream Implem. Discount'!$C$17 -> 50.00% | AD78: =SUM(AD70:AD77) -> $937,500.00 | AF78: TOTAL | AG78: =SUM(AG70:AG77) -> $90,000.00 | AH78: $90,000.00 | AI78: $90,000.00 | AJ78: $90,000.00 | AK78: $90,000.00 | AL78: $90,000.00 | AM78: $90,000.00 | AN78: $90,000.00 | AO78: $90,000.00 | AP78: $90,000.00 | AQ78: $900,000.00 | AR78: ='10. Workstream Implem. Discount'!$C$17 -> 50.00% | AS78: =SUM(AS70:AS77) -> $450,000.00
B81: *E. Assumptions | Q81: *E. Assumptions | AF81: *E. Assumptions
B82: This is only for state agencies, does not include local agencies such as cities, counties, k-12, colleges, non-state universities, and local special districts | Q82: This is only for state agencies, does not include local agencies such as cities, counties, k-12, colleges, non-state universities, and local special districts | AF82: This is only for state agencies, does not include local agencies such as cities, counties, k-12, colleges, non-state universities, and local special districts
B83: All support services will be done virtually | Q83: All support services will be done virtually | AF83: All support services will be done virtually
B84: All professional services will be done virtually | Q84: All professional services will be done virtually | AF84: All professional services will be done virtually
B85: All implementation services will be done virtually | Q85: All implementation services will be done virtually | AF85: All implementation services will be done virtually
B86: Onsite can be provided at an additional fee | Q86: Onsite can be provided at an additional fee | AF86: Onsite can be provided at an additional fee
B87: Unlimited Vendor, Evaluator, and Observer roles | U87: Unlimited Vendor, Evaluator, and Observer roles | AJ87: Unlimited Vendor, Evaluator, and Observer roles
B88: <insert rows for additional Assumptions> | Q88: <insert rows for additional Assumptions> | AF88: <insert rows for additional Assumptions>

Sheet 7. Contract Management
B1: RFP# 202102021 - eProcurement Solution and Services
B2: Cost Proposal Workbook - WORKSTREAM IMPLEMENTATION
B3: Bidder's Name:
B6: Instructions: The Fixed Pricing is to reflect contracting for the IMPLEMENTATION and SOFTWARE of an eProcurement Solution for the specific Workstream as required in Sections A thru F of the RFP for the specifically identified Scenarios on this Tab.
B7: 1. In the tables below Bidders must provide the firm, fixed prices in each yellow shaded cell that corresponds to the detail listed in each table. Bidders are to provide prices for the three identified scenarios which reflect the concepts of small, medium and large States. There are separate sets of tables for each scenario and bidders must provide complete responses for each scenario. NOTE: Scenario scope that is not relevant to the specific Workstream being proposed does not have to be addressed however Bidders must list the specific Scope areas not addressed by the proposed solution in Table E "Assumptions".
B8: 2. In Table A, Bidders must provide the overall pricing breakdown of what is included to deliver the identified eProcurement Solution/Service that meets the associated requirements detailed in the RFP and RTM. The prices must include the licensing and maintenance costs, implemetation costs for deployment, and the costs for on-going operations and support of the implemented Solution. TThe costs in this table reflect the total Final Cost values in Tables B-D which have had the proposed discount (Tab 2) applied.
B9: 3. In Table B, Bidders must provide the total hours, costs, and discounted Final Costs as per relevant proposaed discount identifed on "Tab 2. Complete Solution Discount" for the approach to implement the identified workstream functionality, integations, conversion from existing State systems, staffing and support services, etc. as described in each Scenario.
B10: 4. In Table C, Bidders must provide pricing details for the Licensing and Maintenance proposed for the identified workstream/module, integration, and applications that meet the relevant requirements of this RFP. The discounted Final Costs represents applying the relevant proposed discount from "Tab 2. Complete Solution Discount" to the Total.
B11: 5. In Table D, Bidders must provide pricing details for the proposed Managed Services for the identified workstream to meet the requirements described in Section F of the RFP. The discounted Final Costs represents applying the relevant discount from "Tab 2. Complete Solution Discount" to the Total.
B12: 6. In Table E, Bidders must document all assumptions that are reflected in the proposed Pricing. Bidders proposing services only must identify the specific eProcurement solution(s) that the proposed services costs reflect.
B14: SCENARIOs
B15: Scope Common to all Scenarios | C15: • 24 month implementation period • Suppliers managed through eProcurement Solution • State provides dedicated Project Team including Project Sponsor, Project Manager, Functional Lead, Technical Lead, SMEs, Testers, Trainers and technical staff for the state side of integration programming. • Implementation Services provided include o Integration/Interface to on-premise Finance system > PeopleSoft 9.2 > Real-time integration points to Finance - Supplier accounts, create/update (eProcurement solution is system of record) - Requisitions - Purchase Orders/Change Orders - Invoice ‘Ok to Pay’ > Batch interface points - Chart of Accounts values from Finance - Receiving to Finance o Organizational Change Management Services o Training Services > Contractor delivered End User training for 25% of scenario user count > 'Train the Trainer' training for 10 State staff > Supplier training through 20 live webinars o Help Desk Services: Full end user support, State and Supplier • Managed Services provided include o Solution Support o Additional Help Desk Services; as described above for 6 months after go-live of final solution component o On-site System Stabilization Support for 3 months after go-live of final solution component
B16: Scenario I - Large State | C16: GDP: $700 Billion Spend: $8 Billion/year Population: 11 Million State Employees: 125,000 User Count: 1,250 Buyers, 11,250 End Users Suppliers: 100,000 with 60,000 to be converted from the Finance System during implementation. Contracts: 1,000 Central Procurement Office issued, 2500 Agency issued. Data conversion of basic data from the Finance System during implementation for all Contracts. Solicitations: 2,400/year Catalogs: 1000 Hosted, 100 Punchouts with no catalogs to be converted from the Finance System during implementation. Purchase Orders: 400,000 issued/year Invoices: 600,000/year
B17: Scenario II - Medium State | C17: GDP: $300 Billion Spend: $4 Billion/year Population: 6 Million State Employees: 70,000 User Count: 700 Buyers, 6,300 End Users Suppliers: 75,000 with 50,000 to be converted from the Finance System during implementation. Contracts: 800 Central Procurement Office issued, 2000 Agency issued. Data conversion of basic data from the Finance System during implementation for all Contracts. Solicitations: 1,600/year Catalogs: 1000 Hosted, 80 Punchouts with no catalogs to be converted from the Finance System during implementation. Purchase Orders: 150,000 issued/year Invoices: 225,000/year
B18: Scenario III - Small State | C18: GDP: $100 Billion Spend: $2 Billion/year Population: 3 Million State Employees: 50,000 User Count: 500 Buyers, 4,500 End Users Suppliers: 50,000 with 35,000 to be converted from the Finance System during implementation. Contracts: 500 Central Procurement Office issued, 1500 Agency issued. Data conversion of basic data from the Finance System during implementation for all Contracts. Solicitations: 1,000/year Catalogs: 500 Hosted, 60 Punchouts with no catalogs to be converted from the Finance System during implementation. Purchase Orders: 80,000 issued/year Invoices: 105,000/year
B20: SCENARIO I - LARGE STATE PRICING | Q20: SCENARIO II - MEDIUM STATE PRICING | AF20: SCENARIO III - SMALL STATE PRICING
B22: A. Overall Cost Proposal (The all-in-costs necessary to provide an eProcurement Solution that meet the mandatory requirements of the RFP and is a total of the values in Tables B-D) | Q22: A. Overall Cost Proposal (The all-in-costs necessary to provide an eProcurement Solution that meet the mandatory requirements of the RFP and is a total of the values in Tables B-D) | AF22: A. Overall Cost Proposal (The all-in-costs necessary to provide an eProcurement Solution that meet the mandatory requirements of the RFP and is a total of the values in Tables B-D)
C23: Year 1 | D23: Year 2 | E23: Year 3 | F23: Year 4 | G23: Year 5 | H23: Year 6 | I23: Year 7 | J23: Year 8 | K23: Year 9 | L23: Year 10 | M23: Total | R23: Year 1 | S23: Year 2 | T23: Year 3 | U23: Year 4 | V23: Year 5 | W23: Year 6 | X23: Year 7 | Y23: Year 8 | Z23: Year 9 | AA23: Year 10 | AB23: Total | AG23: Year 1 | AH23: Year 2 | AI23: Year 3 | AJ23: Year 4 | AK23: Year 5 | AL23: Year 6 | AM23: Year 7 | AN23: Year 8 | AO23: Year 9 | AP23: Year 10 | AQ23: Total
B24: Solution Implementation Costs | C24: =D54*(1-'10. Workstream Implem. Discount'!$C$15) -> 0 | D24: =F54*(1-'10. Workstream Implem. Discount'!$C$15) -> 0 | M24: =SUM(C24:L24) -> 0 | Q24: Solution Implementation Costs | R24: =S54*(1-'10. Workstream Implem. Discount'!$C$15) -> 0 | S24: =U54*(1-'10. Workstream Implem. Discount'!$C$15) -> 0 | AB24: =SUM(R24:AA24) -> 0 | AF24: Solution Implementation Costs | AG24: =AH54*(1-'10. Workstream Implem. Discount'!$C$15) -> 0 | AH24: =AJ54*(1-'10. Workstream Implem. Discount'!$C$15) -> 0 | AQ24: =SUM(AG24:AP24) -> 0
B25: Annual Licensing/Maintenance Costs | C25: =C65*(1-'10. Workstream Implem. Discount'!$C$16) -> 0 | D25: =D65*(1-'10. Workstream Implem. Discount'!$C$16) -> 0 | E25: =E65*(1-'10. Workstream Implem. Discount'!$C$16) -> 0 | F25: =F65*(1-'10. Workstream Implem. Discount'!$C$16) -> 0 | G25: =G65*(1-'10. Workstream Implem. Discount'!$C$16) -> 0 | H25: =H65*(1-'10. Workstream Implem. Discount'!$C$16) -> 0 | I25: =I65*(1-'10. Workstream Implem. Discount'!$C$16) -> 0 | J25: =J65*(1-'10. Workstream Implem. Discount'!$C$16) -> 0 | K25: =K65*(1-'10. Workstream Implem. Discount'!$C$16) -> 0 | L25: =L65*(1-'10. Workstream Implem. Discount'!$C$16) -> 0 | M25: 0 | Q25: Annual Licensing/Maintenance Costs | R25: =R65*(1-'10. Workstream Implem. Discount'!$C$16) -> 0 | S25: =S65*(1-'10. Workstream Implem. Discount'!$C$16) -> 0 | T25: =T65*(1-'10. Workstream Implem. Discount'!$C$16) -> 0 | U25: =U65*(1-'10. Workstream Implem. Discount'!$C$16) -> 0 | V25: =V65*(1-'10. Workstream Implem. Discount'!$C$16) -> 0 | W25: =W65*(1-'10. Workstream Implem. Discount'!$C$16) -> 0 | X25: =X65*(1-'10. Workstream Implem. Discount'!$C$16) -> 0 | Y25: =Y65*(1-'10. Workstream Implem. Discount'!$C$16) -> 0 | Z25: =Z65*(1-'10. Workstream Implem. Discount'!$C$16) -> 0 | AA25: =AA65*(1-'10. Workstream Implem. Discount'!$C$16) -> 0 | AB25: 0 | AF25: Annual Licensing/Maintenance Costs | AG25: =AG65*(1-'10. Workstream Implem. Discount'!$C$16) -> 0 | AH25: =AH65*(1-'10. Workstream Implem. Discount'!$C$16) -> 0 | AI25: =AI65*(1-'10. Workstream Implem. Discount'!$C$16) -> 0 | AJ25: =AJ65*(1-'10. Workstream Implem. Discount'!$C$16) -> 0 | AK25: =AK65*(1-'10. Workstream Implem. Discount'!$C$16) -> 0 | AL25: =AL65*(1-'10. Workstream Implem. Discount'!$C$16) -> 0 | AM25: =AM65*(1-'10. Workstream Implem. Discount'!$C$16) -> 0 | AN25: =AN65*(1-'10. Workstream Implem. Discount'!$C$16) -> 0 | AO25: =AO65*(1-'10. Workstream Implem. Discount'!$C$16) -> 0 | AP25: =AP65*(1-'10. Workstream Implem. Discount'!$C$16) -> 0 | AQ25: 0
B26: Managed Services Support Costs | C26: =C78*(1-'10. Workstream Implem. Discount'!$C$17) -> 0 | D26: =D78*(1-'10. Workstream Implem. Discount'!$C$17) -> 0 | E26: =E78*(1-'10. Workstream Implem. Discount'!$C$17) -> 0 | F26: =F78*(1-'10. Workstream Implem. Discount'!$C$17) -> 0 | G26: =G78*(1-'10. Workstream Implem. Discount'!$C$17) -> 0 | H26: =H78*(1-'10. Workstream Implem. Discount'!$C$17) -> 0 | I26: =I78*(1-'10. Workstream Implem. Discount'!$C$17) -> 0 | J26: =J78*(1-'10. Workstream Implem. Discount'!$C$17) -> 0 | K26: =K78*(1-'10. Workstream Implem. Discount'!$C$17) -> 0 | L26: =L78*(1-'10. Workstream Implem. Discount'!$C$17) -> 0 | M26: 0 | Q26: Managed Services Support Costs | R26: =R78*(1-'10. Workstream Implem. Discount'!$C$17) -> 0 | S26: =S78*(1-'10. Workstream Implem. Discount'!$C$17) -> 0 | T26: =T78*(1-'10. Workstream Implem. Discount'!$C$17) -> 0 | U26: =U78*(1-'10. Workstream Implem. Discount'!$C$17) -> 0 | V26: =V78*(1-'10. Workstream Implem. Discount'!$C$17) -> 0 | W26: =W78*(1-'10. Workstream Implem. Discount'!$C$17) -> 0 | X26: =X78*(1-'10. Workstream Implem. Discount'!$C$17) -> 0 | Y26: =Y78*(1-'10. Workstream Implem. Discount'!$C$17) -> 0 | Z26: =Z78*(1-'10. Workstream Implem. Discount'!$C$17) -> 0 | AA26: =AA78*(1-'10. Workstream Implem. Discount'!$C$17) -> 0 | AB26: 0 | AF26: Managed Services Support Costs | AG26: =AG78*(1-'10. Workstream Implem. Discount'!$C$17) -> 0 | AH26: =AH78*(1-'10. Workstream Implem. Discount'!$C$17) -> 0 | AI26: =AI78*(1-'10. Workstream Implem. Discount'!$C$17) -> 0 | AJ26: =AJ78*(1-'10. Workstream Implem. Discount'!$C$17) -> 0 | AK26: =AK78*(1-'10. Workstream Implem. Discount'!$C$17) -> 0 | AL26: =AL78*(1-'10. Workstream Implem. Discount'!$C$17) -> 0 | AM26: =AM78*(1-'10. Workstream Implem. Discount'!$C$17) -> 0 | AN26: =AN78*(1-'10. Workstream Implem. Discount'!$C$17) -> 0 | AO26: =AO78*(1-'10. Workstream Implem. Discount'!$C$17) -> 0 | AP26: =AP78*(1-'10. Workstream Implem. Discount'!$C$17) -> 0 | AQ26: 0
B27: <other item for vendor input (optional)> | M27: 0 | Q27: <other item for vendor input (optional)> | AB27: 0 | AF27: <other item for vendor input (optional)> | AQ27: 0
B28: <other item for vendor input (optional)> | M28: 0 | Q28: <other item for vendor input (optional)> | AB28: 0 | AF28: <other item for vendor input (optional)> | AQ28: 0
B29: <other item for vendor input (optional)> | M29: 0 | Q29: <other item for vendor input (optional)> | AB29: 0 | AF29: <other item for vendor input (optional)> | AQ29: 0
B30: <other item for vendor input (optional)> | M30: 0 | Q30: <other item for vendor input (optional)> | AB30: 0 | AF30: <other item for vendor input (optional)> | AQ30: 0
B31: <other item for vendor input (optional)> | M31: 0 | Q31: <other item for vendor input (optional)> | AB31: 0 | AF31: <other item for vendor input (optional)> | AQ31: 0
B32: <other item for vendor input (optional)> | M32: 0 | Q32: <other item for vendor input (optional)> | AB32: 0 | AF32: <other item for vendor input (optional)> | AQ32: 0
B33: TOTAL | C33: =SUM(C24:C32) -> 0 | D33: 0 | E33: 0 | F33: 0 | G33: 0 | H33: 0 | I33: 0 | J33: 0 | K33: 0 | L33: 0 | M33: 0 | Q33: TOTAL | R33: =SUM(R24:R32) -> 0 | S33: 0 | T33: 0 | U33: 0 | V33: 0 | W33: 0 | X33: 0 | Y33: 0 | Z33: 0 | AA33: 0 | AB33: 0 | AF33: TOTAL | AG33: =SUM(AG24:AG32) -> 0 | AH33: 0 | AI33: 0 | AJ33: 0 | AK33: 0 | AL33: 0 | AM33: 0 | AN33: 0 | AO33: 0 | AP33: 0 | AQ33: 0
B35: B. Solution Implementation Costs - Distribute over Years 1 & 2 Note: "Final Costs" values should equal the "Total" values for Solution Implementation in Table A. | Q35: B. Solution Implementation Costs - Distribute over Years 1 & 2 Note: "Final Costs" values should equal the "Total" values for Solution Implementation in Table A. | AF35: B. Solution Implementation Costs - Distribute over Years 1 & 2 Note: "Final Costs" values should equal the "Total" values for Solution Implementation in Table A.
C36: Year 1 | E36: Year 2 | G36: Totals | R36: Year 1 | T36: Year 2 | V36: Totals | AG36: Year 1 | AI36: Year 2 | AK36: Totals
B37: Workstream Costs: | C37: Hours | D37: Costs | E37: Hours | F37: Costs | G37: Hours | H37: Costs | I37: Discount (%) | J37: Final Costs | Q37: Workstream Costs: | R37: Hours | S37: Costs | T37: Hours | U37: Costs | V37: Hours | W37: Costs | X37: Discount (%) | Y37: Final Costs | AF37: Workstream Costs: | AG37: Hours | AH37: Costs | AI37: Hours | AJ37: Costs | AK37: Hours | AL37: Costs | AM37: Discount (%) | AN37: Final Costs
B38: Purchasing/Data Analytics | G38: =C38+E38 -> 0 | H38: =SUM(D38+F38) -> 0 | I38: ='10. Workstream Implem. Discount'!$C$15 -> 60.00% | J38: =(1-I38)*H38 -> 0 | Q38: Purchasing/Data Analytics | V38: =R38+T38 -> 0 | W38: =SUM(S38+U38) -> 0 | X38: ='10. Workstream Implem. Discount'!$C$15 -> 60.00% | Y38: =(1-X38)*W38 -> 0 | AF38: Purchasing/Data Analytics | AK38: =AG38+AI38 -> 0 | AL38: =SUM(AH38+AJ38) -> 0 | AM38: ='10. Workstream Implem. Discount'!$C$15 -> 60.00% | AN38: =(1-AM38)*AL38 -> 0
B39: Integration to Finance System | G39: 0 | H39: 0 | I39: ='10. Workstream Implem. Discount'!$C$15 -> 60.00% | J39: 0 | Q39: Integration to Finance System | V39: 0 | W39: 0 | X39: ='10. Workstream Implem. Discount'!$C$15 -> 60.00% | Y39: 0 | AF39: Integration to Finance System | AK39: 0 | AL39: 0 | AM39: ='10. Workstream Implem. Discount'!$C$15 -> 60.00% | AN39: 0
B40: <other item for vendor input (optional)> | G40: 0 | H40: 0 | I40: ='10. Workstream Implem. Discount'!$C$15 -> 60.00% | J40: 0 | Q40: <other item for vendor input (optional)> | V40: 0 | W40: 0 | X40: ='10. Workstream Implem. Discount'!$C$15 -> 60.00% | Y40: 0 | AF40: <other item for vendor input (optional)> | AK40: 0 | AL40: 0 | AM40: ='10. Workstream Implem. Discount'!$C$15 -> 60.00% | AN40: 0
B41: <other item for vendor input (optional)> | G41: 0 | H41: 0 | I41: ='10. Workstream Implem. Discount'!$C$15 -> 60.00% | J41: 0 | Q41: <other item for vendor input (optional)> | V41: 0 | W41: 0 | X41: ='10. Workstream Implem. Discount'!$C$15 -> 60.00% | Y41: 0 | AF41: <other item for vendor input (optional)> | AK41: 0 | AL41: 0 | AM41: ='10. Workstream Implem. Discount'!$C$15 -> 60.00% | AN41: 0
B42: <other item for vendor input (optional)> | G42: 0 | H42: 0 | I42: ='10. Workstream Implem. Discount'!$C$15 -> 60.00% | J42: 0 | Q42: <other item for vendor input (optional)> | V42: 0 | W42: 0 | X42: ='10. Workstream Implem. Discount'!$C$15 -> 60.00% | Y42: 0 | AF42: <other item for vendor input (optional)> | AK42: 0 | AL42: 0 | AM42: ='10. Workstream Implem. Discount'!$C$15 -> 60.00% | AN42: 0
B43: Supporting Services: | Q43: Supporting Services: | AF43: Supporting Services:
B44: Project Initiation | G44: =C44+E44 -> 0 | H44: =SUM(D44+F44) -> 0 | I44: ='10. Workstream Implem. Discount'!$C$15 -> 60.00% | J44: =(1-I44)*H44 -> 0 | Q44: Project Initiation | V44: =R44+T44 -> 0 | W44: =SUM(S44+U44) -> 0 | X44: ='10. Workstream Implem. Discount'!$C$15 -> 60.00% | Y44: =(1-X44)*W44 -> 0 | AF44: Project Initiation | AK44: =AG44+AI44 -> 0 | AL44: =SUM(AH44+AJ44) -> 0 | AM44: ='10. Workstream Implem. Discount'!$C$15 -> 60.00% | AN44: =(1-AM44)*AL44 -> 0
B45: Project Management | G45: 0 | H45: 0 | I45: ='10. Workstream Implem. Discount'!$C$15 -> 60.00% | J45: 0 | Q45: Project Management | V45: 0 | W45: 0 | X45: ='10. Workstream Implem. Discount'!$C$15 -> 60.00% | Y45: 0 | AF45: Project Management | AK45: 0 | AL45: 0 | AM45: ='10. Workstream Implem. Discount'!$C$15 -> 60.00% | AN45: 0
B46: Change Management | G46: 0 | H46: 0 | I46: ='10. Workstream Implem. Discount'!$C$15 -> 60.00% | J46: 0 | Q46: Change Management | V46: 0 | W46: 0 | X46: ='10. Workstream Implem. Discount'!$C$15 -> 60.00% | Y46: 0 | AF46: Change Management | AK46: 0 | AL46: 0 | AM46: ='10. Workstream Implem. Discount'!$C$15 -> 60.00% | AN46: 0
B47: Training Services | G47: 0 | H47: 0 | I47: ='10. Workstream Implem. Discount'!$C$15 -> 60.00% | J47: 0 | Q47: Training Services | V47: 0 | W47: 0 | X47: ='10. Workstream Implem. Discount'!$C$15 -> 60.00% | Y47: 0 | AF47: Training Services | AK47: 0 | AL47: 0 | AM47: ='10. Workstream Implem. Discount'!$C$15 -> 60.00% | AN47: 0
B48: Help Desk Services (Costs for period from contract award through 6 months following t'Go Live' | G48: 0 | H48: 0 | I48: ='10. Workstream Implem. Discount'!$C$15 -> 60.00% | J48: 0 | Q48: Help Desk Services (Costs for period from contract award through 6 months following t'Go Live' | V48: 0 | W48: 0 | X48: ='10. Workstream Implem. Discount'!$C$15 -> 60.00% | Y48: 0 | AF48: Help Desk Services (Costs for period from contract award through 6 months following t'Go Live' | AK48: 0 | AL48: 0 | AM48: ='10. Workstream Implem. Discount'!$C$15 -> 60.00% | AN48: 0
B49: <other item for vendor input (optional)> | G49: 0 | H49: 0 | I49: ='10. Workstream Implem. Discount'!$C$15 -> 60.00% | J49: 0 | Q49: <other item for vendor input (optional)> | V49: 0 | W49: 0 | X49: ='10. Workstream Implem. Discount'!$C$15 -> 60.00% | Y49: 0 | AF49: <other item for vendor input (optional)> | AK49: 0 | AL49: 0 | AM49: ='10. Workstream Implem. Discount'!$C$15 -> 60.00% | AN49: 0
B50: <other item for vendor input (optional)> | G50: 0 | H50: 0 | I50: ='10. Workstream Implem. Discount'!$C$15 -> 60.00% | J50: 0 | Q50: <other item for vendor input (optional)> | V50: 0 | W50: 0 | X50: ='10. Workstream Implem. Discount'!$C$15 -> 60.00% | Y50: 0 | AF50: <other item for vendor input (optional)> | AK50: 0 | AL50: 0 | AM50: ='10. Workstream Implem. Discount'!$C$15 -> 60.00% | AN50: 0
B51: <other item for vendor input (optional)> | G51: 0 | H51: 0 | I51: ='10. Workstream Implem. Discount'!$C$15 -> 60.00% | J51: 0 | Q51: <other item for vendor input (optional)> | V51: 0 | W51: 0 | X51: ='10. Workstream Implem. Discount'!$C$15 -> 60.00% | Y51: 0 | AF51: <other item for vendor input (optional)> | AK51: 0 | AL51: 0 | AM51: ='10. Workstream Implem. Discount'!$C$15 -> 60.00% | AN51: 0
B52: <other item for vendor input (optional)> | G52: 0 | H52: 0 | I52: ='10. Workstream Implem. Discount'!$C$15 -> 60.00% | J52: 0 | Q52: <other item for vendor input (optional)> | V52: 0 | W52: 0 | X52: ='10. Workstream Implem. Discount'!$C$15 -> 60.00% | Y52: 0 | AF52: <other item for vendor input (optional)> | AK52: 0 | AL52: 0 | AM52: ='10. Workstream Implem. Discount'!$C$15 -> 60.00% | AN52: 0
B53: <other item for vendor input (optional)> | G53: 0 | H53: 0 | I53: ='10. Workstream Implem. Discount'!$C$15 -> 60.00% | J53: 0 | Q53: <other item for vendor input (optional)> | V53: 0 | W53: 0 | X53: ='10. Workstream Implem. Discount'!$C$15 -> 60.00% | Y53: 0 | AF53: <other item for vendor input (optional)> | AK53: 0 | AL53: 0 | AM53: ='10. Workstream Implem. Discount'!$C$15 -> 60.00% | AN53: 0
B54: Total | D54: =SUM(D38:D42,D44:D53) -> 0 | F54: =SUM(F38:F42,F44:F53) -> 0 | H54: =SUM(H38:H42,H44:H53) -> 0 | I54: ='10. Workstream Implem. Discount'!$C$15 -> 60.00% | J54: =SUM(J38:J42,J44:J53) -> 0 | Q54: Total | S54: =SUM(S38:S42,S44:S53) -> 0 | U54: =SUM(U38:U42,U44:U53) -> 0 | W54: =SUM(W38:W42,W44:W53) -> 0 | X54: ='10. Workstream Implem. Discount'!$C$15 -> 60.00% | Y54: =SUM(Y38:Y42,Y44:Y53) -> 0 | AF54: Total | AH54: =SUM(AH38:AH42,AH44:AH53) -> 0 | AJ54: =SUM(AJ38:AJ42,AJ44:AJ53) -> 0 | AL54: =SUM(AL38:AL42,AL44:AL53) -> 0 | AM54: ='10. Workstream Implem. Discount'!$C$15 -> 60.00% | AN54: =SUM(AN38:AN42,AN44:AN53) -> 0
B57: C. Annual Licensing Costs including Maintenance (Note: Unlimited users and "Final Costs" values should equal the "Total" values for Annual Licensing & Maintenance in Table A.) | Q57: C. Annual Licensing Costs including Maintenance (Note: Unlimited users and "Final Costs" values should equal the "Total" values for Annual Licensing & Maintenance in Table A.) | AF57: C. Annual Licensing Costs including Maintenance (Note: Unlimited users and "Final Costs" values should equal the "Total" values for Annual Licensing & Maintenance in Table A.)
C58: Year 1 | D58: Year 2 | E58: Year 3 | F58: Year 4 | G58: Year 5 | H58: Year 6 | I58: Year 7 | J58: Year 8 | K58: Year 9 | L58: Year 10 | M58: Total | N58: Discount (%) | O58: Final Costs | R58: Year 1 | S58: Year 2 | T58: Year 3 | U58: Year 4 | V58: Year 5 | W58: Year 6 | X58: Year 7 | Y58: Year 8 | Z58: Year 9 | AA58: Year 10 | AB58: Total | AC58: Discount (%) | AD58: Final Costs | AG58: Year 1 | AH58: Year 2 | AI58: Year 3 | AJ58: Year 4 | AK58: Year 5 | AL58: Year 6 | AM58: Year 7 | AN58: Year 8 | AO58: Year 9 | AP58: Year 10 | AQ58: Total | AR58: Discount (%) | AS58: Final Costs
B59: Purchasing/Data Analytics | M59: =SUM(C59:L59) -> 0 | N59: ='10. Workstream Implem. Discount'!$C$16 -> 40.00% | O59: =(1-N59)*M59 -> 0 | Q59: Purchasing/Data Analytics | AB59: =SUM(R59:AA59) -> 0 | AC59: ='10. Workstream Implem. Discount'!$C$16 -> 40.00% | AD59: =(1-AC59)*AB59 -> 0 | AF59: Purchasing/Data Analytics | AQ59: =SUM(AG59:AP59) -> 0 | AR59: ='10. Workstream Implem. Discount'!$C$16 -> 40.00% | AS59: =(1-AR59)*AQ59 -> 0
B60: Integration | M60: 0 | N60: ='10. Workstream Implem. Discount'!$C$16 -> 40.00% | O60: 0 | Q60: Integration | AB60: 0 | AC60: ='10. Workstream Implem. Discount'!$C$16 -> 40.00% | AD60: 0 | AF60: Integration | AQ60: 0 | AR60: ='10. Workstream Implem. Discount'!$C$16 -> 40.00% | AS60: 0
B61: <other item for vendor input (optional)> | M61: 0 | N61: ='10. Workstream Implem. Discount'!$C$16 -> 40.00% | O61: 0 | Q61: <other item for vendor input (optional)> | AB61: 0 | AC61: ='10. Workstream Implem. Discount'!$C$16 -> 40.00% | AD61: 0 | AF61: <other item for vendor input (optional)> | AQ61: 0 | AR61: ='10. Workstream Implem. Discount'!$C$16 -> 40.00% | AS61: 0
B62: <other item for vendor input (optional)> | M62: 0 | N62: ='10. Workstream Implem. Discount'!$C$16 -> 40.00% | O62: 0 | Q62: <other item for vendor input (optional)> | AB62: 0 | AC62: ='10. Workstream Implem. Discount'!$C$16 -> 40.00% | AD62: 0 | AF62: <other item for vendor input (optional)> | AQ62: 0 | AR62: ='10. Workstream Implem. Discount'!$C$16 -> 40.00% | AS62: 0
B63: <other item for vendor input (optional)> | M63: 0 | N63: ='10. Workstream Implem. Discount'!$C$16 -> 40.00% | O63: 0 | Q63: <other item for vendor input (optional)> | AB63: 0 | AC63: ='10. Workstream Implem. Discount'!$C$16 -> 40.00% | AD63: 0 | AF63: <other item for vendor input (optional)> | AQ63: 0 | AR63: ='10. Workstream Implem. Discount'!$C$16 -> 40.00% | AS63: 0
B64: <other item for vendor input (optional)> | M64: 0 | N64: ='10. Workstream Implem. Discount'!$C$16 -> 40.00% | O64: 0 | Q64: <other item for vendor input (optional)> | AB64: 0 | AC64: ='10. Workstream Implem. Discount'!$C$16 -> 40.00% | AD64: 0 | AF64: <other item for vendor input (optional)> | AQ64: 0 | AR64: ='10. Workstream Implem. Discount'!$C$16 -> 40.00% | AS64: 0
B65: TOTAL | C65: =SUM(C59:C64) -> 0 | D65: 0 | E65: 0 | F65: 0 | G65: 0 | H65: 0 | I65: 0 | J65: 0 | K65: 0 | L65: 0 | M65: 0 | N65: ='10. Workstream Implem. Discount'!$C$16 -> 40.00% | O65: =SUM(O59:O64) -> 0 | Q65: TOTAL | R65: =SUM(R59:R64) -> 0 | S65: 0 | T65: 0 | U65: 0 | V65: 0 | W65: 0 | X65: 0 | Y65: 0 | Z65: 0 | AA65: 0 | AB65: 0 | AC65: ='10. Workstream Implem. Discount'!$C$16 -> 40.00% | AD65: =SUM(AD59:AD64) -> 0 | AF65: TOTAL | AG65: =SUM(AG59:AG64) -> 0 | AH65: 0 | AI65: 0 | AJ65: 0 | AK65: 0 | AL65: 0 | AM65: 0 | AN65: 0 | AO65: 0 | AP65: 0 | AQ65: 0 | AR65: ='10. Workstream Implem. Discount'!$C$16 -> 40.00% | AS65: =SUM(AS59:AS64) -> 0
B68: D. Managed Services Support Costs (Note: "Total" values should equal the "Final Costs" values for Managed ServicesSupport in Table A.) | Q68: D. Managed Services Support Costs (Note: "Total" values should equal the "Final Costs" values for Managed ServicesSupport in Table A.) | AF68: D. Managed Services Support Costs (Note: "Total" values should equal the "Final Costs" values for Managed ServicesSupport in Table A.)
C69: Year 1 | D69: Year 2 | E69: Year 3 | F69: Year 4 | G69: Year 5 | H69: Year 6 | I69: Year 7 | J69: Year 8 | K69: Year 9 | L69: Year 10 | M69: Total | N69: Discount (%) | O69: Final Costs | R69: Year 1 | S69: Year 2 | T69: Year 3 | U69: Year 4 | V69: Year 5 | W69: Year 6 | X69: Year 7 | Y69: Year 8 | Z69: Year 9 | AA69: Year 10 | AB69: Total | AC69: Discount (%) | AD69: Final Costs | AG69: Year 1 | AH69: Year 2 | AI69: Year 3 | AJ69: Year 4 | AK69: Year 5 | AL69: Year 6 | AM69: Year 7 | AN69: Year 8 | AO69: Year 9 | AP69: Year 10 | AQ69: Total | AR69: Discount (%) | AS69: Final Costs
B70: On-site System Stabilization Support | M70: =SUM(C70:L70) -> 0 | N70: ='10. Workstream Implem. Discount'!$C$17 -> 50.00% | O70: =(1-N70)*M70 -> 0 | Q70: On-site System Stabilization Support | AB70: =SUM(R70:AA70) -> 0 | AC70: ='10. Workstream Implem. Discount'!$C$17 -> 50.00% | AD70: =(1-AC70)*AB70 -> 0 | AF70: On-site System Stabilization Support | AQ70: =SUM(AG70:AP70) -> 0 | AR70: ='10. Workstream Implem. Discount'!$C$17 -> 50.00% | AS70: =(1-AR70)*AQ70 -> 0
B71: Third Party Licensing (e.g. NIGP Codes) | M71: 0 | N71: ='10. Workstream Implem. Discount'!$C$17 -> 50.00% | O71: 0 | Q71: Third Party Licensing (e.g. NIGP Codes) | AB71: 0 | AC71: ='10. Workstream Implem. Discount'!$C$17 -> 50.00% | AD71: 0 | AF71: Third Party Licensing (e.g. NIGP Codes) | AQ71: 0 | AR71: ='10. Workstream Implem. Discount'!$C$17 -> 50.00% | AS71: 0
B72: Transition Out Assistance Services | M72: 0 | N72: ='10. Workstream Implem. Discount'!$C$17 -> 50.00% | O72: 0 | Q72: Transition Out Assistance Services | AB72: 0 | AC72: ='10. Workstream Implem. Discount'!$C$17 -> 50.00% | AD72: 0 | AF72: Transition Out Assistance Services | AQ72: 0 | AR72: ='10. Workstream Implem. Discount'!$C$17 -> 50.00% | AS72: 0
B73: <other item for vendor input (optional)> | M73: 0 | N73: ='10. Workstream Implem. Discount'!$C$17 -> 50.00% | O73: 0 | Q73: <other item for vendor input (optional)> | AB73: 0 | AC73: ='10. Workstream Implem. Discount'!$C$17 -> 50.00% | AD73: 0 | AF73: <other item for vendor input (optional)> | AQ73: 0 | AR73: ='10. Workstream Implem. Discount'!$C$17 -> 50.00% | AS73: 0
B74: <other item for vendor input (optional)> | M74: 0 | N74: ='10. Workstream Implem. Discount'!$C$17 -> 50.00% | O74: 0 | Q74: <other item for vendor input (optional)> | AB74: 0 | AC74: ='10. Workstream Implem. Discount'!$C$17 -> 50.00% | AD74: 0 | AF74: <other item for vendor input (optional)> | AQ74: 0 | AR74: ='10. Workstream Implem. Discount'!$C$17 -> 50.00% | AS74: 0
B75: <other item for vendor input (optional)> | M75: 0 | N75: ='10. Workstream Implem. Discount'!$C$17 -> 50.00% | O75: 0 | Q75: <other item for vendor input (optional)> | AB75: 0 | AC75: ='10. Workstream Implem. Discount'!$C$17 -> 50.00% | AD75: 0 | AF75: <other item for vendor input (optional)> | AQ75: 0 | AR75: ='10. Workstream Implem. Discount'!$C$17 -> 50.00% | AS75: 0
B76: <other item for vendor input (optional)> | M76: 0 | N76: ='10. Workstream Implem. Discount'!$C$17 -> 50.00% | O76: 0 | Q76: <other item for vendor input (optional)> | AB76: 0 | AC76: ='10. Workstream Implem. Discount'!$C$17 -> 50.00% | AD76: 0 | AF76: <other item for vendor input (optional)> | AQ76: 0 | AR76: ='10. Workstream Implem. Discount'!$C$17 -> 50.00% | AS76: 0
B77: <other item for vendor input (optional)> | M77: 0 | N77: ='10. Workstream Implem. Discount'!$C$17 -> 50.00% | O77: 0 | Q77: <other item for vendor input (optional)> | AB77: 0 | AC77: ='10. Workstream Implem. Discount'!$C$17 -> 50.00% | AD77: 0 | AF77: <other item for vendor input (optional)> | AQ77: 0 | AR77: ='10. Workstream Implem. Discount'!$C$17 -> 50.00% | AS77: 0
B78: TOTAL | C78: =SUM(C70:C77) -> 0 | D78: 0 | E78: 0 | F78: 0 | G78: 0 | H78: 0 | I78: 0 | J78: 0 | K78: 0 | L78: 0 | M78: 0 | N78: ='10. Workstream Implem. Discount'!$C$17 -> 50.00% | O78: =SUM(O70:O77) -> 0 | Q78: TOTAL | R78: =SUM(R70:R77) -> 0 | S78: 0 | T78: 0 | U78: 0 | V78: 0 | W78: 0 | X78: 0 | Y78: 0 | Z78: 0 | AA78: 0 | AB78: 0 | AC78: ='10. Workstream Implem. Discount'!$C$17 -> 50.00% | AD78: =SUM(AD70:AD77) -> 0 | AF78: TOTAL | AG78: =SUM(AG70:AG77) -> 0 | AH78: 0 | AI78: 0 | AJ78: 0 | AK78: 0 | AL78: 0 | AM78: 0 | AN78: 0 | AO78: 0 | AP78: 0 | AQ78: 0 | AR78: ='10. Workstream Implem. Discount'!$C$17 -> 50.00% | AS78: =SUM(AS70:AS77) -> 0
B81: *E. Assumptions | Q81: *E. Assumptions | AF81: *E. Assumptions
B88: <insert rows for additional Assumptions> | Q88: <insert rows for additional Assumptions> | AF88: <insert rows for additional Assumptions>

Sheet 8. Vendor Performance
B1: RFP# 202102021 - eProcurement Solution and Services
B2: Cost Proposal Workbook - WORKSTREAM IMPLEMENTATION
B3: Bidder's Name:
B6: Instructions: The Fixed Pricing is to reflect contracting for the IMPLEMENTATION and SOFTWARE of an eProcurement Solution for the specific Workstream as required in Sections A thru F of the RFP for the specifically identified Scenarios on this Tab.
B7: 1. In the tables below Bidders must provide the firm, fixed prices in each yellow shaded cell that corresponds to the detail listed in each table. Bidders are to provide prices for the three identified scenarios which reflect the concepts of small, medium and large States. There are separate sets of tables for each scenario and bidders must provide complete responses for each scenario. NOTE: Scenario scope that is not relevant to the specific Workstream being proposed does not have to be addressed however Bidders must list the specific Scope areas not addressed by the proposed solution in Table E "Assumptions".
B8: 2. In Table A, Bidders must provide the overall pricing breakdown of what is included to deliver the identified eProcurement Solution/Service that meets the associated requirements detailed in the RFP and RTM. The prices must include the licensing and maintenance costs, implemetation costs for deployment, and the costs for on-going operations and support of the implemented Solution. TThe costs in this table reflect the total Final Cost values in Tables B-D which have had the proposed discount (Tab 2) applied.
B9: 3. In Table B, Bidders must provide the total hours, costs, and discounted Final Costs as per relevant proposaed discount identifed on "Tab 2. Complete Solution Discount" for the approach to implement the identified workstream functionality, integations, conversion from existing State systems, staffing and support services, etc. as described in each Scenario.
B10: 4. In Table C, Bidders must provide pricing details for the Licensing and Maintenance proposed for the identified workstream/module, integration, and applications that meet the relevant requirements of this RFP. The discounted Final Costs represents applying the relevant proposed discount from "Tab 2. Complete Solution Discount" to the Total.
B11: 5. In Table D, Bidders must provide pricing details for the proposed Managed Services for the identified workstream to meet the requirements described in Section F of the RFP. The discounted Final Costs represents applying the relevant discount from "Tab 2. Complete Solution Discount" to the Total.
B12: 6. In Table E, Bidders must document all assumptions that are reflected in the proposed Pricing. Bidders proposing services only must identify the specific eProcurement solution(s) that the proposed services costs reflect.
B14: SCENARIOs
B15: Scope Common to all Scenarios | C15: • 24 month implementation period • Suppliers managed through eProcurement Solution • State provides dedicated Project Team including Project Sponsor, Project Manager, Functional Lead, Technical Lead, SMEs, Testers, Trainers and technical staff for the state side of integration programming. • Implementation Services provided include o Integration/Interface to on-premise Finance system > PeopleSoft 9.2 > Real-time integration points to Finance - Supplier accounts, create/update (eProcurement solution is system of record) - Requisitions - Purchase Orders/Change Orders - Invoice ‘Ok to Pay’ > Batch interface points - Chart of Accounts values from Finance - Receiving to Finance o Organizational Change Management Services o Training Services > Contractor delivered End User training for 25% of scenario user count > 'Train the Trainer' training for 10 State staff > Supplier training through 20 live webinars o Help Desk Services: Full end user support, State and Supplier • Managed Services provided include o Solution Support o Additional Help Desk Services; as described above for 6 months after go-live of final solution component o On-site System Stabilization Support for 3 months after go-live of final solution component
B16: Scenario I - Large State | C16: GDP: $700 Billion Spend: $8 Billion/year Population: 11 Million State Employees: 125,000 User Count: 1,250 Buyers, 11,250 End Users Suppliers: 100,000 with 60,000 to be converted from the Finance System during implementation. Contracts: 1,000 Central Procurement Office issued, 2500 Agency issued. Data conversion of basic data from the Finance System during implementation for all Contracts. Solicitations: 2,400/year Catalogs: 1000 Hosted, 100 Punchouts with no catalogs to be converted from the Finance System during implementation. Purchase Orders: 400,000 issued/year Invoices: 600,000/year
B17: Scenario II - Medium State | C17: GDP: $300 Billion Spend: $4 Billion/year Population: 6 Million State Employees: 70,000 User Count: 700 Buyers, 6,300 End Users Suppliers: 75,000 with 50,000 to be converted from the Finance System during implementation. Contracts: 800 Central Procurement Office issued, 2000 Agency issued. Data conversion of basic data from the Finance System during implementation for all Contracts. Solicitations: 1,600/year Catalogs: 1000 Hosted, 80 Punchouts with no catalogs to be converted from the Finance System during implementation. Purchase Orders: 150,000 issued/year Invoices: 225,000/year
B18: Scenario III - Small State | C18: GDP: $100 Billion Spend: $2 Billion/year Population: 3 Million State Employees: 50,000 User Count: 500 Buyers, 4,500 End Users Suppliers: 50,000 with 35,000 to be converted from the Finance System during implementation. Contracts: 500 Central Procurement Office issued, 1500 Agency issued. Data conversion of basic data from the Finance System during implementation for all Contracts. Solicitations: 1,000/year Catalogs: 500 Hosted, 60 Punchouts with no catalogs to be converted from the Finance System during implementation. Purchase Orders: 80,000 issued/year Invoices: 105,000/year
B20: SCENARIO I - LARGE STATE PRICING | Q20: SCENARIO II - MEDIUM STATE PRICING | AF20: SCENARIO III - SMALL STATE PRICING
B22: A. Overall Cost Proposal (The all-in-costs necessary to provide an eProcurement Solution that meet the mandatory requirements of the RFP and is a total of the values in Tables B-D) | Q22: A. Overall Cost Proposal (The all-in-costs necessary to provide an eProcurement Solution that meet the mandatory requirements of the RFP and is a total of the values in Tables B-D) | AF22: A. Overall Cost Proposal (The all-in-costs necessary to provide an eProcurement Solution that meet the mandatory requirements of the RFP and is a total of the values in Tables B-D)
C23: Year 1 | D23: Year 2 | E23: Year 3 | F23: Year 4 | G23: Year 5 | H23: Year 6 | I23: Year 7 | J23: Year 8 | K23: Year 9 | L23: Year 10 | M23: Total | R23: Year 1 | S23: Year 2 | T23: Year 3 | U23: Year 4 | V23: Year 5 | W23: Year 6 | X23: Year 7 | Y23: Year 8 | Z23: Year 9 | AA23: Year 10 | AB23: Total | AG23: Year 1 | AH23: Year 2 | AI23: Year 3 | AJ23: Year 4 | AK23: Year 5 | AL23: Year 6 | AM23: Year 7 | AN23: Year 8 | AO23: Year 9 | AP23: Year 10 | AQ23: Total
B24: Solution Implementation Costs | C24: =D54*(1-'10. Workstream Implem. Discount'!$C$15) -> 0 | D24: =F54*(1-'10. Workstream Implem. Discount'!$C$15) -> 0 | M24: =SUM(C24:L24) -> 0 | Q24: Solution Implementation Costs | R24: =S54*(1-'10. Workstream Implem. Discount'!$C$15) -> 0 | S24: =U54*(1-'10. Workstream Implem. Discount'!$C$15) -> 0 | AB24: =SUM(R24:AA24) -> 0 | AF24: Solution Implementation Costs | AG24: =AH54*(1-'10. Workstream Implem. Discount'!$C$15) -> 0 | AH24: =AJ54*(1-'10. Workstream Implem. Discount'!$C$15) -> 0 | AQ24: =SUM(AG24:AP24) -> 0
B25: Annual Licensing/Maintenance Costs | C25: =C65*(1-'10. Workstream Implem. Discount'!$C$16) -> 0 | D25: =D65*(1-'10. Workstream Implem. Discount'!$C$16) -> 0 | E25: =E65*(1-'10. Workstream Implem. Discount'!$C$16) -> 0 | F25: =F65*(1-'10. Workstream Implem. Discount'!$C$16) -> 0 | G25: =G65*(1-'10. Workstream Implem. Discount'!$C$16) -> 0 | H25: =H65*(1-'10. Workstream Implem. Discount'!$C$16) -> 0 | I25: =I65*(1-'10. Workstream Implem. Discount'!$C$16) -> 0 | J25: =J65*(1-'10. Workstream Implem. Discount'!$C$16) -> 0 | K25: =K65*(1-'10. Workstream Implem. Discount'!$C$16) -> 0 | L25: =L65*(1-'10. Workstream Implem. Discount'!$C$16) -> 0 | M25: 0 | Q25: Annual Licensing/Maintenance Costs | R25: =R65*(1-'10. Workstream Implem. Discount'!$C$16) -> 0 | S25: =S65*(1-'10. Workstream Implem. Discount'!$C$16) -> 0 | T25: =T65*(1-'10. Workstream Implem. Discount'!$C$16) -> 0 | U25: =U65*(1-'10. Workstream Implem. Discount'!$C$16) -> 0 | V25: =V65*(1-'10. Workstream Implem. Discount'!$C$16) -> 0 | W25: =W65*(1-'10. Workstream Implem. Discount'!$C$16) -> 0 | X25: =X65*(1-'10. Workstream Implem. Discount'!$C$16) -> 0 | Y25: =Y65*(1-'10. Workstream Implem. Discount'!$C$16) -> 0 | Z25: =Z65*(1-'10. Workstream Implem. Discount'!$C$16) -> 0 | AA25: =AA65*(1-'10. Workstream Implem. Discount'!$C$16) -> 0 | AB25: 0 | AF25: Annual Licensing/Maintenance Costs | AG25: =AG65*(1-'10. Workstream Implem. Discount'!$C$16) -> 0 | AH25: =AH65*(1-'10. Workstream Implem. Discount'!$C$16) -> 0 | AI25: =AI65*(1-'10. Workstream Implem. Discount'!$C$16) -> 0 | AJ25: =AJ65*(1-'10. Workstream Implem. Discount'!$C$16) -> 0 | AK25: =AK65*(1-'10. Workstream Implem. Discount'!$C$16) -> 0 | AL25: =AL65*(1-'10. Workstream Implem. Discount'!$C$16) -> 0 | AM25: =AM65*(1-'10. Workstream Implem. Discount'!$C$16) -> 0 | AN25: =AN65*(1-'10. Workstream Implem. Discount'!$C$16) -> 0 | AO25: =AO65*(1-'10. Workstream Implem. Discount'!$C$16) -> 0 | AP25: =AP65*(1-'10. Workstream Implem. Discount'!$C$16) -> 0 | AQ25: 0
B26: Managed Services Support Costs | C26: =C78*(1-'10. Workstream Implem. Discount'!$C$17) -> 0 | D26: =D78*(1-'10. Workstream Implem. Discount'!$C$17) -> 0 | E26: =E78*(1-'10. Workstream Implem. Discount'!$C$17) -> 0 | F26: =F78*(1-'10. Workstream Implem. Discount'!$C$17) -> 0 | G26: =G78*(1-'10. Workstream Implem. Discount'!$C$17) -> 0 | H26: =H78*(1-'10. Workstream Implem. Discount'!$C$17) -> 0 | I26: =I78*(1-'10. Workstream Implem. Discount'!$C$17) -> 0 | J26: =J78*(1-'10. Workstream Implem. Discount'!$C$17) -> 0 | K26: =K78*(1-'10. Workstream Implem. Discount'!$C$17) -> 0 | L26: =L78*(1-'10. Workstream Implem. Discount'!$C$17) -> 0 | M26: 0 | Q26: Managed Services Support Costs | R26: =R78*(1-'10. Workstream Implem. Discount'!$C$17) -> 0 | S26: =S78*(1-'10. Workstream Implem. Discount'!$C$17) -> 0 | T26: =T78*(1-'10. Workstream Implem. Discount'!$C$17) -> 0 | U26: =U78*(1-'10. Workstream Implem. Discount'!$C$17) -> 0 | V26: =V78*(1-'10. Workstream Implem. Discount'!$C$17) -> 0 | W26: =W78*(1-'10. Workstream Implem. Discount'!$C$17) -> 0 | X26: =X78*(1-'10. Workstream Implem. Discount'!$C$17) -> 0 | Y26: =Y78*(1-'10. Workstream Implem. Discount'!$C$17) -> 0 | Z26: =Z78*(1-'10. Workstream Implem. Discount'!$C$17) -> 0 | AA26: =AA78*(1-'10. Workstream Implem. Discount'!$C$17) -> 0 | AB26: 0 | AF26: Managed Services Support Costs | AG26: =AG78*(1-'10. Workstream Implem. Discount'!$C$17) -> 0 | AH26: =AH78*(1-'10. Workstream Implem. Discount'!$C$17) -> 0 | AI26: =AI78*(1-'10. Workstream Implem. Discount'!$C$17) -> 0 | AJ26: =AJ78*(1-'10. Workstream Implem. Discount'!$C$17) -> 0 | AK26: =AK78*(1-'10. Workstream Implem. Discount'!$C$17) -> 0 | AL26: =AL78*(1-'10. Workstream Implem. Discount'!$C$17) -> 0 | AM26: =AM78*(1-'10. Workstream Implem. Discount'!$C$17) -> 0 | AN26: =AN78*(1-'10. Workstream Implem. Discount'!$C$17) -> 0 | AO26: =AO78*(1-'10. Workstream Implem. Discount'!$C$17) -> 0 | AP26: =AP78*(1-'10. Workstream Implem. Discount'!$C$17) -> 0 | AQ26: 0
B27: <other item for vendor input (optional)> | M27: 0 | Q27: <other item for vendor input (optional)> | AB27: 0 | AF27: <other item for vendor input (optional)> | AQ27: 0
B28: <other item for vendor input (optional)> | M28: 0 | Q28: <other item for vendor input (optional)> | AB28: 0 | AF28: <other item for vendor input (optional)> | AQ28: 0
B29: <other item for vendor input (optional)> | M29: 0 | Q29: <other item for vendor input (optional)> | AB29: 0 | AF29: <other item for vendor input (optional)> | AQ29: 0
B30: <other item for vendor input (optional)> | M30: 0 | Q30: <other item for vendor input (optional)> | AB30: 0 | AF30: <other item for vendor input (optional)> | AQ30: 0
B31: <other item for vendor input (optional)> | M31: 0 | Q31: <other item for vendor input (optional)> | AB31: 0 | AF31: <other item for vendor input (optional)> | AQ31: 0
B32: <other item for vendor input (optional)> | M32: 0 | Q32: <other item for vendor input (optional)> | AB32: 0 | AF32: <other item for vendor input (optional)> | AQ32: 0
B33: TOTAL | C33: =SUM(C24:C32) -> 0 | D33: 0 | E33: 0 | F33: 0 | G33: 0 | H33: 0 | I33: 0 | J33: 0 | K33: 0 | L33: 0 | M33: 0 | Q33: TOTAL | R33: =SUM(R24:R32) -> 0 | S33: 0 | T33: 0 | U33: 0 | V33: 0 | W33: 0 | X33: 0 | Y33: 0 | Z33: 0 | AA33: 0 | AB33: 0 | AF33: TOTAL | AG33: =SUM(AG24:AG32) -> 0 | AH33: 0 | AI33: 0 | AJ33: 0 | AK33: 0 | AL33: 0 | AM33: 0 | AN33: 0 | AO33: 0 | AP33: 0 | AQ33: 0
B35: B. Solution Implementation Costs - Distribute over Years 1 & 2 Note: "Final Costs" values should equal the "Total" values for Solution Implementation in Table A. | Q35: B. Solution Implementation Costs - Distribute over Years 1 & 2 Note: "Final Costs" values should equal the "Total" values for Solution Implementation in Table A. | AF35: B. Solution Implementation Costs - Distribute over Years 1 & 2 Note: "Final Costs" values should equal the "Total" values for Solution Implementation in Table A.
C36: Year 1 | E36: Year 2 | G36: Totals | R36: Year 1 | T36: Year 2 | V36: Totals | AG36: Year 1 | AI36: Year 2 | AK36: Totals
B37: Workstream Costs: | C37: Hours | D37: Costs | E37: Hours | F37: Costs | G37: Hours | H37: Costs | I37: Discount (%) | J37: Final Costs | Q37: Workstream Costs: | R37: Hours | S37: Costs | T37: Hours | U37: Costs | V37: Hours | W37: Costs | X37: Discount (%) | Y37: Final Costs | AF37: Workstream Costs: | AG37: Hours | AH37: Costs | AI37: Hours | AJ37: Costs | AK37: Hours | AL37: Costs | AM37: Discount (%) | AN37: Final Costs
B38: Purchasing/Data Analytics | G38: =C38+E38 -> 0 | H38: =SUM(D38+F38) -> 0 | I38: ='10. Workstream Implem. Discount'!$C$15 -> 60.00% | J38: =(1-I38)*H38 -> 0 | Q38: Purchasing/Data Analytics | V38: =R38+T38 -> 0 | W38: =SUM(S38+U38) -> 0 | X38: ='10. Workstream Implem. Discount'!$C$15 -> 60.00% | Y38: =(1-X38)*W38 -> 0 | AF38: Purchasing/Data Analytics | AK38: =AG38+AI38 -> 0 | AL38: =SUM(AH38+AJ38) -> 0 | AM38: ='10. Workstream Implem. Discount'!$C$15 -> 60.00% | AN38: =(1-AM38)*AL38 -> 0
B39: Integration to Finance System | G39: 0 | H39: 0 | I39: ='10. Workstream Implem. Discount'!$C$15 -> 60.00% | J39: 0 | Q39: Integration to Finance System | V39: 0 | W39: 0 | X39: ='10. Workstream Implem. Discount'!$C$15 -> 60.00% | Y39: 0 | AF39: Integration to Finance System | AK39: 0 | AL39: 0 | AM39: ='10. Workstream Implem. Discount'!$C$15 -> 60.00% | AN39: 0
B40: <other item for vendor input (optional)> | G40: 0 | H40: 0 | I40: ='10. Workstream Implem. Discount'!$C$15 -> 60.00% | J40: 0 | Q40: <other item for vendor input (optional)> | V40: 0 | W40: 0 | X40: ='10. Workstream Implem. Discount'!$C$15 -> 60.00% | Y40: 0 | AF40: <other item for vendor input (optional)> | AK40: 0 | AL40: 0 | AM40: ='10. Workstream Implem. Discount'!$C$15 -> 60.00% | AN40: 0
B41: <other item for vendor input (optional)> | G41: 0 | H41: 0 | I41: ='10. Workstream Implem. Discount'!$C$15 -> 60.00% | J41: 0 | Q41: <other item for vendor input (optional)> | V41: 0 | W41: 0 | X41: ='10. Workstream Implem. Discount'!$C$15 -> 60.00% | Y41: 0 | AF41: <other item for vendor input (optional)> | AK41: 0 | AL41: 0 | AM41: ='10. Workstream Implem. Discount'!$C$15 -> 60.00% | AN41: 0
B42: <other item for vendor input (optional)> | G42: 0 | H42: 0 | I42: ='10. Workstream Implem. Discount'!$C$15 -> 60.00% | J42: 0 | Q42: <other item for vendor input (optional)> | V42: 0 | W42: 0 | X42: ='10. Workstream Implem. Discount'!$C$15 -> 60.00% | Y42: 0 | AF42: <other item for vendor input (optional)> | AK42: 0 | AL42: 0 | AM42: ='10. Workstream Implem. Discount'!$C$15 -> 60.00% | AN42: 0
B43: Supporting Services: | Q43: Supporting Services: | AF43: Supporting Services:
B44: Project Initiation | G44: =C44+E44 -> 0 | H44: =SUM(D44+F44) -> 0 | I44: ='10. Workstream Implem. Discount'!$C$15 -> 60.00% | J44: =(1-I44)*H44 -> 0 | Q44: Project Initiation | V44: =R44+T44 -> 0 | W44: =SUM(S44+U44) -> 0 | X44: ='10. Workstream Implem. Discount'!$C$15 -> 60.00% | Y44: =(1-X44)*W44 -> 0 | AF44: Project Initiation | AK44: =AG44+AI44 -> 0 | AL44: =SUM(AH44+AJ44) -> 0 | AM44: ='10. Workstream Implem. Discount'!$C$15 -> 60.00% | AN44: =(1-AM44)*AL44 -> 0
B45: Project Management | G45: 0 | H45: 0 | I45: ='10. Workstream Implem. Discount'!$C$15 -> 60.00% | J45: 0 | Q45: Project Management | V45: 0 | W45: 0 | X45: ='10. Workstream Implem. Discount'!$C$15 -> 60.00% | Y45: 0 | AF45: Project Management | AK45: 0 | AL45: 0 | AM45: ='10. Workstream Implem. Discount'!$C$15 -> 60.00% | AN45: 0
B46: Change Management | G46: 0 | H46: 0 | I46: ='10. Workstream Implem. Discount'!$C$15 -> 60.00% | J46: 0 | Q46: Change Management | V46: 0 | W46: 0 | X46: ='10. Workstream Implem. Discount'!$C$15 -> 60.00% | Y46: 0 | AF46: Change Management | AK46: 0 | AL46: 0 | AM46: ='10. Workstream Implem. Discount'!$C$15 -> 60.00% | AN46: 0
B47: Training Services | G47: 0 | H47: 0 | I47: ='10. Workstream Implem. Discount'!$C$15 -> 60.00% | J47: 0 | Q47: Training Services | V47: 0 | W47: 0 | X47: ='10. Workstream Implem. Discount'!$C$15 -> 60.00% | Y47: 0 | AF47: Training Services | AK47: 0 | AL47: 0 | AM47: ='10. Workstream Implem. Discount'!$C$15 -> 60.00% | AN47: 0
B48: Help Desk Services (Costs for period from contract award through 6 months following t'Go Live' | G48: 0 | H48: 0 | I48: ='10. Workstream Implem. Discount'!$C$15 -> 60.00% | J48: 0 | Q48: Help Desk Services (Costs for period from contract award through 6 months following t'Go Live' | V48: 0 | W48: 0 | X48: ='10. Workstream Implem. Discount'!$C$15 -> 60.00% | Y48: 0 | AF48: Help Desk Services (Costs for period from contract award through 6 months following t'Go Live' | AK48: 0 | AL48: 0 | AM48: ='10. Workstream Implem. Discount'!$C$15 -> 60.00% | AN48: 0
B49: <other item for vendor input (optional)> | G49: 0 | H49: 0 | I49: ='10. Workstream Implem. Discount'!$C$15 -> 60.00% | J49: 0 | Q49: <other item for vendor input (optional)> | V49: 0 | W49: 0 | X49: ='10. Workstream Implem. Discount'!$C$15 -> 60.00% | Y49: 0 | AF49: <other item for vendor input (optional)> | AK49: 0 | AL49: 0 | AM49: ='10. Workstream Implem. Discount'!$C$15 -> 60.00% | AN49: 0
B50: <other item for vendor input (optional)> | G50: 0 | H50: 0 | I50: ='10. Workstream Implem. Discount'!$C$15 -> 60.00% | J50: 0 | Q50: <other item for vendor input (optional)> | V50: 0 | W50: 0 | X50: ='10. Workstream Implem. Discount'!$C$15 -> 60.00% | Y50: 0 | AF50: <other item for vendor input (optional)> | AK50: 0 | AL50: 0 | AM50: ='10. Workstream Implem. Discount'!$C$15 -> 60.00% | AN50: 0
B51: <other item for vendor input (optional)> | G51: 0 | H51: 0 | I51: ='10. Workstream Implem. Discount'!$C$15 -> 60.00% | J51: 0 | Q51: <other item for vendor input (optional)> | V51: 0 | W51: 0 | X51: ='10. Workstream Implem. Discount'!$C$15 -> 60.00% | Y51: 0 | AF51: <other item for vendor input (optional)> | AK51: 0 | AL51: 0 | AM51: ='10. Workstream Implem. Discount'!$C$15 -> 60.00% | AN51: 0
B52: <other item for vendor input (optional)> | G52: 0 | H52: 0 | I52: ='10. Workstream Implem. Discount'!$C$15 -> 60.00% | J52: 0 | Q52: <other item for vendor input (optional)> | V52: 0 | W52: 0 | X52: ='10. Workstream Implem. Discount'!$C$15 -> 60.00% | Y52: 0 | AF52: <other item for vendor input (optional)> | AK52: 0 | AL52: 0 | AM52: ='10. Workstream Implem. Discount'!$C$15 -> 60.00% | AN52: 0
B53: <other item for vendor input (optional)> | G53: 0 | H53: 0 | I53: ='10. Workstream Implem. Discount'!$C$15 -> 60.00% | J53: 0 | Q53: <other item for vendor input (optional)> | V53: 0 | W53: 0 | X53: ='10. Workstream Implem. Discount'!$C$15 -> 60.00% | Y53: 0 | AF53: <other item for vendor input (optional)> | AK53: 0 | AL53: 0 | AM53: ='10. Workstream Implem. Discount'!$C$15 -> 60.00% | AN53: 0
B54: Total | D54: =SUM(D38:D42,D44:D53) -> 0 | F54: =SUM(F38:F42,F44:F53) -> 0 | H54: =SUM(H38:H42,H44:H53) -> 0 | I54: ='10. Workstream Implem. Discount'!$C$15 -> 60.00% | J54: =SUM(J38:J42,J44:J53) -> 0 | Q54: Total | S54: =SUM(S38:S42,S44:S53) -> 0 | U54: =SUM(U38:U42,U44:U53) -> 0 | W54: =SUM(W38:W42,W44:W53) -> 0 | X54: ='10. Workstream Implem. Discount'!$C$15 -> 60.00% | Y54: =SUM(Y38:Y42,Y44:Y53) -> 0 | AF54: Total | AH54: =SUM(AH38:AH42,AH44:AH53) -> 0 | AJ54: =SUM(AJ38:AJ42,AJ44:AJ53) -> 0 | AL54: =SUM(AL38:AL42,AL44:AL53) -> 0 | AM54: ='10. Workstream Implem. Discount'!$C$15 -> 60.00% | AN54: =SUM(AN38:AN42,AN44:AN53) -> 0
B57: C. Annual Licensing Costs including Maintenance (Note: Unlimited users and "Final Costs" values should equal the "Total" values for Annual Licensing & Maintenance in Table A.) | Q57: C. Annual Licensing Costs including Maintenance (Note: Unlimited users and "Final Costs" values should equal the "Total" values for Annual Licensing & Maintenance in Table A.) | AF57: C. Annual Licensing Costs including Maintenance (Note: Unlimited users and "Final Costs" values should equal the "Total" values for Annual Licensing & Maintenance in Table A.)
C58: Year 1 | D58: Year 2 | E58: Year 3 | F58: Year 4 | G58: Year 5 | H58: Year 6 | I58: Year 7 | J58: Year 8 | K58: Year 9 | L58: Year 10 | M58: Total | N58: Discount (%) | O58: Final Costs | R58: Year 1 | S58: Year 2 | T58: Year 3 | U58: Year 4 | V58: Year 5 | W58: Year 6 | X58: Year 7 | Y58: Year 8 | Z58: Year 9 | AA58: Year 10 | AB58: Total | AC58: Discount (%) | AD58: Final Costs | AG58: Year 1 | AH58: Year 2 | AI58: Year 3 | AJ58: Year 4 | AK58: Year 5 | AL58: Year 6 | AM58: Year 7 | AN58: Year 8 | AO58: Year 9 | AP58: Year 10 | AQ58: Total | AR58: Discount (%) | AS58: Final Costs
B59: Purchasing/Data Analytics | M59: =SUM(C59:L59) -> 0 | N59: ='10. Workstream Implem. Discount'!$C$16 -> 40.00% | O59: =(1-N59)*M59 -> 0 | Q59: Purchasing/Data Analytics | AB59: =SUM(R59:AA59) -> 0 | AC59: ='10. Workstream Implem. Discount'!$C$16 -> 40.00% | AD59: =(1-AC59)*AB59 -> 0 | AF59: Purchasing/Data Analytics | AQ59: =SUM(AG59:AP59) -> 0 | AR59: ='10. Workstream Implem. Discount'!$C$16 -> 40.00% | AS59: =(1-AR59)*AQ59 -> 0
B60: Integration | M60: 0 | N60: ='10. Workstream Implem. Discount'!$C$16 -> 40.00% | O60: 0 | Q60: Integration | AB60: 0 | AC60: ='10. Workstream Implem. Discount'!$C$16 -> 40.00% | AD60: 0 | AF60: Integration | AQ60: 0 | AR60: ='10. Workstream Implem. Discount'!$C$16 -> 40.00% | AS60: 0
B61: <other item for vendor input (optional)> | M61: 0 | N61: ='10. Workstream Implem. Discount'!$C$16 -> 40.00% | O61: 0 | Q61: <other item for vendor input (optional)> | AB61: 0 | AC61: ='10. Workstream Implem. Discount'!$C$16 -> 40.00% | AD61: 0 | AF61: <other item for vendor input (optional)> | AQ61: 0 | AR61: ='10. Workstream Implem. Discount'!$C$16 -> 40.00% | AS61: 0
B62: <other item for vendor input (optional)> | M62: 0 | N62: ='10. Workstream Implem. Discount'!$C$16 -> 40.00% | O62: 0 | Q62: <other item for vendor input (optional)> | AB62: 0 | AC62: ='10. Workstream Implem. Discount'!$C$16 -> 40.00% | AD62: 0 | AF62: <other item for vendor input (optional)> | AQ62: 0 | AR62: ='10. Workstream Implem. Discount'!$C$16 -> 40.00% | AS62: 0
B63: <other item for vendor input (optional)> | M63: 0 | N63: ='10. Workstream Implem. Discount'!$C$16 -> 40.00% | O63: 0 | Q63: <other item for vendor input (optional)> | AB63: 0 | AC63: ='10. Workstream Implem. Discount'!$C$16 -> 40.00% | AD63: 0 | AF63: <other item for vendor input (optional)> | AQ63: 0 | AR63: ='10. Workstream Implem. Discount'!$C$16 -> 40.00% | AS63: 0
B64: <other item for vendor input (optional)> | M64: 0 | N64: ='10. Workstream Implem. Discount'!$C$16 -> 40.00% | O64: 0 | Q64: <other item for vendor input (optional)> | AB64: 0 | AC64: ='10. Workstream Implem. Discount'!$C$16 -> 40.00% | AD64: 0 | AF64: <other item for vendor input (optional)> | AQ64: 0 | AR64: ='10. Workstream Implem. Discount'!$C$16 -> 40.00% | AS64: 0
B65: TOTAL | C65: =SUM(C59:C64) -> 0 | D65: 0 | E65: 0 | F65: 0 | G65: 0 | H65: 0 | I65: 0 | J65: 0 | K65: 0 | L65: 0 | M65: 0 | N65: ='10. Workstream Implem. Discount'!$C$16 -> 40.00% | O65: =SUM(O59:O64) -> 0 | Q65: TOTAL | R65: =SUM(R59:R64) -> 0 | S65: 0 | T65: 0 | U65: 0 | V65: 0 | W65: 0 | X65: 0 | Y65: 0 | Z65: 0 | AA65: 0 | AB65: 0 | AC65: ='10. Workstream Implem. Discount'!$C$16 -> 40.00% | AD65: =SUM(AD59:AD64) -> 0 | AF65: TOTAL | AG65: =SUM(AG59:AG64) -> 0 | AH65: 0 | AI65: 0 | AJ65: 0 | AK65: 0 | AL65: 0 | AM65: 0 | AN65: 0 | AO65: 0 | AP65: 0 | AQ65: 0 | AR65: ='10. Workstream Implem. Discount'!$C$16 -> 40.00% | AS65: =SUM(AS59:AS64) -> 0
B68: D. Managed Services Support Costs (Note: "Total" values should equal the "Final Costs" values for Managed ServicesSupport in Table A.) | Q68: D. Managed Services Support Costs (Note: "Total" values should equal the "Final Costs" values for Managed ServicesSupport in Table A.) | AF68: D. Managed Services Support Costs (Note: "Total" values should equal the "Final Costs" values for Managed ServicesSupport in Table A.)
C69: Year 1 | D69: Year 2 | E69: Year 3 | F69: Year 4 | G69: Year 5 | H69: Year 6 | I69: Year 7 | J69: Year 8 | K69: Year 9 | L69: Year 10 | M69: Total | N69: Discount (%) | O69: Final Costs | R69: Year 1 | S69: Year 2 | T69: Year 3 | U69: Year 4 | V69: Year 5 | W69: Year 6 | X69: Year 7 | Y69: Year 8 | Z69: Year 9 | AA69: Year 10 | AB69: Total | AC69: Discount (%) | AD69: Final Costs | AG69: Year 1 | AH69: Year 2 | AI69: Year 3 | AJ69: Year 4 | AK69: Year 5 | AL69: Year 6 | AM69: Year 7 | AN69: Year 8 | AO69: Year 9 | AP69: Year 10 | AQ69: Total | AR69: Discount (%) | AS69: Final Costs
B70: On-site System Stabilization Support | M70: =SUM(C70:L70) -> 0 | N70: ='10. Workstream Implem. Discount'!$C$17 -> 50.00% | O70: =(1-N70)*M70 -> 0 | Q70: On-site System Stabilization Support | AB70: =SUM(R70:AA70) -> 0 | AC70: ='10. Workstream Implem. Discount'!$C$17 -> 50.00% | AD70: =(1-AC70)*AB70 -> 0 | AF70: On-site System Stabilization Support | AQ70: =SUM(AG70:AP70) -> 0 | AR70: ='10. Workstream Implem. Discount'!$C$17 -> 50.00% | AS70: =(1-AR70)*AQ70 -> 0
B71: Third Party Licensing (e.g. NIGP Codes) | M71: 0 | N71: ='10. Workstream Implem. Discount'!$C$17 -> 50.00% | O71: 0 | Q71: Third Party Licensing (e.g. NIGP Codes) | AB71: 0 | AC71: ='10. Workstream Implem. Discount'!$C$17 -> 50.00% | AD71: 0 | AF71: Third Party Licensing (e.g. NIGP Codes) | AQ71: 0 | AR71: ='10. Workstream Implem. Discount'!$C$17 -> 50.00% | AS71: 0
B72: Transition Out Assistance Services | M72: 0 | N72: ='10. Workstream Implem. Discount'!$C$17 -> 50.00% | O72: 0 | Q72: Transition Out Assistance Services | AB72: 0 | AC72: ='10. Workstream Implem. Discount'!$C$17 -> 50.00% | AD72: 0 | AF72: Transition Out Assistance Services | AQ72: 0 | AR72: ='10. Workstream Implem. Discount'!$C$17 -> 50.00% | AS72: 0
B73: <other item for vendor input (optional)> | M73: 0 | N73: ='10. Workstream Implem. Discount'!$C$17 -> 50.00% | O73: 0 | Q73: <other item for vendor input (optional)> | AB73: 0 | AC73: ='10. Workstream Implem. Discount'!$C$17 -> 50.00% | AD73: 0 | AF73: <other item for vendor input (optional)> | AQ73: 0 | AR73: ='10. Workstream Implem. Discount'!$C$17 -> 50.00% | AS73: 0
B74: <other item for vendor input (optional)> | M74: 0 | N74: ='10. Workstream Implem. Discount'!$C$17 -> 50.00% | O74: 0 | Q74: <other item for vendor input (optional)> | AB74: 0 | AC74: ='10. Workstream Implem. Discount'!$C$17 -> 50.00% | AD74: 0 | AF74: <other item for vendor input (optional)> | AQ74: 0 | AR74: ='10. Workstream Implem. Discount'!$C$17 -> 50.00% | AS74: 0
B75: <other item for vendor input (optional)> | M75: 0 | N75: ='10. Workstream Implem. Discount'!$C$17 -> 50.00% | O75: 0 | Q75: <other item for vendor input (optional)> | AB75: 0 | AC75: ='10. Workstream Implem. Discount'!$C$17 -> 50.00% | AD75: 0 | AF75: <other item for vendor input (optional)> | AQ75: 0 | AR75: ='10. Workstream Implem. Discount'!$C$17 -> 50.00% | AS75: 0
B76: <other item for vendor input (optional)> | M76: 0 | N76: ='10. Workstream Implem. Discount'!$C$17 -> 50.00% | O76: 0 | Q76: <other item for vendor input (optional)> | AB76: 0 | AC76: ='10. Workstream Implem. Discount'!$C$17 -> 50.00% | AD76: 0 | AF76: <other item for vendor input (optional)> | AQ76: 0 | AR76: ='10. Workstream Implem. Discount'!$C$17 -> 50.00% | AS76: 0
B77: <other item for vendor input (optional)> | M77: 0 | N77: ='10. Workstream Implem. Discount'!$C$17 -> 50.00% | O77: 0 | Q77: <other item for vendor input (optional)> | AB77: 0 | AC77: ='10. Workstream Implem. Discount'!$C$17 -> 50.00% | AD77: 0 | AF77: <other item for vendor input (optional)> | AQ77: 0 | AR77: ='10. Workstream Implem. Discount'!$C$17 -> 50.00% | AS77: 0
B78: TOTAL | C78: =SUM(C70:C77) -> 0 | D78: 0 | E78: 0 | F78: 0 | G78: 0 | H78: 0 | I78: 0 | J78: 0 | K78: 0 | L78: 0 | M78: 0 | N78: ='10. Workstream Implem. Discount'!$C$17 -> 50.00% | O78: =SUM(O70:O77) -> 0 | Q78: TOTAL | R78: =SUM(R70:R77) -> 0 | S78: 0 | T78: 0 | U78: 0 | V78: 0 | W78: 0 | X78: 0 | Y78: 0 | Z78: 0 | AA78: 0 | AB78: 0 | AC78: ='10. Workstream Implem. Discount'!$C$17 -> 50.00% | AD78: =SUM(AD70:AD77) -> 0 | AF78: TOTAL | AG78: =SUM(AG70:AG77) -> 0 | AH78: 0 | AI78: 0 | AJ78: 0 | AK78: 0 | AL78: 0 | AM78: 0 | AN78: 0 | AO78: 0 | AP78: 0 | AQ78: 0 | AR78: ='10. Workstream Implem. Discount'!$C$17 -> 50.00% | AS78: =SUM(AS70:AS77) -> 0
B81: *E. Assumptions | Q81: *E. Assumptions | AF81: *E. Assumptions
B88: <insert rows for additional Assumptions> | Q88: <insert rows for additional Assumptions> | AF88: <insert rows for additional Assumptions>

Sheet 9. Purchasing-Data Analytics
B1: RFP# 202102021 - eProcurement Solution and Services
B2: Cost Proposal Workbook - WORKSTREAM IMPLEMENTATION
B3: Bidder's Name:
B6: Instructions: The Fixed Pricing is to reflect contracting for the IMPLEMENTATION and SOFTWARE of an eProcurement Solution for the specific Workstream as required in Sections A thru F of the RFP for the specifically identified Scenarios on this Tab.
B7: 1. In the tables below Bidders must provide the firm, fixed prices in each yellow shaded cell that corresponds to the detail listed in each table. Bidders are to provide prices for the three identified scenarios which reflect the concepts of small, medium and large States. There are separate sets of tables for each scenario and bidders must provide complete responses for each scenario. NOTE: Scenario scope that is not relevant to the specific Workstream being proposed does not have to be addressed however Bidders must list the specific Scope areas not addressed by the proposed solution in Table E "Assumptions".
B8: 2. In Table A, Bidders must provide the overall pricing breakdown of what is included to deliver the identified eProcurement Solution/Service that meets the associated requirements detailed in the RFP and RTM. The prices must include the licensing and maintenance costs, implemetation costs for deployment, and the costs for on-going operations and support of the implemented Solution. TThe costs in this table reflect the total Final Cost values in Tables B-D which have had the proposed discount (Tab 2) applied.
B9: 3. In Table B, Bidders must provide the total hours, costs, and discounted Final Costs as per relevant proposaed discount identifed on "Tab 2. Complete Solution Discount" for the approach to implement the identified workstream functionality, integations, conversion from existing State systems, staffing and support services, etc. as described in each Scenario.
B10: 4. In Table C, Bidders must provide pricing details for the Licensing and Maintenance proposed for the identified workstream/module, integration, and applications that meet the relevant requirements of this RFP. The discounted Final Costs represents applying the relevant proposed discount from "Tab 2. Complete Solution Discount" to the Total.
B11: 5. In Table D, Bidders must provide pricing details for the proposed Managed Services for the identified workstream to meet the requirements described in Section F of the RFP. The discounted Final Costs represents applying the relevant discount from "Tab 2. Complete Solution Discount" to the Total.
B12: 6. In Table E, Bidders must document all assumptions that are reflected in the proposed Pricing. Bidders proposing services only must identify the specific eProcurement solution(s) that the proposed services costs reflect.
B14: SCENARIOs
B15: Scope Common to all Scenarios | C15: • 24 month implementation period • Suppliers managed through eProcurement Solution • State provides dedicated Project Team including Project Sponsor, Project Manager, Functional Lead, Technical Lead, SMEs, Testers, Trainers and technical staff for the state side of integration programming. • Implementation Services provided include o Integration/Interface to on-premise Finance system > PeopleSoft 9.2 > Real-time integration points to Finance - Supplier accounts, create/update (eProcurement solution is system of record) - Requisitions - Purchase Orders/Change Orders - Invoice ‘Ok to Pay’ > Batch interface points - Chart of Accounts values from Finance - Receiving to Finance o Organizational Change Management Services o Training Services > Contractor delivered End User training for 25% of scenario user count > 'Train the Trainer' training for 10 State staff > Supplier training through 20 live webinars o Help Desk Services: Full end user support, State and Supplier • Managed Services provided include o Solution Support o Additional Help Desk Services; as described above for 6 months after go-live of final solution component o On-site System Stabilization Support for 3 months after go-live of final solution component
B16: Scenario I - Large State | C16: GDP: $700 Billion Spend: $8 Billion/year Population: 11 Million State Employees: 125,000 User Count: 1,250 Buyers, 11,250 End Users Suppliers: 100,000 with 60,000 to be converted from the Finance System during implementation. Contracts: 1,000 Central Procurement Office issued, 2500 Agency issued. Data conversion of basic data from the Finance System during implementation for all Contracts. Solicitations: 2,400/year Catalogs: 1000 Hosted, 100 Punchouts with no catalogs to be converted from the Finance System during implementation. Purchase Orders: 400,000 issued/year Invoices: 600,000/year
B17: Scenario II - Medium State | C17: GDP: $300 Billion Spend: $4 Billion/year Population: 6 Million State Employees: 70,000 User Count: 700 Buyers, 6,300 End Users Suppliers: 75,000 with 50,000 to be converted from the Finance System during implementation. Contracts: 800 Central Procurement Office issued, 2000 Agency issued. Data conversion of basic data from the Finance System during implementation for all Contracts. Solicitations: 1,600/year Catalogs: 1000 Hosted, 80 Punchouts with no catalogs to be converted from the Finance System during implementation. Purchase Orders: 150,000 issued/year Invoices: 225,000/year
B18: Scenario III - Small State | C18: GDP: $100 Billion Spend: $2 Billion/year Population: 3 Million State Employees: 50,000 User Count: 500 Buyers, 4,500 End Users Suppliers: 50,000 with 35,000 to be converted from the Finance System during implementation. Contracts: 500 Central Procurement Office issued, 1500 Agency issued. Data conversion of basic data from the Finance System during implementation for all Contracts. Solicitations: 1,000/year Catalogs: 500 Hosted, 60 Punchouts with no catalogs to be converted from the Finance System during implementation. Purchase Orders: 80,000 issued/year Invoices: 105,000/year
B20: SCENARIO I - LARGE STATE PRICING | Q20: SCENARIO II - MEDIUM STATE PRICING | AF20: SCENARIO III - SMALL STATE PRICING
B22: A. Overall Cost Proposal (The all-in-costs necessary to provide an eProcurement Solution that meet the mandatory requirements of the RFP and is a total of the values in Tables B-D) | Q22: A. Overall Cost Proposal (The all-in-costs necessary to provide an eProcurement Solution that meet the mandatory requirements of the RFP and is a total of the values in Tables B-D) | AF22: A. Overall Cost Proposal (The all-in-costs necessary to provide an eProcurement Solution that meet the mandatory requirements of the RFP and is a total of the values in Tables B-D)
C23: Year 1 | D23: Year 2 | E23: Year 3 | F23: Year 4 | G23: Year 5 | H23: Year 6 | I23: Year 7 | J23: Year 8 | K23: Year 9 | L23: Year 10 | M23: Total | R23: Year 1 | S23: Year 2 | T23: Year 3 | U23: Year 4 | V23: Year 5 | W23: Year 6 | X23: Year 7 | Y23: Year 8 | Z23: Year 9 | AA23: Year 10 | AB23: Total | AG23: Year 1 | AH23: Year 2 | AI23: Year 3 | AJ23: Year 4 | AK23: Year 5 | AL23: Year 6 | AM23: Year 7 | AN23: Year 8 | AO23: Year 9 | AP23: Year 10 | AQ23: Total
B24: Solution Implementation Costs | C24: =D54*(1-'10. Workstream Implem. Discount'!$C$15) -> 0 | D24: =F54*(1-'10. Workstream Implem. Discount'!$C$15) -> 0 | M24: =SUM(C24:L24) -> 0 | Q24: Solution Implementation Costs | R24: =S54*(1-'10. Workstream Implem. Discount'!$C$15) -> 0 | S24: =U54*(1-'10. Workstream Implem. Discount'!$C$15) -> 0 | AB24: =SUM(R24:AA24) -> 0 | AF24: Solution Implementation Costs | AG24: =AH54*(1-'10. Workstream Implem. Discount'!$C$15) -> 0 | AH24: =AJ54*(1-'10. Workstream Implem. Discount'!$C$15) -> 0 | AQ24: =SUM(AG24:AP24) -> 0
B25: Annual Licensing/Maintenance Costs | C25: =C65*(1-'10. Workstream Implem. Discount'!$C$16) -> 0 | D25: =D65*(1-'10. Workstream Implem. Discount'!$C$16) -> 0 | E25: =E65*(1-'10. Workstream Implem. Discount'!$C$16) -> 0 | F25: =F65*(1-'10. Workstream Implem. Discount'!$C$16) -> 0 | G25: =G65*(1-'10. Workstream Implem. Discount'!$C$16) -> 0 | H25: =H65*(1-'10. Workstream Implem. Discount'!$C$16) -> 0 | I25: =I65*(1-'10. Workstream Implem. Discount'!$C$16) -> 0 | J25: =J65*(1-'10. Workstream Implem. Discount'!$C$16) -> 0 | K25: =K65*(1-'10. Workstream Implem. Discount'!$C$16) -> 0 | L25: =L65*(1-'10. Workstream Implem. Discount'!$C$16) -> 0 | M25: 0 | Q25: Annual Licensing/Maintenance Costs | R25: =R65*(1-'10. Workstream Implem. Discount'!$C$16) -> 0 | S25: =S65*(1-'10. Workstream Implem. Discount'!$C$16) -> 0 | T25: =T65*(1-'10. Workstream Implem. Discount'!$C$16) -> 0 | U25: =U65*(1-'10. Workstream Implem. Discount'!$C$16) -> 0 | V25: =V65*(1-'10. Workstream Implem. Discount'!$C$16) -> 0 | W25: =W65*(1-'10. Workstream Implem. Discount'!$C$16) -> 0 | X25: =X65*(1-'10. Workstream Implem. Discount'!$C$16) -> 0 | Y25: =Y65*(1-'10. Workstream Implem. Discount'!$C$16) -> 0 | Z25: =Z65*(1-'10. Workstream Implem. Discount'!$C$16) -> 0 | AA25: =AA65*(1-'10. Workstream Implem. Discount'!$C$16) -> 0 | AB25: 0 | AF25: Annual Licensing/Maintenance Costs | AG25: =AG65*(1-'10. Workstream Implem. Discount'!$C$16) -> 0 | AH25: =AH65*(1-'10. Workstream Implem. Discount'!$C$16) -> 0 | AI25: =AI65*(1-'10. Workstream Implem. Discount'!$C$16) -> 0 | AJ25: =AJ65*(1-'10. Workstream Implem. Discount'!$C$16) -> 0 | AK25: =AK65*(1-'10. Workstream Implem. Discount'!$C$16) -> 0 | AL25: =AL65*(1-'10. Workstream Implem. Discount'!$C$16) -> 0 | AM25: =AM65*(1-'10. Workstream Implem. Discount'!$C$16) -> 0 | AN25: =AN65*(1-'10. Workstream Implem. Discount'!$C$16) -> 0 | AO25: =AO65*(1-'10. Workstream Implem. Discount'!$C$16) -> 0 | AP25: =AP65*(1-'10. Workstream Implem. Discount'!$C$16) -> 0 | AQ25: 0
B26: Managed Services Support Costs | C26: =C78*(1-'10. Workstream Implem. Discount'!$C$17) -> 0 | D26: =D78*(1-'10. Workstream Implem. Discount'!$C$17) -> 0 | E26: =E78*(1-'10. Workstream Implem. Discount'!$C$17) -> 0 | F26: =F78*(1-'10. Workstream Implem. Discount'!$C$17) -> 0 | G26: =G78*(1-'10. Workstream Implem. Discount'!$C$17) -> 0 | H26: =H78*(1-'10. Workstream Implem. Discount'!$C$17) -> 0 | I26: =I78*(1-'10. Workstream Implem. Discount'!$C$17) -> 0 | J26: =J78*(1-'10. Workstream Implem. Discount'!$C$17) -> 0 | K26: =K78*(1-'10. Workstream Implem. Discount'!$C$17) -> 0 | L26: =L78*(1-'10. Workstream Implem. Discount'!$C$17) -> 0 | M26: 0 | Q26: Managed Services Support Costs | R26: =R78*(1-'10. Workstream Implem. Discount'!$C$17) -> 0 | S26: =S78*(1-'10. Workstream Implem. Discount'!$C$17) -> 0 | T26: =T78*(1-'10. Workstream Implem. Discount'!$C$17) -> 0 | U26: =U78*(1-'10. Workstream Implem. Discount'!$C$17) -> 0 | V26: =V78*(1-'10. Workstream Implem. Discount'!$C$17) -> 0 | W26: =W78*(1-'10. Workstream Implem. Discount'!$C$17) -> 0 | X26: =X78*(1-'10. Workstream Implem. Discount'!$C$17) -> 0 | Y26: =Y78*(1-'10. Workstream Implem. Discount'!$C$17) -> 0 | Z26: =Z78*(1-'10. Workstream Implem. Discount'!$C$17) -> 0 | AA26: =AA78*(1-'10. Workstream Implem. Discount'!$C$17) -> 0 | AB26: 0 | AF26: Managed Services Support Costs | AG26: =AG78*(1-'10. Workstream Implem. Discount'!$C$17) -> 0 | AH26: =AH78*(1-'10. Workstream Implem. Discount'!$C$17) -> 0 | AI26: =AI78*(1-'10. Workstream Implem. Discount'!$C$17) -> 0 | AJ26: =AJ78*(1-'10. Workstream Implem. Discount'!$C$17) -> 0 | AK26: =AK78*(1-'10. Workstream Implem. Discount'!$C$17) -> 0 | AL26: =AL78*(1-'10. Workstream Implem. Discount'!$C$17) -> 0 | AM26: =AM78*(1-'10. Workstream Implem. Discount'!$C$17) -> 0 | AN26: =AN78*(1-'10. Workstream Implem. Discount'!$C$17) -> 0 | AO26: =AO78*(1-'10. Workstream Implem. Discount'!$C$17) -> 0 | AP26: =AP78*(1-'10. Workstream Implem. Discount'!$C$17) -> 0 | AQ26: 0
B27: <other item for vendor input (optional)> | M27: 0 | Q27: <other item for vendor input (optional)> | AB27: 0 | AF27: <other item for vendor input (optional)> | AQ27: 0
B28: <other item for vendor input (optional)> | M28: 0 | Q28: <other item for vendor input (optional)> | AB28: 0 | AF28: <other item for vendor input (optional)> | AQ28: 0
B29: <other item for vendor input (optional)> | M29: 0 | Q29: <other item for vendor input (optional)> | AB29: 0 | AF29: <other item for vendor input (optional)> | AQ29: 0
B30: <other item for vendor input (optional)> | M30: 0 | Q30: <other item for vendor input (optional)> | AB30: 0 | AF30: <other item for vendor input (optional)> | AQ30: 0
B31: <other item for vendor input (optional)> | M31: 0 | Q31: <other item for vendor input (optional)> | AB31: 0 | AF31: <other item for vendor input (optional)> | AQ31: 0
B32: <other item for vendor input (optional)> | M32: 0 | Q32: <other item for vendor input (optional)> | AB32: 0 | AF32: <other item for vendor input (optional)> | AQ32: 0
B33: TOTAL | C33: =SUM(C24:C32) -> 0 | D33: 0 | E33: 0 | F33: 0 | G33: 0 | H33: 0 | I33: 0 | J33: 0 | K33: 0 | L33: 0 | M33: 0 | Q33: TOTAL | R33: =SUM(R24:R32) -> 0 | S33: 0 | T33: 0 | U33: 0 | V33: 0 | W33: 0 | X33: 0 | Y33: 0 | Z33: 0 | AA33: 0 | AB33: 0 | AF33: TOTAL | AG33: =SUM(AG24:AG32) -> 0 | AH33: 0 | AI33: 0 | AJ33: 0 | AK33: 0 | AL33: 0 | AM33: 0 | AN33: 0 | AO33: 0 | AP33: 0 | AQ33: 0
B35: B. Solution Implementation Costs - Distribute over Years 1 & 2 Note: "Final Costs" values should equal the "Total" values for Solution Implementation in Table A. | Q35: B. Solution Implementation Costs - Distribute over Years 1 & 2 Note: "Final Costs" values should equal the "Total" values for Solution Implementation in Table A. | AF35: B. Solution Implementation Costs - Distribute over Years 1 & 2 Note: "Final Costs" values should equal the "Total" values for Solution Implementation in Table A.
C36: Year 1 | E36: Year 2 | G36: Totals | R36: Year 1 | T36: Year 2 | V36: Totals | AG36: Year 1 | AI36: Year 2 | AK36: Totals
B37: Workstream Costs: | C37: Hours | D37: Costs | E37: Hours | F37: Costs | G37: Hours | H37: Costs | I37: Discount (%) | J37: Final Costs | Q37: Workstream Costs: | R37: Hours | S37: Costs | T37: Hours | U37: Costs | V37: Hours | W37: Costs | X37: Discount (%) | Y37: Final Costs | AF37: Workstream Costs: | AG37: Hours | AH37: Costs | AI37: Hours | AJ37: Costs | AK37: Hours | AL37: Costs | AM37: Discount (%) | AN37: Final Costs
B38: Purchasing/Data Analytics | G38: =C38+E38 -> 0 | H38: =SUM(D38+F38) -> 0 | I38: ='10. Workstream Implem. Discount'!$C$15 -> 60.00% | J38: =(1-I38)*H38 -> 0 | Q38: Purchasing/Data Analytics | V38: =R38+T38 -> 0 | W38: =SUM(S38+U38) -> 0 | X38: ='10. Workstream Implem. Discount'!$C$15 -> 60.00% | Y38: =(1-X38)*W38 -> 0 | AF38: Purchasing/Data Analytics | AK38: =AG38+AI38 -> 0 | AL38: =SUM(AH38+AJ38) -> 0 | AM38: ='10. Workstream Implem. Discount'!$C$15 -> 60.00% | AN38: =(1-AM38)*AL38 -> 0
B39: Integration to Finance System | G39: 0 | H39: 0 | I39: ='10. Workstream Implem. Discount'!$C$15 -> 60.00% | J39: 0 | Q39: Integration to Finance System | V39: 0 | W39: 0 | X39: ='10. Workstream Implem. Discount'!$C$15 -> 60.00% | Y39: 0 | AF39: Integration to Finance System | AK39: 0 | AL39: 0 | AM39: ='10. Workstream Implem. Discount'!$C$15 -> 60.00% | AN39: 0
B40: <other item for vendor input (optional)> | G40: 0 | H40: 0 | I40: ='10. Workstream Implem. Discount'!$C$15 -> 60.00% | J40: 0 | Q40: <other item for vendor input (optional)> | V40: 0 | W40: 0 | X40: ='10. Workstream Implem. Discount'!$C$15 -> 60.00% | Y40: 0 | AF40: <other item for vendor input (optional)> | AK40: 0 | AL40: 0 | AM40: ='10. Workstream Implem. Discount'!$C$15 -> 60.00% | AN40: 0
B41: <other item for vendor input (optional)> | G41: 0 | H41: 0 | I41: ='10. Workstream Implem. Discount'!$C$15 -> 60.00% | J41: 0 | Q41: <other item for vendor input (optional)> | V41: 0 | W41: 0 | X41: ='10. Workstream Implem. Discount'!$C$15 -> 60.00% | Y41: 0 | AF41: <other item for vendor input (optional)> | AK41: 0 | AL41: 0 | AM41: ='10. Workstream Implem. Discount'!$C$15 -> 60.00% | AN41: 0
B42: <other item for vendor input (optional)> | G42: 0 | H42: 0 | I42: ='10. Workstream Implem. Discount'!$C$15 -> 60.00% | J42: 0 | Q42: <other item for vendor input (optional)> | V42: 0 | W42: 0 | X42: ='10. Workstream Implem. Discount'!$C$15 -> 60.00% | Y42: 0 | AF42: <other item for vendor input (optional)> | AK42: 0 | AL42: 0 | AM42: ='10. Workstream Implem. Discount'!$C$15 -> 60.00% | AN42: 0
B43: Supporting Services: | Q43: Supporting Services: | AF43: Supporting Services:
B44: Project Initiation | G44: =C44+E44 -> 0 | H44: =SUM(D44+F44) -> 0 | I44: ='10. Workstream Implem. Discount'!$C$15 -> 60.00% | J44: =(1-I44)*H44 -> 0 | Q44: Project Initiation | V44: =R44+T44 -> 0 | W44: =SUM(S44+U44) -> 0 | X44: ='10. Workstream Implem. Discount'!$C$15 -> 60.00% | Y44: =(1-X44)*W44 -> 0 | AF44: Project Initiation | AK44: =AG44+AI44 -> 0 | AL44: =SUM(AH44+AJ44) -> 0 | AM44: ='10. Workstream Implem. Discount'!$C$15 -> 60.00% | AN44: =(1-AM44)*AL44 -> 0
B45: Project Management | G45: 0 | H45: 0 | I45: ='10. Workstream Implem. Discount'!$C$15 -> 60.00% | J45: 0 | Q45: Project Management | V45: 0 | W45: 0 | X45: ='10. Workstream Implem. Discount'!$C$15 -> 60.00% | Y45: 0 | AF45: Project Management | AK45: 0 | AL45: 0 | AM45: ='10. Workstream Implem. Discount'!$C$15 -> 60.00% | AN45: 0
B46: Change Management | G46: 0 | H46: 0 | I46: ='10. Workstream Implem. Discount'!$C$15 -> 60.00% | J46: 0 | Q46: Change Management | V46: 0 | W46: 0 | X46: ='10. Workstream Implem. Discount'!$C$15 -> 60.00% | Y46: 0 | AF46: Change Management | AK46: 0 | AL46: 0 | AM46: ='10. Workstream Implem. Discount'!$C$15 -> 60.00% | AN46: 0
B47: Training Services | G47: 0 | H47: 0 | I47: ='10. Workstream Implem. Discount'!$C$15 -> 60.00% | J47: 0 | Q47: Training Services | V47: 0 | W47: 0 | X47: ='10. Workstream Implem. Discount'!$C$15 -> 60.00% | Y47: 0 | AF47: Training Services | AK47: 0 | AL47: 0 | AM47: ='10. Workstream Implem. Discount'!$C$15 -> 60.00% | AN47: 0
B48: Help Desk Services (Costs for period from contract award through 6 months following t'Go Live' | G48: 0 | H48: 0 | I48: ='10. Workstream Implem. Discount'!$C$15 -> 60.00% | J48: 0 | Q48: Help Desk Services (Costs for period from contract award through 6 months following t'Go Live' | V48: 0 | W48: 0 | X48: ='10. Workstream Implem. Discount'!$C$15 -> 60.00% | Y48: 0 | AF48: Help Desk Services (Costs for period from contract award through 6 months following t'Go Live' | AK48: 0 | AL48: 0 | AM48: ='10. Workstream Implem. Discount'!$C$15 -> 60.00% | AN48: 0
B49: <other item for vendor input (optional)> | G49: 0 | H49: 0 | I49: ='10. Workstream Implem. Discount'!$C$15 -> 60.00% | J49: 0 | Q49: <other item for vendor input (optional)> | V49: 0 | W49: 0 | X49: ='10. Workstream Implem. Discount'!$C$15 -> 60.00% | Y49: 0 | AF49: <other item for vendor input (optional)> | AK49: 0 | AL49: 0 | AM49: ='10. Workstream Implem. Discount'!$C$15 -> 60.00% | AN49: 0
B50: <other item for vendor input (optional)> | G50: 0 | H50: 0 | I50: ='10. Workstream Implem. Discount'!$C$15 -> 60.00% | J50: 0 | Q50: <other item for vendor input (optional)> | V50: 0 | W50: 0 | X50: ='10. Workstream Implem. Discount'!$C$15 -> 60.00% | Y50: 0 | AF50: <other item for vendor input (optional)> | AK50: 0 | AL50: 0 | AM50: ='10. Workstream Implem. Discount'!$C$15 -> 60.00% | AN50: 0
B51: <other item for vendor input (optional)> | G51: 0 | H51: 0 | I51: ='10. Workstream Implem. Discount'!$C$15 -> 60.00% | J51: 0 | Q51: <other item for vendor input (optional)> | V51: 0 | W51: 0 | X51: ='10. Workstream Implem. Discount'!$C$15 -> 60.00% | Y51: 0 | AF51: <other item for vendor input (optional)> | AK51: 0 | AL51: 0 | AM51: ='10. Workstream Implem. Discount'!$C$15 -> 60.00% | AN51: 0
B52: <other item for vendor input (optional)> | G52: 0 | H52: 0 | I52: ='10. Workstream Implem. Discount'!$C$15 -> 60.00% | J52: 0 | Q52: <other item for vendor input (optional)> | V52: 0 | W52: 0 | X52: ='10. Workstream Implem. Discount'!$C$15 -> 60.00% | Y52: 0 | AF52: <other item for vendor input (optional)> | AK52: 0 | AL52: 0 | AM52: ='10. Workstream Implem. Discount'!$C$15 -> 60.00% | AN52: 0
B53: <other item for vendor input (optional)> | G53: 0 | H53: 0 | I53: ='10. Workstream Implem. Discount'!$C$15 -> 60.00% | J53: 0 | Q53: <other item for vendor input (optional)> | V53: 0 | W53: 0 | X53: ='10. Workstream Implem. Discount'!$C$15 -> 60.00% | Y53: 0 | AF53: <other item for vendor input (optional)> | AK53: 0 | AL53: 0 | AM53: ='10. Workstream Implem. Discount'!$C$15 -> 60.00% | AN53: 0
B54: Total | D54: =SUM(D38:D42,D44:D53) -> 0 | F54: =SUM(F38:F42,F44:F53) -> 0 | H54: =SUM(H38:H42,H44:H53) -> 0 | I54: ='10. Workstream Implem. Discount'!$C$15 -> 60.00% | J54: =SUM(J38:J42,J44:J53) -> 0 | Q54: Total | S54: =SUM(S38:S42,S44:S53) -> 0 | U54: =SUM(U38:U42,U44:U53) -> 0 | W54: =SUM(W38:W42,W44:W53) -> 0 | X54: ='10. Workstream Implem. Discount'!$C$15 -> 60.00% | Y54: =SUM(Y38:Y42,Y44:Y53) -> 0 | AF54: Total | AH54: =SUM(AH38:AH42,AH44:AH53) -> 0 | AJ54: =SUM(AJ38:AJ42,AJ44:AJ53) -> 0 | AL54: =SUM(AL38:AL42,AL44:AL53) -> 0 | AM54: ='10. Workstream Implem. Discount'!$C$15 -> 60.00% | AN54: =SUM(AN38:AN42,AN44:AN53) -> 0
B57: C. Annual Licensing Costs including Maintenance (Note: Unlimited users and "Final Costs" values should equal the "Total" values for Annual Licensing & Maintenance in Table A.) | Q57: C. Annual Licensing Costs including Maintenance (Note: Unlimited users and "Final Costs" values should equal the "Total" values for Annual Licensing & Maintenance in Table A.) | AF57: C. Annual Licensing Costs including Maintenance (Note: Unlimited users and "Final Costs" values should equal the "Total" values for Annual Licensing & Maintenance in Table A.)
C58: Year 1 | D58: Year 2 | E58: Year 3 | F58: Year 4 | G58: Year 5 | H58: Year 6 | I58: Year 7 | J58: Year 8 | K58: Year 9 | L58: Year 10 | M58: Total | N58: Discount (%) | O58: Final Costs | R58: Year 1 | S58: Year 2 | T58: Year 3 | U58: Year 4 | V58: Year 5 | W58: Year 6 | X58: Year 7 | Y58: Year 8 | Z58: Year 9 | AA58: Year 10 | AB58: Total | AC58: Discount (%) | AD58: Final Costs | AG58: Year 1 | AH58: Year 2 | AI58: Year 3 | AJ58: Year 4 | AK58: Year 5 | AL58: Year 6 | AM58: Year 7 | AN58: Year 8 | AO58: Year 9 | AP58: Year 10 | AQ58: Total | AR58: Discount (%) | AS58: Final Costs
B59: Purchasing/Data Analytics | M59: =SUM(C59:L59) -> 0 | N59: ='10. Workstream Implem. Discount'!$C$16 -> 40.00% | O59: =(1-N59)*M59 -> 0 | Q59: Purchasing/Data Analytics | AB59: =SUM(R59:AA59) -> 0 | AC59: ='10. Workstream Implem. Discount'!$C$16 -> 40.00% | AD59: =(1-AC59)*AB59 -> 0 | AF59: Purchasing/Data Analytics | AQ59: =SUM(AG59:AP59) -> 0 | AR59: ='10. Workstream Implem. Discount'!$C$16 -> 40.00% | AS59: =(1-AR59)*AQ59 -> 0
B60: Integration | M60: 0 | N60: ='10. Workstream Implem. Discount'!$C$16 -> 40.00% | O60: 0 | Q60: Integration | AB60: 0 | AC60: ='10. Workstream Implem. Discount'!$C$16 -> 40.00% | AD60: 0 | AF60: Integration | AQ60: 0 | AR60: ='10. Workstream Implem. Discount'!$C$16 -> 40.00% | AS60: 0
B61: <other item for vendor input (optional)> | M61: 0 | N61: ='10. Workstream Implem. Discount'!$C$16 -> 40.00% | O61: 0 | Q61: <other item for vendor input (optional)> | AB61: 0 | AC61: ='10. Workstream Implem. Discount'!$C$16 -> 40.00% | AD61: 0 | AF61: <other item for vendor input (optional)> | AQ61: 0 | AR61: ='10. Workstream Implem. Discount'!$C$16 -> 40.00% | AS61: 0
B62: <other item for vendor input (optional)> | M62: 0 | N62: ='10. Workstream Implem. Discount'!$C$16 -> 40.00% | O62: 0 | Q62: <other item for vendor input (optional)> | AB62: 0 | AC62: ='10. Workstream Implem. Discount'!$C$16 -> 40.00% | AD62: 0 | AF62: <other item for vendor input (optional)> | AQ62: 0 | AR62: ='10. Workstream Implem. Discount'!$C$16 -> 40.00% | AS62: 0
B63: <other item for vendor input (optional)> | M63: 0 | N63: ='10. Workstream Implem. Discount'!$C$16 -> 40.00% | O63: 0 | Q63: <other item for vendor input (optional)> | AB63: 0 | AC63: ='10. Workstream Implem. Discount'!$C$16 -> 40.00% | AD63: 0 | AF63: <other item for vendor input (optional)> | AQ63: 0 | AR63: ='10. Workstream Implem. Discount'!$C$16 -> 40.00% | AS63: 0
B64: <other item for vendor input (optional)> | M64: 0 | N64: ='10. Workstream Implem. Discount'!$C$16 -> 40.00% | O64: 0 | Q64: <other item for vendor input (optional)> | AB64: 0 | AC64: ='10. Workstream Implem. Discount'!$C$16 -> 40.00% | AD64: 0 | AF64: <other item for vendor input (optional)> | AQ64: 0 | AR64: ='10. Workstream Implem. Discount'!$C$16 -> 40.00% | AS64: 0
B65: TOTAL | C65: =SUM(C59:C64) -> 0 | D65: 0 | E65: 0 | F65: 0 | G65: 0 | H65: 0 | I65: 0 | J65: 0 | K65: 0 | L65: 0 | M65: 0 | N65: ='10. Workstream Implem. Discount'!$C$16 -> 40.00% | O65: =SUM(O59:O64) -> 0 | Q65: TOTAL | R65: =SUM(R59:R64) -> 0 | S65: 0 | T65: 0 | U65: 0 | V65: 0 | W65: 0 | X65: 0 | Y65: 0 | Z65: 0 | AA65: 0 | AB65: 0 | AC65: ='10. Workstream Implem. Discount'!$C$16 -> 40.00% | AD65: =SUM(AD59:AD64) -> 0 | AF65: TOTAL | AG65: =SUM(AG59:AG64) -> 0 | AH65: 0 | AI65: 0 | AJ65: 0 | AK65: 0 | AL65: 0 | AM65: 0 | AN65: 0 | AO65: 0 | AP65: 0 | AQ65: 0 | AR65: ='10. Workstream Implem. Discount'!$C$16 -> 40.00% | AS65: =SUM(AS59:AS64) -> 0
B68: D. Managed Services Support Costs (Note: "Total" values should equal the "Final Costs" values for Managed ServicesSupport in Table A.) | Q68: D. Managed Services Support Costs (Note: "Total" values should equal the "Final Costs" values for Managed ServicesSupport in Table A.) | AF68: D. Managed Services Support Costs (Note: "Total" values should equal the "Final Costs" values for Managed ServicesSupport in Table A.)
C69: Year 1 | D69: Year 2 | E69: Year 3 | F69: Year 4 | G69: Year 5 | H69: Year 6 | I69: Year 7 | J69: Year 8 | K69: Year 9 | L69: Year 10 | M69: Total | N69: Discount (%) | O69: Final Costs | R69: Year 1 | S69: Year 2 | T69: Year 3 | U69: Year 4 | V69: Year 5 | W69: Year 6 | X69: Year 7 | Y69: Year 8 | Z69: Year 9 | AA69: Year 10 | AB69: Total | AC69: Discount (%) | AD69: Final Costs | AG69: Year 1 | AH69: Year 2 | AI69: Year 3 | AJ69: Year 4 | AK69: Year 5 | AL69: Year 6 | AM69: Year 7 | AN69: Year 8 | AO69: Year 9 | AP69: Year 10 | AQ69: Total | AR69: Discount (%) | AS69: Final Costs
B70: On-site System Stabilization Support | M70: =SUM(C70:L70) -> 0 | N70: ='10. Workstream Implem. Discount'!$C$17 -> 50.00% | O70: =(1-N70)*M70 -> 0 | Q70: On-site System Stabilization Support | AB70: =SUM(R70:AA70) -> 0 | AC70: ='10. Workstream Implem. Discount'!$C$17 -> 50.00% | AD70: =(1-AC70)*AB70 -> 0 | AF70: On-site System Stabilization Support | AQ70: =SUM(AG70:AP70) -> 0 | AR70: ='10. Workstream Implem. Discount'!$C$17 -> 50.00% | AS70: =(1-AR70)*AQ70 -> 0
B71: Third Party Licensing (e.g. NIGP Codes) | M71: 0 | N71: ='10. Workstream Implem. Discount'!$C$17 -> 50.00% | O71: 0 | Q71: Third Party Licensing (e.g. NIGP Codes) | AB71: 0 | AC71: ='10. Workstream Implem. Discount'!$C$17 -> 50.00% | AD71: 0 | AF71: Third Party Licensing (e.g. NIGP Codes) | AQ71: 0 | AR71: ='10. Workstream Implem. Discount'!$C$17 -> 50.00% | AS71: 0
B72: Transition Out Assistance Services | M72: 0 | N72: ='10. Workstream Implem. Discount'!$C$17 -> 50.00% | O72: 0 | Q72: Transition Out Assistance Services | AB72: 0 | AC72: ='10. Workstream Implem. Discount'!$C$17 -> 50.00% | AD72: 0 | AF72: Transition Out Assistance Services | AQ72: 0 | AR72: ='10. Workstream Implem. Discount'!$C$17 -> 50.00% | AS72: 0
B73: <other item for vendor input (optional)> | M73: 0 | N73: ='10. Workstream Implem. Discount'!$C$17 -> 50.00% | O73: 0 | Q73: <other item for vendor input (optional)> | AB73: 0 | AC73: ='10. Workstream Implem. Discount'!$C$17 -> 50.00% | AD73: 0 | AF73: <other item for vendor input (optional)> | AQ73: 0 | AR73: ='10. Workstream Implem. Discount'!$C$17 -> 50.00% | AS73: 0
B74: <other item for vendor input (optional)> | M74: 0 | N74: ='10. Workstream Implem. Discount'!$C$17 -> 50.00% | O74: 0 | Q74: <other item for vendor input (optional)> | AB74: 0 | AC74: ='10. Workstream Implem. Discount'!$C$17 -> 50.00% | AD74: 0 | AF74: <other item for vendor input (optional)> | AQ74: 0 | AR74: ='10. Workstream Implem. Discount'!$C$17 -> 50.00% | AS74: 0
B75: <other item for vendor input (optional)> | M75: 0 | N75: ='10. Workstream Implem. Discount'!$C$17 -> 50.00% | O75: 0 | Q75: <other item for vendor input (optional)> | AB75: 0 | AC75: ='10. Workstream Implem. Discount'!$C$17 -> 50.00% | AD75: 0 | AF75: <other item for vendor input (optional)> | AQ75: 0 | AR75: ='10. Workstream Implem. Discount'!$C$17 -> 50.00% | AS75: 0
B76: <other item for vendor input (optional)> | M76: 0 | N76: ='10. Workstream Implem. Discount'!$C$17 -> 50.00% | O76: 0 | Q76: <other item for vendor input (optional)> | AB76: 0 | AC76: ='10. Workstream Implem. Discount'!$C$17 -> 50.00% | AD76: 0 | AF76: <other item for vendor input (optional)> | AQ76: 0 | AR76: ='10. Workstream Implem. Discount'!$C$17 -> 50.00% | AS76: 0
B77: <other item for vendor input (optional)> | M77: 0 | N77: ='10. Workstream Implem. Discount'!$C$17 -> 50.00% | O77: 0 | Q77: <other item for vendor input (optional)> | AB77: 0 | AC77: ='10. Workstream Implem. Discount'!$C$17 -> 50.00% | AD77: 0 | AF77: <other item for vendor input (optional)> | AQ77: 0 | AR77: ='10. Workstream Implem. Discount'!$C$17 -> 50.00% | AS77: 0
B78: TOTAL | C78: =SUM(C70:C77) -> 0 | D78: 0 | E78: 0 | F78: 0 | G78: 0 | H78: 0 | I78: 0 | J78: 0 | K78: 0 | L78: 0 | M78: 0 | N78: ='10. Workstream Implem. Discount'!$C$17 -> 50.00% | O78: =SUM(O70:O77) -> 0 | Q78: TOTAL | R78: =SUM(R70:R77) -> 0 | S78: 0 | T78: 0 | U78: 0 | V78: 0 | W78: 0 | X78: 0 | Y78: 0 | Z78: 0 | AA78: 0 | AB78: 0 | AC78: ='10. Workstream Implem. Discount'!$C$17 -> 50.00% | AD78: =SUM(AD70:AD77) -> 0 | AF78: TOTAL | AG78: =SUM(AG70:AG77) -> 0 | AH78: 0 | AI78: 0 | AJ78: 0 | AK78: 0 | AL78: 0 | AM78: 0 | AN78: 0 | AO78: 0 | AP78: 0 | AQ78: 0 | AR78: ='10. Workstream Implem. Discount'!$C$17 -> 50.00% | AS78: =SUM(AS70:AS77) -> 0
B81: *E. Assumptions | Q81: *E. Assumptions | AF81: *E. Assumptions
B88: <insert rows for additional Assumptions> | Q88: <insert rows for additional Assumptions> | AF88: <insert rows for additional Assumptions>

Sheet 10. Workstream Implem. Discount
B1: RFP# 202102021 - eProcurement Solution and Services
B2: Cost Proposal Workbook - WORKSTREAM IMPLEMENTATION
B3: Bidder's Name: | C3: BONFIRE INTERACTIVE LTD.
B6: Instructions: The Fixed Pricing is to reflect contracting for the IMPLEMENTATION and SOFTWARE of an eProcurement Solution for the specific Workstream as required in Sections A thru F of the RFP for the specifically identified Scenarios on this Tab.
B7: 1. In Table A, Bidders must provide a minimum discount percentages off the Bidder's commercially published price list for all current and future solution modules and services that will be available through award of a contract from this RFP. Bidders will not be precluded from providing deeper or additional discounts at their sole discretion at the time they enter into an agreement with a Participating Entity from the Contract that results from this RFP.
B8: 2. In Table B, Bidders must list the proposed Solution modules and identify annual licensing prices that will be in place on the closing date of the RFP. Bidders are not required to propose solutions for every Worksteam in Table B however all modules necessary to meet the requirements for the proposed Workstreams, as defined in the RFP, must be listed. Any other solution modules that are available but may not have been identified as necessary to meet the RFP requirements for the proposed Workstreams should be listed as well. Awarded Contractors will have the opportunity to update and refresh their respective price list annually.
B9: 3. In Table C, Bidders must list the currently available services that Bidder can provide and identify pricing details/methodology that will be used in the event of an implementation project.. At a minimum details must be provided for the Implementation and Managed Services as required in Sections E through F of the RFP. Any other services that are available but may not have been identified as necessary to meet the requirements of the RFP should be listed as well. It is understood that each Bidder will have their own pricing models/schedules for these Services which will be documented in this Table. As such Bidders may revise Table C as necessary to provide their pricing model details.
B10: 4. In Table D, Bidders must document all assumptions that are reflected in the proposed Pricing. Bidders proposing services only must identify the specific eProcurement solution(s) that the proposed services discount reflect.
B13: Bonfire Sourcing/Bid Management
C14: Discount (%)
B15: Solution Implementation Services | C15: 60.00%
B16: Annual Licensing/Maintenance | C16: 40.00%
B17: Managed Services Support | C17: 50.00%
B20: B. Price List by Solution Workstream
B21: Workstream | C21: Solution Module/Tool Name | D21: License Price | E21: Pricing Comments/Details
B22: Need to Pay
B23: Catalog Capability
B24: Supplier Enablement/Management | C24: Bonfire Vendor Management | D24: Included in $6,500 USD per buyer cost
B25: Sourcing/Bid Management | C25: Bonfire Sourcing/Bid Management | D25: $6,500.00 USD per buyer
B26: Contract Management | C26: Bonfire Contract Lifecycle Management | D26: $25,000.00 USD site license
B27: Purchasing/Data Analytics
B28: Integration to Finance System | C28: Bonfire Professional Services | D28: $200.00 USD per hour
B29: Integration to Finance System Data Warehouse | C29: Bonfire Professional Services | D29: $200.00 USD per hour
B30: Existing Systems Replacement/Conversion | C30: Bonfire Professional Services | D30: $200.00 USD per hour
B31: <other item for vendor input (optional)>
B32: <other item for vendor input (optional)>
B33: <other item for vendor input (optional)>
B36: C. Services
C37: Pricing Details
B38: Implementation Services | C38: $10,000.00 USD one-time flat fee, includes all required implementation services in unlimited capacity for Bonfire Sourcing/Bid Management
B39: Managed Services | C39: $10,000.00 USD annual fee, includes all required support services in unlimited capacity for vendors, buyers, managers, admin & evaluators
B40: Implementation Services for Bonfire CLM | C40: $10,000.00 USD one-time flat fee, includes all required implementation services in unlimited capacity for Bonfire Contract Lifecycle Management
B41: <other item for vendor input (optional)>
B42: <other item for vendor input (optional)>
B44: D. Assumptions
B45: All implementation services will be provided virtually and are unlimited in nature.
B46: All support services will be provided virtually and are unlimited in nature.
B47: Onsite can be provided at an additional fee
B48: All vendors, evaluators, observers, managers are included free of cost and in an unlimited nature
B53: <insert rows for additional Assumptions>

Sheet 11. Hourly Rate Card Pricing
B1: RFP# 202102021 - eProcurement Solution and Services
B2: Cost Proposal Workbook - WORKSTREAM IMPLEMENTATION
B3: Bidder's Name: | C3: BONFIRE INTERACTIVE LTD.
B5: Hourly Rate Card Pricing
B6: Instructions:
B7: 1. In Table A, Bidders must provide a minimum discount percentage off that will be applied the Bidder's commercially published Hourly Rate Card price list. Bidders will not be precluded from providing deeper or additional discounts at their sole discretion at the time they enter into an agreement with a Participating Entity from the Contract that results from this RFP. Awarded Contractors will have the opportunity to update and refresh their respective Rate Card price list annually.
B8: 2. In Table B, Bidders must provide their commercially published Hourly Rate Card price list that will be available through award of a contract from this RFP for services that may be provided on an as needed, if needed basis. There is no guaranteed minimum or maximum amount of the contractor’s services that may be required under the contract. Hourly Rate Card pricing shall include all travel expenses. Bidders must utilize the pre-listed Personnel Classifications where appropriate but should indicate "N/A" in Year 1 when the specific classification is not provided by the Bidder. Any other personnel classifications available should be added as well. In the associated blue cell, Bidders must provide a detailed description detailing the role and skills of the classification. In the yellow cells, the bidder must provide the hourly rate for the Personnel Classification identified in the adjoining blue cell.
B9: 3. In Table C, the Discounted Hourly Rates for each identified Personnel Classification will be calculated based on the Discount identified in Table A and the associated rates in Table B.
B10: 4. In Table D, Bidders must document any specific assumptions associated with the listed Personnel Classifications and associated Rate Card pricing.
B12: A. Minimum Discount Percentage
D13: Discount (%)
B14: Rate Card Discount | D14: 20.00%
B16: B. Price List Rate Card by Personnel Classification | O16: C. Discounted Price List Rate Card by Personnel Classification
D17: List Price - Hourly Rate | O17: Discounted Hourly Rate
B18: Personnel Classification | C18: Classification Description | D18: Year 1 | E18: Year 2 | F18: Year 3 | G18: Year 4 | H18: Year 5 | I18: Year 6 | J18: Year 7 | K18: Year 8 | L18: Year 9 | M18: Year 10 | O18: Year 1 | P18: Year 2 | Q18: Year 3 | R18: Year 4 | S18: Year 5 | T18: Year 6 | U18: Year 7 | V18: Year 8 | W18: Year 9 | X18: Year 10
B20: Management/Leadership
B21: Senior Executive | D21: N/A | O21: =D21*(1-$D$14) ->  | P21: 0 | Q21: 0 | R21: 0 | S21: 0 | T21: 0 | U21: 0 | V21: 0 | W21: 0 | X21: 0
B22: Program Manager/Unit Lead | D22: $250.00 | E22: =ROUND(D22*1.05,0) -> $263.00 | F22: $276.00 | G22: $290.00 | H22: $305.00 | I22: $320.00 | J22: $336.00 | K22: $353.00 | L22: $371.00 | M22: $390.00 | O22: =D22*(1-$D$14) -> $200.00 | P22: $210.40 | Q22: $220.80 | R22: $232.00 | S22: $244.00 | T22: $256.00 | U22: $268.80 | V22: $282.40 | W22: $296.80 | X22: $312.00
B23: Technical Architect/SME | D23: $250.00 | E23: =ROUND(D23*1.05,0) -> $263.00 | F23: $276.00 | G23: $290.00 | H23: $305.00 | I23: $320.00 | J23: $336.00 | K23: $353.00 | L23: $371.00 | M23: $390.00 | O23: =D23*(1-$D$14) -> $200.00 | P23: $210.40 | Q23: $220.80 | R23: $232.00 | S23: $244.00 | T23: $256.00 | U23: $268.80 | V23: $282.40 | W23: $296.80 | X23: $312.00
B24: Project Manager | D24: $250.00 | E24: =ROUND(D24*1.05,0) -> $263.00 | F24: $276.00 | G24: $290.00 | H24: $305.00 | I24: $320.00 | J24: $336.00 | K24: $353.00 | L24: $371.00 | M24: $390.00 | O24: =D24*(1-$D$14) -> $200.00 | P24: $210.40 | Q24: $220.80 | R24: $232.00 | S24: $244.00 | T24: $256.00 | U24: $268.80 | V24: $282.40 | W24: $296.80 | X24: $312.00
B25: Operations Lead Manager | D25: N/A | O25: =D25*(1-$D$14) ->  | P25: 0 | Q25: 0 | R25: 0 | S25: 0 | T25: 0 | U25: 0 | V25: 0 | W25: 0 | X25: 0
B26: Functional Lead/Manager | D26: N/A | O26: =D26*(1-$D$14) ->  | P26: 0 | Q26: 0 | R26: 0 | S26: 0 | T26: 0 | U26: 0 | V26: 0 | W26: 0 | X26: 0
B27: <other item for vendor input (optional)> | O27: =D27*(1-$D$14) -> 0 | P27: 0 | Q27: 0 | R27: 0 | S27: 0 | T27: 0 | U27: 0 | V27: 0 | W27: 0 | X27: 0
B28: Change Management
B29: Change Management Lead | D29: $175.00 | E29: =ROUND(D29*1.05,0) -> $184.00 | F29: $193.00 | G29: $203.00 | H29: $213.00 | I29: $224.00 | J29: $235.00 | K29: $247.00 | L29: $259.00 | M29: $272.00 | O29: =D29*(1-$D$14) -> $140.00 | P29: $147.20 | Q29: $154.40 | R29: $162.40 | S29: $170.40 | T29: $179.20 | U29: $188.00 | V29: $197.60 | W29: $207.20 | X29: $217.60
B30: Process Change Analyst | D30: $175.00 | E30: =ROUND(D30*1.05,0) -> $184.00 | F30: $193.00 | G30: $203.00 | H30: $213.00 | I30: $224.00 | J30: $235.00 | K30: $247.00 | L30: $259.00 | M30: $272.00 | O30: =D30*(1-$D$14) -> $140.00 | P30: $147.20 | Q30: $154.40 | R30: $162.40 | S30: $170.40 | T30: $179.20 | U30: $188.00 | V30: $197.60 | W30: $207.20 | X30: $217.60
B31: Communications/Change Mgmt. SME | D31: $175.00 | E31: =ROUND(D31*1.05,0) -> $184.00 | F31: $193.00 | G31: $203.00 | H31: $213.00 | I31: $224.00 | J31: $235.00 | K31: $247.00 | L31: $259.00 | M31: $272.00 | O31: =D31*(1-$D$14) -> $140.00 | P31: $147.20 | Q31: $154.40 | R31: $162.40 | S31: $170.40 | T31: $179.20 | U31: $188.00 | V31: $197.60 | W31: $207.20 | X31: $217.60
B32: Training Lead/Manager | D32: $175.00 | E32: =ROUND(D32*1.05,0) -> $184.00 | F32: $193.00 | G32: $203.00 | H32: $213.00 | I32: $224.00 | J32: $235.00 | K32: $247.00 | L32: $259.00 | M32: $272.00 | O32: =D32*(1-$D$14) -> $140.00 | P32: $147.20 | Q32: $154.40 | R32: $162.40 | S32: $170.40 | T32: $179.20 | U32: $188.00 | V32: $197.60 | W32: $207.20 | X32: $217.60
B33: Training Delivery Consultant | D33: $175.00 | E33: =ROUND(D33*1.05,0) -> $184.00 | F33: $193.00 | G33: $203.00 | H33: $213.00 | I33: $224.00 | J33: $235.00 | K33: $247.00 | L33: $259.00 | M33: $272.00 | O33: =D33*(1-$D$14) -> $140.00 | P33: $147.20 | Q33: $154.40 | R33: $162.40 | S33: $170.40 | T33: $179.20 | U33: $188.00 | V33: $197.60 | W33: $207.20 | X33: $217.60
B34: <other item for vendor input (optional)> | O34: =D34*(1-$D$14) -> 0 | P34: 0 | Q34: 0 | R34: 0 | S34: 0 | T34: 0 | U34: 0 | V34: 0 | W34: 0 | X34: 0
B35: Specialist/Support
B36: Business Analyst | D36: N/A | O36: =D36*(1-$D$14) ->  | P36: 0 | Q36: 0 | R36: 0 | S36: 0 | T36: 0 | U36: 0 | V36: 0 | W36: 0 | X36: 0
B37: Strategic Sourcing Analyst | D37: N/A | O37: =D37*(1-$D$14) ->  | P37: 0 | Q37: 0 | R37: 0 | S37: 0 | T37: 0 | U37: 0 | V37: 0 | W37: 0 | X37: 0
B38: Technical Architect | D38: $250.00 | E38: =ROUND(D38*1.05,0) -> $263.00 | F38: $276.00 | G38: $290.00 | H38: $305.00 | I38: $320.00 | J38: $336.00 | K38: $353.00 | L38: $371.00 | M38: $390.00 | O38: =D38*(1-$D$14) -> $200.00 | P38: $210.40 | Q38: $220.80 | R38: $232.00 | S38: $244.00 | T38: $256.00 | U38: $268.80 | V38: $282.40 | W38: $296.80 | X38: $312.00
B39: Programmer/Developer | D39: $250.00 | E39: =ROUND(D39*1.05,0) -> $263.00 | F39: $276.00 | G39: $290.00 | H39: $305.00 | I39: $320.00 | J39: $336.00 | K39: $353.00 | L39: $371.00 | M39: $390.00 | O39: =D39*(1-$D$14) -> $200.00 | P39: $210.40 | Q39: $220.80 | R39: $232.00 | S39: $244.00 | T39: $256.00 | U39: $268.80 | V39: $282.40 | W39: $296.80 | X39: $312.00
B40: Jr Programmer/Developer | D40: N/A | O40: =D40*(1-$D$14) ->  | P40: 0 | Q40: 0 | R40: 0 | S40: 0 | T40: 0 | U40: 0 | V40: 0 | W40: 0 | X40: 0
B41: Security Specialist | D41: N/A | O41: =D41*(1-$D$14) ->  | P41: 0 | Q41: 0 | R41: 0 | S41: 0 | T41: 0 | U41: 0 | V41: 0 | W41: 0 | X41: 0
B42: Security Administrator | D42: N/A | O42: =D42*(1-$D$14) ->  | P42: 0 | Q42: 0 | R42: 0 | S42: 0 | T42: 0 | U42: 0 | V42: 0 | W42: 0 | X42: 0
B43: System Analyst | D43: N/A | O43: =D43*(1-$D$14) ->  | P43: 0 | Q43: 0 | R43: 0 | S43: 0 | T43: 0 | U43: 0 | V43: 0 | W43: 0 | X43: 0
B44: Performance Expert | D44: N/A | O44: =D44*(1-$D$14) ->  | P44: 0 | Q44: 0 | R44: 0 | S44: 0 | T44: 0 | U44: 0 | V44: 0 | W44: 0 | X44: 0
B45: Quality Assurance Manager | D45: N/A | O45: =D45*(1-$D$14) ->  | P45: 0 | Q45: 0 | R45: 0 | S45: 0 | T45: 0 | U45: 0 | V45: 0 | W45: 0 | X45: 0
B46: Technical Writer | D46: N/A | O46: =D46*(1-$D$14) ->  | P46: 0 | Q46: 0 | R46: 0 | S46: 0 | T46: 0 | U46: 0 | V46: 0 | W46: 0 | X46: 0
B47: Test Lead/Manager | D47: $250.00 | E47: =ROUND(D47*1.05,0) -> $263.00 | F47: $276.00 | G47: $290.00 | H47: $305.00 | I47: $320.00 | J47: $336.00 | K47: $353.00 | L47: $371.00 | M47: $390.00 | O47: =D47*(1-$D$14) -> $200.00 | P47: $210.40 | Q47: $220.80 | R47: $232.00 | S47: $244.00 | T47: $256.00 | U47: $268.80 | V47: $282.40 | W47: $296.80 | X47: $312.00
B48: Tester | D48: $250.00 | E48: =ROUND(D48*1.05,0) -> $263.00 | F48: $276.00 | G48: $290.00 | H48: $305.00 | I48: $320.00 | J48: $336.00 | K48: $353.00 | L48: $371.00 | M48: $390.00 | O48: =D48*(1-$D$14) -> $200.00 | P48: $210.40 | Q48: $220.80 | R48: $232.00 | S48: $244.00 | T48: $256.00 | U48: $268.80 | V48: $282.40 | W48: $296.80 | X48: $312.00
B49: Help Desk Process Expert | D49: N/A | O49: =D49*(1-$D$14) ->  | P49: 0 | Q49: 0 | R49: 0 | S49: 0 | T49: 0 | U49: 0 | V49: 0 | W49: 0 | X49: 0
B50: Help Desk Process Analyst | D50: N/A | O50: =D50*(1-$D$14) ->  | P50: 0 | Q50: 0 | R50: 0 | S50: 0 | T50: 0 | U50: 0 | V50: 0 | W50: 0 | X50: 0
B51: <other item for vendor input (optional)> | O51: =D51*(1-$D$14) -> 0 | P51: 0 | Q51: 0 | R51: 0 | S51: 0 | T51: 0 | U51: 0 | V51: 0 | W51: 0 | X51: 0
B52: Other Resources (Specify)
B53: <other item for vendor input (optional)> | O53: =D53*(1-$D$14) -> 0 | P53: 0 | Q53: 0 | R53: 0 | S53: 0 | T53: 0 | U53: 0 | V53: 0 | W53: 0 | X53: 0
B54: <other item for vendor input (optional)> | O54: =D54*(1-$D$14) -> 0 | P54: 0 | Q54: 0 | R54: 0 | S54: 0 | T54: 0 | U54: 0 | V54: 0 | W54: 0 | X54: 0
B55: <other item for vendor input (optional)> | O55: =D55*(1-$D$14) -> 0 | P55: 0 | Q55: 0 | R55: 0 | S55: 0 | T55: 0 | U55: 0 | V55: 0 | W55: 0 | X55: 0
B56: <other item for vendor input (optional)> | O56: =D56*(1-$D$14) -> 0 | P56: 0 | Q56: 0 | R56: 0 | S56: 0 | T56: 0 | U56: 0 | V56: 0 | W56: 0 | X56: 0
B57: <other item for vendor input (optional)> | O57: =D57*(1-$D$14) -> 0 | P57: 0 | Q57: 0 | R57: 0 | S57: 0 | T57: 0 | U57: 0 | V57: 0 | W57: 0 | X57: 0
B58: <other item for vendor input (optional)> | O58: =D58*(1-$D$14) -> 0 | P58: 0 | Q58: 0 | R58: 0 | S58: 0 | T58: 0 | U58: 0 | V58: 0 | W58: 0 | X58: 0
B60: D. Assumptions
B61: These rates apply to remote resourcing and not on-site.
B62: Onsite can be provided at an additional fee
B69: <insert rows for additional Assumptions>

Sheet 12. Innov, Value-Adds, Addl Svc
B1: RFP# 202102021 - eProcurement Solution and Services
B2: Cost Proposal Workbook - WORKSTREAM IMPLEMENTATION
B3: Bidder's Name: | C3: BONFIRE INTERACTIVE LTD.
B5: OPTIONAL: Innovations, Value-Added Features/Services, Additional Services (Reference RFP Sections A.4 and G)
B6: Instructions:
